Publisher Label,Publisher URI,Body Name,Service Area Categorisation,Service Division Categorisation,Expenses Type,Date,Transaction Number,Amount,Capital or Revenue,Supplier Name,Merchant Category
Peterborough,http://opendatacommunities.org/id/unitary-authority/peterborough,Peterborough City Council,City Servs & Communications,Regulatory Services,Services,02/06/2017 00:00,30119461,1925.7,Revenue,Redacted Personal Data,Legal Costs
Peterborough,http://opendatacommunities.org/id/unitary-authority/peterborough,Peterborough City Council,Financial Services,Finance,Agency Staff,02/06/2017 00:00,30125576,508.71,Revenue,Reed Specialist Recruitment Limited,External Temporary Staff
Peterborough,http://opendatacommunities.org/id/unitary-authority/peterborough,Peterborough City Council,Financial Services,Finance,Agency Staff,02/06/2017 00:00,30125582,566.15,Revenue,Reed Specialist Recruitment Limited,External Temporary Staff
Peterborough,http://opendatacommunities.org/id/unitary-authority/peterborough,Peterborough City Council,Financial Services,Finance,Agency Staff,02/06/2017 00:00,30125589,590.76,Revenue,Reed Specialist Recruitment Limited,External Temporary Staff
Peterborough,http://opendatacommunities.org/id/unitary-authority/peterborough,Peterborough City Council,Financial Services,Finance,Agency Staff,02/06/2017 00:00,30126968,508.71,Revenue,Reed Specialist Recruitment Limited,External Temporary Staff
Peterborough,http://opendatacommunities.org/id/unitary-authority/peterborough,Peterborough City Council,Westcombe Engineering,Westcombe Engineering,"Tools, Equipment, Furniture & Materials",02/06/2017 00:00,30128578,688.36,Revenue,Ostling Etchmark Ltd,Items For Resale
Peterborough,http://opendatacommunities.org/id/unitary-authority/peterborough,Peterborough City Council,Legal & Democratic,Legal Services,Agency Staff,02/06/2017 00:00,30128700,1452,Revenue,Sellick Partnership Group Limited,External Temporary Staff
Peterborough,http://opendatacommunities.org/id/unitary-authority/peterborough,Peterborough City Council,Legal & Democratic,Legal Services,Agency Staff,02/06/2017 00:00,30128708,980.39,Revenue,Sellick Partnership Group Limited,External Temporary Staff
Peterborough,http://opendatacommunities.org/id/unitary-authority/peterborough,Peterborough City Council,Corporate,Corporate,Non Revenue,02/06/2017 00:00,30128740,540,Capital,Smooth Removals (Peterborough) Ltd,Building And Site Works
Peterborough,http://opendatacommunities.org/id/unitary-authority/peterborough,Peterborough City Council,Adult Services & Communities - Adults,Independent Sector Placements,Services,02/06/2017 00:00,30128869,1752.8,Revenue,Athena (Ashlynn Grange),Residential Care
Peterborough,http://opendatacommunities.org/id/unitary-authority/peterborough,Peterborough City Council,Adult Services & Communities - Adults,Independent Sector Placements,Services,02/06/2017 00:00,30128870,1623.12,Revenue,Athena (Ashlynn Grange),Residential Care
Peterborough,http://opendatacommunities.org/id/unitary-authority/peterborough,Peterborough City Council,Adult Services & Communities - Adults,Independent Sector Placements,Services,02/06/2017 00:00,30128871,1783.12,Revenue,Athena (Ashlynn Grange),Residential Care
Peterborough,http://opendatacommunities.org/id/unitary-authority/peterborough,Peterborough City Council,Adult Services & Communities - Adults,Independent Sector Placements,Services,02/06/2017 00:00,30128872,1443.48,Revenue,Athena (Ashlynn Grange),Residential Care
Peterborough,http://opendatacommunities.org/id/unitary-authority/peterborough,Peterborough City Council,Adult Services & Communities - Adults,Independent Sector Placements,Services,02/06/2017 00:00,30128873,1680.92,Revenue,Athena (Ashlynn Grange),Residential Care
Peterborough,http://opendatacommunities.org/id/unitary-authority/peterborough,Peterborough City Council,Adult Services & Communities - Adults,Independent Sector Placements,Services,02/06/2017 00:00,30128874,1542.08,Revenue,Athena (Ashlynn Grange),Residential Care
Peterborough,http://opendatacommunities.org/id/unitary-authority/peterborough,Peterborough City Council,Adult Services & Communities - Adults,Independent Sector Placements,Services,02/06/2017 00:00,30128875,1032.56,Revenue,Athena (Ashlynn Grange),Residential Care
Peterborough,http://opendatacommunities.org/id/unitary-authority/peterborough,Peterborough City Council,Adult Services & Communities - Adults,Independent Sector Placements,Services,02/06/2017 00:00,30128876,859.2,Revenue,Athena (Ashlynn Grange),Residential Care
Peterborough,http://opendatacommunities.org/id/unitary-authority/peterborough,Peterborough City Council,Adult Services & Communities - Adults,Independent Sector Placements,Services,02/06/2017 00:00,30128877,1576.24,Revenue,Athena (Ashlynn Grange),Residential Care
Peterborough,http://opendatacommunities.org/id/unitary-authority/peterborough,Peterborough City Council,Adult Services & Communities - Adults,Independent Sector Placements,Services,02/06/2017 00:00,30128878,1821.88,Revenue,Athena (Ashlynn Grange),Residential Care
Peterborough,http://opendatacommunities.org/id/unitary-authority/peterborough,Peterborough City Council,Adult Services & Communities - Adults,Independent Sector Placements,Services,02/06/2017 00:00,30128879,1776.72,Revenue,Athena (Ashlynn Grange),Residential Care
Peterborough,http://opendatacommunities.org/id/unitary-authority/peterborough,Peterborough City Council,Adult Services & Communities - Adults,Block Contracts,Third Party Payments,02/06/2017 00:00,30128880,1999.2,Revenue,Axiom Housing Association,Third Party Payments - Contract
Peterborough,http://opendatacommunities.org/id/unitary-authority/peterborough,Peterborough City Council,Adult Services & Communities - Adults,Independent Sector Placements,Services,02/06/2017 00:00,30128886,2305.92,Revenue,Athena (Ashlynn Grange),Residential Care
Peterborough,http://opendatacommunities.org/id/unitary-authority/peterborough,Peterborough City Council,Adult Services & Communities - Adults,Independent Sector Placements,Services,02/06/2017 00:00,30128888,921.52,Revenue,Athena (Ashlynn Grange),Residential Care
Peterborough,http://opendatacommunities.org/id/unitary-authority/peterborough,Peterborough City Council,Adult Services & Communities - Adults,Independent Sector Placements,Services,02/06/2017 00:00,30128890,547.33,Revenue,Athena (Ashlynn Grange),Residential Care
Peterborough,http://opendatacommunities.org/id/unitary-authority/peterborough,Peterborough City Council,Adult Services & Communities - Adults,Independent Sector Placements,Services,02/06/2017 00:00,30128905,2305.92,Revenue,Athena (Ashlynn Grange),Residential Care
Peterborough,http://opendatacommunities.org/id/unitary-authority/peterborough,Peterborough City Council,Adult Services & Communities - Adults,Independent Sector Placements,Services,02/06/2017 00:00,30128906,1775.12,Revenue,Athena (Ashlynn Grange),Residential Care
Peterborough,http://opendatacommunities.org/id/unitary-authority/peterborough,Peterborough City Council,Adult Services & Communities - Adults,Independent Sector Placements,Services,02/06/2017 00:00,30128909,1299.08,Revenue,Athena (Ashlynn Grange),Residential Care
Peterborough,http://opendatacommunities.org/id/unitary-authority/peterborough,Peterborough City Council,Adult Services & Communities - Adults,Independent Sector Placements,Services,02/06/2017 00:00,30128910,742.72,Revenue,Athena (Ashlynn Grange),Residential Care
Peterborough,http://opendatacommunities.org/id/unitary-authority/peterborough,Peterborough City Council,Adult Services & Communities - Adults,Independent Sector Placements,Services,02/06/2017 00:00,30128911,1579.84,Revenue,Athena (Ashlynn Grange),Residential Care
Peterborough,http://opendatacommunities.org/id/unitary-authority/peterborough,Peterborough City Council,Adult Services & Communities - Adults,Independent Sector Placements,Services,02/06/2017 00:00,30128912,2460,Revenue,Athena (Ashlynn Grange),Residential Care
Peterborough,http://opendatacommunities.org/id/unitary-authority/peterborough,Peterborough City Council,Adult Services & Communities - Adults,Independent Sector Placements,Services,02/06/2017 00:00,30128913,1209.28,Revenue,Athena (Ashlynn Grange),Residential Care
Peterborough,http://opendatacommunities.org/id/unitary-authority/peterborough,Peterborough City Council,Adult Services & Communities - Adults,Independent Sector Placements,Services,02/06/2017 00:00,30128914,1258.92,Revenue,Athena (Ashlynn Grange),Residential Care
Peterborough,http://opendatacommunities.org/id/unitary-authority/peterborough,Peterborough City Council,Adult Services & Communities - Adults,Independent Sector Placements,Services,02/06/2017 00:00,30128920,1178.6,Revenue,Augusta Care Ltd,Home Care
Peterborough,http://opendatacommunities.org/id/unitary-authority/peterborough,Peterborough City Council,Adult Services & Communities - Adults,Independent Sector Placements,Services,02/06/2017 00:00,30128930,1172.44,Revenue,Athena (Ashlynn Grange),Residential Care
Peterborough,http://opendatacommunities.org/id/unitary-authority/peterborough,Peterborough City Council,Adult Services & Communities - Adults,Independent Sector Placements,Services,02/06/2017 00:00,30128934,718.72,Revenue,Athena (Ashlynn Grange),Residential Care
Peterborough,http://opendatacommunities.org/id/unitary-authority/peterborough,Peterborough City Council,Adult Services & Communities - Adults,Independent Sector Placements,Services,02/06/2017 00:00,30128935,1703.28,Revenue,Athena (Ashlynn Grange),Residential Care
Peterborough,http://opendatacommunities.org/id/unitary-authority/peterborough,Peterborough City Council,Adult Services & Communities - Adults,Independent Sector Placements,Services,02/06/2017 00:00,30129024,1586,Revenue,Thera East Anglia,Day Care
Peterborough,http://opendatacommunities.org/id/unitary-authority/peterborough,Peterborough City Council,Adult Services & Communities - Adults,Independent Sector Placements,Services,02/06/2017 00:00,30129036,1024.04,Revenue,Oakhouse Homecare Cambs Ltd,Residential Care
Peterborough,http://opendatacommunities.org/id/unitary-authority/peterborough,Peterborough City Council,Adult Services & Communities - Adults,Independent Sector Placements,Services,02/06/2017 00:00,30129037,1167.08,Revenue,Oakhouse Homecare Cambs Ltd,Residential Care
Peterborough,http://opendatacommunities.org/id/unitary-authority/peterborough,Peterborough City Council,Adult Services & Communities - Adults,Independent Sector Placements,Services,02/06/2017 00:00,30129106,1593.2,Revenue,BUPA Care Homes,Residential Care
Peterborough,http://opendatacommunities.org/id/unitary-authority/peterborough,Peterborough City Council,Adult Services & Communities - Adults,Independent Sector Placements,Services,02/06/2017 00:00,30129107,2575,Revenue,BUPA Care Homes,Residential Care
Peterborough,http://opendatacommunities.org/id/unitary-authority/peterborough,Peterborough City Council,Adult Services & Communities - Adults,Independent Sector Placements,Services,02/06/2017 00:00,30129108,3175,Revenue,BUPA Care Homes,Residential Care
Peterborough,http://opendatacommunities.org/id/unitary-authority/peterborough,Peterborough City Council,Performance & Information,Performance & Information,Third Party Payments,02/06/2017 00:00,30129158,177444,Revenue,Cambridgeshire County Council,Third Party Payments - Contract
Peterborough,http://opendatacommunities.org/id/unitary-authority/peterborough,Peterborough City Council,Development and Construction,Building Control,Services,02/06/2017 00:00,30129183,816,Revenue,Ruck Consultancy Limited,Contract Services
Peterborough,http://opendatacommunities.org/id/unitary-authority/peterborough,Peterborough City Council,Chief Executive,Chief Executive,Services,02/06/2017 00:00,30129284,7547.82,Revenue,The Copyright Licencing Agency Ltd,Licences
Peterborough,http://opendatacommunities.org/id/unitary-authority/peterborough,Peterborough City Council,Chief Executive,Chief Executive,Services,02/06/2017 00:00,30129290,7547.82,Revenue,The Copyright Licencing Agency Ltd,Licences
Peterborough,http://opendatacommunities.org/id/unitary-authority/peterborough,Peterborough City Council,Adults and Communities - Communities,Housing and Health,Services,02/06/2017 00:00,30129308,2567,Revenue,Rawheat Heating & Plumbing Eng.,Contractors
Peterborough,http://opendatacommunities.org/id/unitary-authority/peterborough,Peterborough City Council,Business Management and Commercial Operations,Clare Lodge,Agency Staff,02/06/2017 00:00,30129383,1296,Revenue,Wrixon Care Services,External Temporary Staff
Peterborough,http://opendatacommunities.org/id/unitary-authority/peterborough,Peterborough City Council,Business Management and Commercial Operations,Clare Lodge,Agency Staff,02/06/2017 00:00,30129385,1448,Revenue,Wrixon Care Services,External Temporary Staff
Peterborough,http://opendatacommunities.org/id/unitary-authority/peterborough,Peterborough City Council,Business Management and Commercial Operations,Clare Lodge,Agency Staff,02/06/2017 00:00,30129401,2824,Revenue,Wrixon Care Services,External Temporary Staff
Peterborough,http://opendatacommunities.org/id/unitary-authority/peterborough,Peterborough City Council,Adults and Communities - Communities,Housing and Health,Services,02/06/2017 00:00,30129769,790.5,Revenue,Dave Elms Building & Maintenance,Contractors
Peterborough,http://opendatacommunities.org/id/unitary-authority/peterborough,Peterborough City Council,Adults and Communities - Communities,Housing and Health,Services,02/06/2017 00:00,30129858,655.06,Revenue,DA Rosalia Hotel,Homelessness Bed & Breakfast Costs
Peterborough,http://opendatacommunities.org/id/unitary-authority/peterborough,Peterborough City Council,Adults and Communities - Communities,Housing and Health,Services,02/06/2017 00:00,30129869,590.31,Revenue,DA Rosalia Hotel,Homelessness Bed & Breakfast Costs
Peterborough,http://opendatacommunities.org/id/unitary-authority/peterborough,Peterborough City Council,Adults and Communities - Communities,Housing and Health,Services,02/06/2017 00:00,30129877,525,Revenue,DA Rosalia Hotel,Homelessness Bed & Breakfast Costs
Peterborough,http://opendatacommunities.org/id/unitary-authority/peterborough,Peterborough City Council,Adults and Communities - Communities,Housing and Health,Services,02/06/2017 00:00,30129893,670.53,Revenue,DA Rosalia Hotel,Homelessness Bed & Breakfast Costs
Peterborough,http://opendatacommunities.org/id/unitary-authority/peterborough,Peterborough City Council,Adults and Communities - Communities,Housing and Health,Services,02/06/2017 00:00,30129894,655.06,Revenue,DA Rosalia Hotel,Homelessness Bed & Breakfast Costs
Peterborough,http://opendatacommunities.org/id/unitary-authority/peterborough,Peterborough City Council,Adults and Communities - Communities,Housing and Health,Services,02/06/2017 00:00,30129901,655.06,Revenue,DA Rosalia Hotel,Homelessness Bed & Breakfast Costs
Peterborough,http://opendatacommunities.org/id/unitary-authority/peterborough,Peterborough City Council,Adult Services & Communities - Adults,Independent Sector Placements,Services,02/06/2017 00:00,30129981,2392,Revenue,Richmond Fellowship,Residential Care
Peterborough,http://opendatacommunities.org/id/unitary-authority/peterborough,Peterborough City Council,Adult Services & Communities - Adults,Independent Sector Placements,Services,02/06/2017 00:00,30130092,795.2,Revenue,Augusta Care Ltd,Home Care
Peterborough,http://opendatacommunities.org/id/unitary-authority/peterborough,Peterborough City Council,Adult Services & Communities - Adults,Independent Sector Placements,Services,02/06/2017 00:00,30130093,-1504.2,Revenue,Augusta Care Ltd,Home Care
Peterborough,http://opendatacommunities.org/id/unitary-authority/peterborough,Peterborough City Council,Adult Services & Communities - Adults,Independent Sector Placements,Services,02/06/2017 00:00,30130095,-1200.2,Revenue,Augusta Care Ltd,Home Care
Peterborough,http://opendatacommunities.org/id/unitary-authority/peterborough,Peterborough City Council,Adult Services & Communities - Adults,Independent Sector Placements,Services,02/06/2017 00:00,30130096,-1072.1,Revenue,Augusta Care Ltd,Home Care
Peterborough,http://opendatacommunities.org/id/unitary-authority/peterborough,Peterborough City Council,Adult Services & Communities - Adults,Independent Sector Placements,Services,02/06/2017 00:00,30130097,645.3,Revenue,Augusta Care Ltd,Home Care
Peterborough,http://opendatacommunities.org/id/unitary-authority/peterborough,Peterborough City Council,Adult Services & Communities - Adults,Independent Sector Placements,Services,02/06/2017 00:00,30130100,-531.3,Revenue,Augusta Care Ltd,Home Care
Peterborough,http://opendatacommunities.org/id/unitary-authority/peterborough,Peterborough City Council,Adult Services & Communities - Adults,Independent Sector Placements,Services,02/06/2017 00:00,30130101,-1504.2,Revenue,Augusta Care Ltd,Home Care
Peterborough,http://opendatacommunities.org/id/unitary-authority/peterborough,Peterborough City Council,Adult Services & Communities - Adults,Independent Sector Placements,Services,02/06/2017 00:00,30130102,-1355.1,Revenue,Augusta Care Ltd,Home Care
Peterborough,http://opendatacommunities.org/id/unitary-authority/peterborough,Peterborough City Council,Adult Services & Communities - Adults,Independent Sector Placements,Services,02/06/2017 00:00,30130103,-1235,Revenue,Augusta Care Ltd,Home Care
Peterborough,http://opendatacommunities.org/id/unitary-authority/peterborough,Peterborough City Council,Corporate Property,Office Accomodation,Repair & Maintenance of Buildings,02/06/2017 00:00,30130340,4141.65,Revenue,Baker Perkins Ltd,Service Charges - Premises
Peterborough,http://opendatacommunities.org/id/unitary-authority/peterborough,Peterborough City Council,Children's & Safeguarding,Children's Social Care,Agency Staff,02/06/2017 00:00,30130655,4758.83,Revenue,Service Care Solutions Ltd,External Temporary Staff
Peterborough,http://opendatacommunities.org/id/unitary-authority/peterborough,Peterborough City Council,Children's & Safeguarding,Children's Social Care,Agency Staff,02/06/2017 00:00,30130657,-4758.83,Revenue,Service Care Solutions Ltd,External Temporary Staff
Peterborough,http://opendatacommunities.org/id/unitary-authority/peterborough,Peterborough City Council,Adult Services & Communities - Adults,Independent Sector Placements,Services,02/06/2017 00:00,30130795,2313.92,Revenue,Athena (Ashlynn Grange),Residential Care
Peterborough,http://opendatacommunities.org/id/unitary-authority/peterborough,Peterborough City Council,Adults and Communities - Communities,Housing and Health,Services,02/06/2017 00:00,30130890,507.5,Revenue,Eastfield Guesthouse,Homelessness Bed & Breakfast Costs
Peterborough,http://opendatacommunities.org/id/unitary-authority/peterborough,Peterborough City Council,Adults and Communities - Communities,Housing and Health,Services,02/06/2017 00:00,30130895,507.5,Revenue,Eastfield Guesthouse,Homelessness Bed & Breakfast Costs
Peterborough,http://opendatacommunities.org/id/unitary-authority/peterborough,Peterborough City Council,Adults and Communities - Communities,Housing and Health,Services,02/06/2017 00:00,30130905,525,Revenue,Eastfield Guesthouse,Homelessness Bed & Breakfast Costs
Peterborough,http://opendatacommunities.org/id/unitary-authority/peterborough,Peterborough City Council,Adults and Communities - Communities,Housing and Health,Services,02/06/2017 00:00,30130906,525,Revenue,Eastfield Guesthouse,Homelessness Bed & Breakfast Costs
Peterborough,http://opendatacommunities.org/id/unitary-authority/peterborough,Peterborough City Council,Adults and Communities - Communities,Housing and Health,Services,02/06/2017 00:00,30130909,525,Revenue,Eastfield Guesthouse,Homelessness Bed & Breakfast Costs
Peterborough,http://opendatacommunities.org/id/unitary-authority/peterborough,Peterborough City Council,Adults and Communities - Communities,Housing and Health,Services,02/06/2017 00:00,30130910,525,Revenue,Eastfield Guesthouse,Homelessness Bed & Breakfast Costs
Peterborough,http://opendatacommunities.org/id/unitary-authority/peterborough,Peterborough City Council,Adults and Communities - Communities,Housing and Health,Services,02/06/2017 00:00,30130911,525,Revenue,Eastfield Guesthouse,Homelessness Bed & Breakfast Costs
Peterborough,http://opendatacommunities.org/id/unitary-authority/peterborough,Peterborough City Council,Adults and Communities - Communities,Housing and Health,Services,02/06/2017 00:00,30130915,525,Revenue,Eastfield Guesthouse,Homelessness Bed & Breakfast Costs
Peterborough,http://opendatacommunities.org/id/unitary-authority/peterborough,Peterborough City Council,Adults and Communities - Communities,Housing and Health,Services,02/06/2017 00:00,30130916,525,Revenue,Eastfield Guesthouse,Homelessness Bed & Breakfast Costs
Peterborough,http://opendatacommunities.org/id/unitary-authority/peterborough,Peterborough City Council,Corporate,Corporate,Non Revenue,02/06/2017 00:00,30130937,1320,Capital,M J Greaves,Grant Payment
Peterborough,http://opendatacommunities.org/id/unitary-authority/peterborough,Peterborough City Council,Adults and Communities - Communities,Housing and Health,Services,02/06/2017 00:00,30130939,650,Revenue,Belvoir Property Management,Financial Assistance
Peterborough,http://opendatacommunities.org/id/unitary-authority/peterborough,Peterborough City Council,Adults and Communities - Communities,Housing and Health,Services,02/06/2017 00:00,30131302,595,Revenue,AGT Property Managment Ltd,Financial Assistance
Peterborough,http://opendatacommunities.org/id/unitary-authority/peterborough,Peterborough City Council,Adult Services & Communities - Adults,Independent Sector Placements,Services,02/06/2017 00:00,30131419,561.5,Revenue,COMFORCARE SENIOR SERVICES,Home Care
Peterborough,http://opendatacommunities.org/id/unitary-authority/peterborough,Peterborough City Council,Adult Services & Communities - Adults,Independent Sector Placements,Services,02/06/2017 00:00,30131421,1476.6,Revenue,Cozy Care,Home Care
Peterborough,http://opendatacommunities.org/id/unitary-authority/peterborough,Peterborough City Council,Adult Services & Communities - Adults,Independent Sector Placements,Services,02/06/2017 00:00,30131424,966,Revenue,Cozy Care,Home Care
Peterborough,http://opendatacommunities.org/id/unitary-authority/peterborough,Peterborough City Council,Adult Services & Communities - Adults,Independent Sector Placements,Services,02/06/2017 00:00,30131425,1162.65,Revenue,Cozy Care,Home Care
Peterborough,http://opendatacommunities.org/id/unitary-authority/peterborough,Peterborough City Council,Westcombe Engineering,Westcombe Engineering,"Tools, Equipment, Furniture & Materials",02/06/2017 00:00,30131461,939.85,Revenue,Carillon Industrial Services Ltd,Equipment Purchase
Peterborough,http://opendatacommunities.org/id/unitary-authority/peterborough,Peterborough City Council,Business Management and Commercial Operations,Early Years & Quality Improvement,Services,02/06/2017 00:00,30131495,51084.53,Revenue,St Josephs Day Nursery,Grant Payment
Peterborough,http://opendatacommunities.org/id/unitary-authority/peterborough,Peterborough City Council,Children's & Safeguarding,Access to Resources & Specialist Commissioning,Services,02/06/2017 00:00,30131496,1381.84,Revenue,Casterton Business & Enterprise College,Out Of Area Education Costs
Peterborough,http://opendatacommunities.org/id/unitary-authority/peterborough,Peterborough City Council,Children's & Safeguarding,Access to Resources & Specialist Commissioning,Services,02/06/2017 00:00,30131497,994.16,Revenue,Casterton Business & Enterprise College,Out Of Area Education Costs
Peterborough,http://opendatacommunities.org/id/unitary-authority/peterborough,Peterborough City Council,Children's & Safeguarding,Children's Social Care,Agency Staff,02/06/2017 00:00,30131563,2631.08,Revenue,Service Care Solutions Ltd,External Temporary Staff
Peterborough,http://opendatacommunities.org/id/unitary-authority/peterborough,Peterborough City Council,Amey Peterborough & Waste Management,Waste & Operational Svs Mgmt,Services,02/06/2017 00:00,30131608,5290.7,Revenue,NPS Peterborough Ltd,Consultants Fees
Peterborough,http://opendatacommunities.org/id/unitary-authority/peterborough,Peterborough City Council,Peterborough Highway Services,Highway Services - HoS,Agency Staff,02/06/2017 00:00,30131613,815.52,Revenue,Reed Specialist Recruitment Limited,External Temporary Staff
Peterborough,http://opendatacommunities.org/id/unitary-authority/peterborough,Peterborough City Council,Adult Services & Communities - Adults,Independent Sector Placements,Services,02/06/2017 00:00,8000089624,3409.32,Revenue,Augusta Care Ltd,Home Care
Peterborough,http://opendatacommunities.org/id/unitary-authority/peterborough,Peterborough City Council,Adult Services & Communities - Adults,Independent Sector Placements,Services,02/06/2017 00:00,8000089625,3497.36,Revenue,Augusta Care Ltd,Home Care
Peterborough,http://opendatacommunities.org/id/unitary-authority/peterborough,Peterborough City Council,Adult Services & Communities - Adults,Independent Sector Placements,Services,02/06/2017 00:00,8000089626,2380.12,Revenue,Augusta Care Ltd,Home Care
Peterborough,http://opendatacommunities.org/id/unitary-authority/peterborough,Peterborough City Council,Adult Services & Communities - Adults,Independent Sector Placements,Services,02/06/2017 00:00,8000089627,3017.4,Revenue,Augusta Care Ltd,Home Care
Peterborough,http://opendatacommunities.org/id/unitary-authority/peterborough,Peterborough City Council,Adult Services & Communities - Adults,Independent Sector Placements,Services,02/06/2017 00:00,8000089629,681.6,Revenue,Augusta Care Ltd,Home Care
Peterborough,http://opendatacommunities.org/id/unitary-authority/peterborough,Peterborough City Council,Adult Services & Communities - Adults,Independent Sector Placements,Services,02/06/2017 00:00,8000089630,1902.8,Revenue,Augusta Care Ltd,Home Care
Peterborough,http://opendatacommunities.org/id/unitary-authority/peterborough,Peterborough City Council,Adult Services & Communities - Adults,Independent Sector Placements,Services,02/06/2017 00:00,8000089631,6337.36,Revenue,Augusta Care Ltd,Home Care
Peterborough,http://opendatacommunities.org/id/unitary-authority/peterborough,Peterborough City Council,Adult Services & Communities - Adults,Independent Sector Placements,Services,02/06/2017 00:00,8000089632,2446.56,Revenue,Augusta Care Ltd,Home Care
Peterborough,http://opendatacommunities.org/id/unitary-authority/peterborough,Peterborough City Council,Adult Services & Communities - Adults,Independent Sector Placements,Services,02/06/2017 00:00,8000089633,3882.8,Revenue,Augusta Care Ltd,Home Care
Peterborough,http://opendatacommunities.org/id/unitary-authority/peterborough,Peterborough City Council,Adult Services & Communities - Adults,Independent Sector Placements,Services,02/06/2017 00:00,8000089634,2746.8,Revenue,Augusta Care Ltd,Home Care
Peterborough,http://opendatacommunities.org/id/unitary-authority/peterborough,Peterborough City Council,Adult Services & Communities - Adults,Independent Sector Placements,Services,02/06/2017 00:00,8000089635,1400.12,Revenue,Augusta Care Ltd,Home Care
Peterborough,http://opendatacommunities.org/id/unitary-authority/peterborough,Peterborough City Council,Adult Services & Communities - Adults,Independent Sector Placements,Services,02/06/2017 00:00,8000089636,3436.92,Revenue,Augusta Care Ltd,Home Care
Peterborough,http://opendatacommunities.org/id/unitary-authority/peterborough,Peterborough City Council,Adult Services & Communities - Adults,Independent Sector Placements,Services,02/06/2017 00:00,8000089637,1343.32,Revenue,Augusta Care Ltd,Home Care
Peterborough,http://opendatacommunities.org/id/unitary-authority/peterborough,Peterborough City Council,Adult Services & Communities - Adults,Independent Sector Placements,Services,02/06/2017 00:00,8000089638,2862.72,Revenue,Augusta Care Ltd,Home Care
Peterborough,http://opendatacommunities.org/id/unitary-authority/peterborough,Peterborough City Council,Adult Services & Communities - Adults,Independent Sector Placements,Services,02/06/2017 00:00,8000089639,5180.12,Revenue,Augusta Care Ltd,Home Care
Peterborough,http://opendatacommunities.org/id/unitary-authority/peterborough,Peterborough City Council,Adult Services & Communities - Adults,Independent Sector Placements,Services,02/06/2017 00:00,8000089640,3645.96,Revenue,Augusta Care Ltd,Home Care
Peterborough,http://opendatacommunities.org/id/unitary-authority/peterborough,Peterborough City Council,Adult Services & Communities - Adults,Independent Sector Placements,Services,02/06/2017 00:00,8000089641,3818.84,Revenue,Augusta Care Ltd,Home Care
Peterborough,http://opendatacommunities.org/id/unitary-authority/peterborough,Peterborough City Council,Adult Services & Communities - Adults,Independent Sector Placements,Services,02/06/2017 00:00,8000089642,4493.4,Revenue,Augusta Care Ltd,Home Care
Peterborough,http://opendatacommunities.org/id/unitary-authority/peterborough,Peterborough City Council,Adult Services & Communities - Adults,Independent Sector Placements,Services,02/06/2017 00:00,8000089643,4607,Revenue,Augusta Care Ltd,Home Care
Peterborough,http://opendatacommunities.org/id/unitary-authority/peterborough,Peterborough City Council,Adult Services & Communities - Adults,Independent Sector Placements,Services,02/06/2017 00:00,8000089644,3420.4,Revenue,Augusta Care Ltd,Home Care
Peterborough,http://opendatacommunities.org/id/unitary-authority/peterborough,Peterborough City Council,Adult Services & Communities - Adults,Independent Sector Placements,Services,02/06/2017 00:00,8000089645,2087.4,Revenue,Augusta Care Ltd,Home Care
Peterborough,http://opendatacommunities.org/id/unitary-authority/peterborough,Peterborough City Council,Adult Services & Communities - Adults,Independent Sector Placements,Services,02/06/2017 00:00,8000089646,4820,Revenue,Augusta Care Ltd,Home Care
Peterborough,http://opendatacommunities.org/id/unitary-authority/peterborough,Peterborough City Council,Adult Services & Communities - Adults,Independent Sector Placements,Services,02/06/2017 00:00,8000089647,1590.4,Revenue,Augusta Care Ltd,Home Care
Peterborough,http://opendatacommunities.org/id/unitary-authority/peterborough,Peterborough City Council,Adult Services & Communities - Adults,Independent Sector Placements,Services,02/06/2017 00:00,8000089648,1590.4,Revenue,Augusta Care Ltd,Home Care
Peterborough,http://opendatacommunities.org/id/unitary-authority/peterborough,Peterborough City Council,Adult Services & Communities - Adults,Independent Sector Placements,Services,02/06/2017 00:00,8000089649,4252,Revenue,Augusta Care Ltd,Home Care
Peterborough,http://opendatacommunities.org/id/unitary-authority/peterborough,Peterborough City Council,Adult Services & Communities - Adults,Independent Sector Placements,Services,02/06/2017 00:00,8000089650,4244.04,Revenue,Augusta Care Ltd,Home Care
Peterborough,http://opendatacommunities.org/id/unitary-authority/peterborough,Peterborough City Council,Adult Services & Communities - Adults,Independent Sector Placements,Services,02/06/2017 00:00,8000089651,547,Revenue,Augusta Care Ltd,Home Care
Peterborough,http://opendatacommunities.org/id/unitary-authority/peterborough,Peterborough City Council,Adult Services & Communities - Adults,Independent Sector Placements,Services,02/06/2017 00:00,8000089652,831,Revenue,Augusta Care Ltd,Home Care
Peterborough,http://opendatacommunities.org/id/unitary-authority/peterborough,Peterborough City Council,Adult Services & Communities - Adults,Independent Sector Placements,Services,02/06/2017 00:00,8000089655,1972,Revenue,Augusta Care Ltd,Home Care
Peterborough,http://opendatacommunities.org/id/unitary-authority/peterborough,Peterborough City Council,Adult Services & Communities - Adults,Independent Sector Placements,Services,02/06/2017 00:00,8000089656,4402.52,Revenue,Augusta Care Ltd,Home Care
Peterborough,http://opendatacommunities.org/id/unitary-authority/peterborough,Peterborough City Council,Adult Services & Communities - Adults,Independent Sector Placements,Services,02/06/2017 00:00,8000089657,653.2,Revenue,Augusta Care Ltd,Home Care
Peterborough,http://opendatacommunities.org/id/unitary-authority/peterborough,Peterborough City Council,Adult Services & Communities - Adults,Independent Sector Placements,Services,02/06/2017 00:00,8000089659,1022.4,Revenue,Augusta Care Ltd,Home Care
Peterborough,http://opendatacommunities.org/id/unitary-authority/peterborough,Peterborough City Council,Adult Services & Communities - Adults,Independent Sector Placements,Services,02/06/2017 00:00,8000089660,7481.6,Revenue,Augusta Care Ltd,Home Care
Peterborough,http://opendatacommunities.org/id/unitary-authority/peterborough,Peterborough City Council,Adult Services & Communities - Adults,Independent Sector Placements,Services,02/06/2017 00:00,8000089661,7084,Revenue,Augusta Care Ltd,Home Care
Peterborough,http://opendatacommunities.org/id/unitary-authority/peterborough,Peterborough City Council,Adult Services & Communities - Adults,Independent Sector Placements,Services,02/06/2017 00:00,8000089662,823.6,Revenue,Augusta Care Ltd,Home Care
Peterborough,http://opendatacommunities.org/id/unitary-authority/peterborough,Peterborough City Council,Adult Services & Communities - Adults,Independent Sector Placements,Services,02/06/2017 00:00,8000089664,3388.32,Revenue,Augusta Care Ltd,Home Care
Peterborough,http://opendatacommunities.org/id/unitary-authority/peterborough,Peterborough City Council,Adult Services & Communities - Adults,Independent Sector Placements,Services,02/06/2017 00:00,8000089665,11132.8,Revenue,Augusta Care Ltd,Home Care
Peterborough,http://opendatacommunities.org/id/unitary-authority/peterborough,Peterborough City Council,Adult Services & Communities - Adults,Independent Sector Placements,Services,02/06/2017 00:00,8000089666,1604.6,Revenue,Augusta Care Ltd,Home Care
Peterborough,http://opendatacommunities.org/id/unitary-authority/peterborough,Peterborough City Council,Adult Services & Communities - Adults,Independent Sector Placements,Services,02/06/2017 00:00,8000089667,4157.16,Revenue,Augusta Care Ltd,Home Care
Peterborough,http://opendatacommunities.org/id/unitary-authority/peterborough,Peterborough City Council,Adult Services & Communities - Adults,Independent Sector Placements,Services,02/06/2017 00:00,8000089668,3385.8,Revenue,Augusta Care Ltd,Home Care
Peterborough,http://opendatacommunities.org/id/unitary-authority/peterborough,Peterborough City Council,Adult Services & Communities - Adults,Independent Sector Placements,Services,02/06/2017 00:00,8000089669,14660.4,Revenue,Augusta Care Ltd,Home Care
Peterborough,http://opendatacommunities.org/id/unitary-authority/peterborough,Peterborough City Council,Adult Services & Communities - Adults,Independent Sector Placements,Services,02/06/2017 00:00,8000089670,681.6,Revenue,Augusta Care Ltd,Home Care
Peterborough,http://opendatacommunities.org/id/unitary-authority/peterborough,Peterborough City Council,Adult Services & Communities - Adults,Independent Sector Placements,Services,02/06/2017 00:00,8000089672,7057.4,Revenue,Augusta Care Ltd,Home Care
Peterborough,http://opendatacommunities.org/id/unitary-authority/peterborough,Peterborough City Council,Adult Services & Communities - Adults,Independent Sector Placements,Services,02/06/2017 00:00,8000089681,733.25,Revenue,COMFORCARE SENIOR SERVICES,Home Care
Peterborough,http://opendatacommunities.org/id/unitary-authority/peterborough,Peterborough City Council,Adult Services & Communities - Adults,Independent Sector Placements,Services,02/06/2017 00:00,8000089685,843,Revenue,COMFORCARE SENIOR SERVICES,Home Care
Peterborough,http://opendatacommunities.org/id/unitary-authority/peterborough,Peterborough City Council,Adult Services & Communities - Adults,Independent Sector Placements,Services,02/06/2017 00:00,8000089687,2931.25,Revenue,COMFORCARE SENIOR SERVICES,Home Care
Peterborough,http://opendatacommunities.org/id/unitary-authority/peterborough,Peterborough City Council,Adult Services & Communities - Adults,Independent Sector Placements,Services,02/06/2017 00:00,8000089688,788.5,Revenue,COMFORCARE SENIOR SERVICES,Home Care
Peterborough,http://opendatacommunities.org/id/unitary-authority/peterborough,Peterborough City Council,Adult Services & Communities - Adults,Independent Sector Placements,Services,02/06/2017 00:00,8000089689,675,Revenue,COMFORCARE SENIOR SERVICES,Home Care
Peterborough,http://opendatacommunities.org/id/unitary-authority/peterborough,Peterborough City Council,Adult Services & Communities - Adults,Independent Sector Placements,Services,02/06/2017 00:00,8000089690,556,Revenue,COMFORCARE SENIOR SERVICES,Home Care
Peterborough,http://opendatacommunities.org/id/unitary-authority/peterborough,Peterborough City Council,Adult Services & Communities - Adults,Independent Sector Placements,Services,02/06/2017 00:00,8000089691,1470,Revenue,COMFORCARE SENIOR SERVICES,Home Care
Peterborough,http://opendatacommunities.org/id/unitary-authority/peterborough,Peterborough City Council,Adult Services & Communities - Adults,Independent Sector Placements,Services,02/06/2017 00:00,8000089697,1881.75,Revenue,COMFORCARE SENIOR SERVICES,Home Care
Peterborough,http://opendatacommunities.org/id/unitary-authority/peterborough,Peterborough City Council,Adult Services & Communities - Adults,Independent Sector Placements,Services,02/06/2017 00:00,8000089698,972.25,Revenue,COMFORCARE SENIOR SERVICES,Home Care
Peterborough,http://opendatacommunities.org/id/unitary-authority/peterborough,Peterborough City Council,Adult Services & Communities - Adults,Independent Sector Placements,Services,02/06/2017 00:00,8000089699,929.25,Revenue,COMFORCARE SENIOR SERVICES,Home Care
Peterborough,http://opendatacommunities.org/id/unitary-authority/peterborough,Peterborough City Council,Adult Services & Communities - Adults,Independent Sector Placements,Services,02/06/2017 00:00,8000089701,2094.25,Revenue,COMFORCARE SENIOR SERVICES,Home Care
Peterborough,http://opendatacommunities.org/id/unitary-authority/peterborough,Peterborough City Council,Adult Services & Communities - Adults,Independent Sector Placements,Services,02/06/2017 00:00,8000089703,830,Revenue,COMFORCARE SENIOR SERVICES,Home Care
Peterborough,http://opendatacommunities.org/id/unitary-authority/peterborough,Peterborough City Council,Adult Services & Communities - Adults,Independent Sector Placements,Services,02/06/2017 00:00,8000089704,977,Revenue,COMFORCARE SENIOR SERVICES,Home Care
Peterborough,http://opendatacommunities.org/id/unitary-authority/peterborough,Peterborough City Council,Adult Services & Communities - Adults,Independent Sector Placements,Services,02/06/2017 00:00,8000089706,897.25,Revenue,COMFORCARE SENIOR SERVICES,Home Care
Peterborough,http://opendatacommunities.org/id/unitary-authority/peterborough,Peterborough City Council,Adult Services & Communities - Adults,Independent Sector Placements,Services,02/06/2017 00:00,8000089707,1202,Revenue,COMFORCARE SENIOR SERVICES,Home Care
Peterborough,http://opendatacommunities.org/id/unitary-authority/peterborough,Peterborough City Council,Adult Services & Communities - Adults,Independent Sector Placements,Services,02/06/2017 00:00,8000089710,1305.5,Revenue,COMFORCARE SENIOR SERVICES,Home Care
Peterborough,http://opendatacommunities.org/id/unitary-authority/peterborough,Peterborough City Council,Adult Services & Communities - Adults,Independent Sector Placements,Services,02/06/2017 00:00,8000089714,749.5,Revenue,COMFORCARE SENIOR SERVICES,Home Care
Peterborough,http://opendatacommunities.org/id/unitary-authority/peterborough,Peterborough City Council,Adult Services & Communities - Adults,Independent Sector Placements,Services,02/06/2017 00:00,8000089715,620.5,Revenue,COMFORCARE SENIOR SERVICES,Home Care
Peterborough,http://opendatacommunities.org/id/unitary-authority/peterborough,Peterborough City Council,Adult Services & Communities - Adults,Independent Sector Placements,Services,02/06/2017 00:00,8000089716,620.5,Revenue,COMFORCARE SENIOR SERVICES,Home Care
Peterborough,http://opendatacommunities.org/id/unitary-authority/peterborough,Peterborough City Council,Adult Services & Communities - Adults,Independent Sector Placements,Services,02/06/2017 00:00,8000089718,624,Revenue,COMFORCARE SENIOR SERVICES,Home Care
Peterborough,http://opendatacommunities.org/id/unitary-authority/peterborough,Peterborough City Council,Adult Services & Communities - Adults,Independent Sector Placements,Services,02/06/2017 00:00,8000089720,1869.25,Revenue,COMFORCARE SENIOR SERVICES,Home Care
Peterborough,http://opendatacommunities.org/id/unitary-authority/peterborough,Peterborough City Council,Adult Services & Communities - Adults,Independent Sector Placements,Services,02/06/2017 00:00,8000089721,664.25,Revenue,COMFORCARE SENIOR SERVICES,Home Care
Peterborough,http://opendatacommunities.org/id/unitary-authority/peterborough,Peterborough City Council,Adult Services & Communities - Adults,Independent Sector Placements,Services,02/06/2017 00:00,8000089722,649.75,Revenue,COMFORCARE SENIOR SERVICES,Home Care
Peterborough,http://opendatacommunities.org/id/unitary-authority/peterborough,Peterborough City Council,Adult Services & Communities - Adults,Independent Sector Placements,Services,02/06/2017 00:00,8000089724,529,Revenue,COMFORCARE SENIOR SERVICES,Home Care
Peterborough,http://opendatacommunities.org/id/unitary-authority/peterborough,Peterborough City Council,Adult Services & Communities - Adults,Independent Sector Placements,Services,02/06/2017 00:00,8000089726,2329.75,Revenue,COMFORCARE SENIOR SERVICES,Home Care
Peterborough,http://opendatacommunities.org/id/unitary-authority/peterborough,Peterborough City Council,Adult Services & Communities - Adults,Independent Sector Placements,Services,02/06/2017 00:00,8000089918,1576.2,Revenue,Augusta Care Ltd,Home Care
Peterborough,http://opendatacommunities.org/id/unitary-authority/peterborough,Peterborough City Council,Adult Services & Communities - Adults,Independent Sector Placements,Services,02/06/2017 00:00,8000089919,568,Revenue,Augusta Care Ltd,Home Care
Peterborough,http://opendatacommunities.org/id/unitary-authority/peterborough,Peterborough City Council,Adult Services & Communities - Adults,Independent Sector Placements,Services,02/06/2017 00:00,8000090299,1469.5,Revenue,COMFORCARE SENIOR SERVICES,Home Care
Peterborough,http://opendatacommunities.org/id/unitary-authority/peterborough,Peterborough City Council,Children's & Safeguarding,Access to Resources & Specialist Commissioning,Services,05/06/2017 00:00,30124475,13684.2,Revenue,Horizon Care & Education Group,Boarding Out Allowances
Peterborough,http://opendatacommunities.org/id/unitary-authority/peterborough,Peterborough City Council,Adult Services & Communities - Adults,Quality Assurance,Services,05/06/2017 00:00,30124634,524.67,Revenue,Royal Mail,Postage
Peterborough,http://opendatacommunities.org/id/unitary-authority/peterborough,Peterborough City Council,Education,Pupil Referral Unit,Contract Hire and Operating Leases,05/06/2017 00:00,30128570,940,Revenue,A2B Euro Cars,Hired Transport
Peterborough,http://opendatacommunities.org/id/unitary-authority/peterborough,Peterborough City Council,Westcombe Engineering,Westcombe Engineering,Services,05/06/2017 00:00,30128978,14876,Revenue,Measurement Solutions Ltd,Computer Software
Peterborough,http://opendatacommunities.org/id/unitary-authority/peterborough,Peterborough City Council,Adult Services & Communities - Adults,Independent Sector Placements,Services,05/06/2017 00:00,30129081,1342,Revenue,Thera East Anglia,Day Care
Peterborough,http://opendatacommunities.org/id/unitary-authority/peterborough,Peterborough City Council,Adult Services & Communities - Adults,Independent Sector Placements,Services,05/06/2017 00:00,30129111,1629.32,Revenue,BUPA Care Homes,Residential Care
Peterborough,http://opendatacommunities.org/id/unitary-authority/peterborough,Peterborough City Council,Adult Services & Communities - Adults,Independent Sector Placements,Services,05/06/2017 00:00,30129135,1586,Revenue,Thera East Anglia,Day Care
Peterborough,http://opendatacommunities.org/id/unitary-authority/peterborough,Peterborough City Council,Adult Services & Communities - Adults,Independent Sector Placements,Services,05/06/2017 00:00,30129137,819,Revenue,Thera East Anglia,Day Care
Peterborough,http://opendatacommunities.org/id/unitary-authority/peterborough,Peterborough City Council,Adult Services & Communities - Adults,Independent Sector Placements,Services,05/06/2017 00:00,30129227,1140.16,Revenue,St Georges Glatton Hall,Residential Care
Peterborough,http://opendatacommunities.org/id/unitary-authority/peterborough,Peterborough City Council,Adult Services & Communities - Adults,Independent Sector Placements,Services,05/06/2017 00:00,30129338,503.7,Revenue,Cross Keys Homes,Home Care
Peterborough,http://opendatacommunities.org/id/unitary-authority/peterborough,Peterborough City Council,Peterborough Highway Services,Transport & Infrastructure Commissioning,Services,05/06/2017 00:00,30129340,583,Revenue,UK Power Networks (operations) Ltd,Contractors
Peterborough,http://opendatacommunities.org/id/unitary-authority/peterborough,Peterborough City Council,Peterborough Highway Services,Transport & Infrastructure Commissioning,Services,05/06/2017 00:00,30129343,583,Revenue,UK Power Networks (operations) Ltd,Contractors
Peterborough,http://opendatacommunities.org/id/unitary-authority/peterborough,Peterborough City Council,Children's & Safeguarding,Adult & Children Safeguarding Board,Interview & Training Expenses,05/06/2017 00:00,30129379,650,Revenue,AJ Exclusive Events,Training
Peterborough,http://opendatacommunities.org/id/unitary-authority/peterborough,Peterborough City Council,Business Management and Commercial Operations,Clare Lodge,Agency Staff,05/06/2017 00:00,30129386,528,Revenue,Wrixon Care Services,External Temporary Staff
Peterborough,http://opendatacommunities.org/id/unitary-authority/peterborough,Peterborough City Council,Business Management and Commercial Operations,Commissioning,Services,05/06/2017 00:00,30129388,1690,Revenue,PSLA,Grant Payment
Peterborough,http://opendatacommunities.org/id/unitary-authority/peterborough,Peterborough City Council,Business Management and Commercial Operations,Commissioning,Services,05/06/2017 00:00,30129389,633.75,Revenue,Peterborough Regional College,Grant Payment
Peterborough,http://opendatacommunities.org/id/unitary-authority/peterborough,Peterborough City Council,Business Management and Commercial Operations,Clare Lodge,Agency Staff,05/06/2017 00:00,30129397,2384,Revenue,Wrixon Care Services,External Temporary Staff
Peterborough,http://opendatacommunities.org/id/unitary-authority/peterborough,Peterborough City Council,Various,Various,Services,05/06/2017 00:00,30129424,1376.15,Revenue,Whistl UK Ltd,Postage
Peterborough,http://opendatacommunities.org/id/unitary-authority/peterborough,Peterborough City Council,Children's & Safeguarding,Child Health,Repair & Maintenance of Buildings,05/06/2017 00:00,30129483,690.94,Revenue,Adcock Refrig/air Conditioning Ltd,Premises Maintenance
Peterborough,http://opendatacommunities.org/id/unitary-authority/peterborough,Peterborough City Council,Adult Services & Communities - Adults,Independent Sector Placements,Services,05/06/2017 00:00,30129604,2842.2,Revenue,Alysia Caring Ltd T/a Cherry Blossom care Home,Residential Care
Peterborough,http://opendatacommunities.org/id/unitary-authority/peterborough,Peterborough City Council,Adult Services & Communities - Adults,Independent Sector Placements,Services,05/06/2017 00:00,30129607,3357.4,Revenue,Alysia Caring Ltd T/a Cherry Blossom care Home,Residential Care
Peterborough,http://opendatacommunities.org/id/unitary-authority/peterborough,Peterborough City Council,Adult Services & Communities - Adults,Independent Sector Placements,Services,05/06/2017 00:00,30129612,3600,Revenue,Alysia Caring Ltd T/a Cherry Blossom care Home,Residential Care
Peterborough,http://opendatacommunities.org/id/unitary-authority/peterborough,Peterborough City Council,Adult Services & Communities - Adults,Independent Sector Placements,Services,05/06/2017 00:00,30129730,3154.2,Revenue,Alysia Caring Ltd T/a Cherry Blossom care Home,Residential Care
Peterborough,http://opendatacommunities.org/id/unitary-authority/peterborough,Peterborough City Council,Adult Services & Communities - Adults,Independent Sector Placements,Services,05/06/2017 00:00,30129731,3100,Revenue,Alysia Caring Ltd T/a Cherry Blossom care Home,Residential Care
Peterborough,http://opendatacommunities.org/id/unitary-authority/peterborough,Peterborough City Council,Adult Services & Communities - Adults,Independent Sector Placements,Services,05/06/2017 00:00,30129732,1013.44,Revenue,Alysia Caring Ltd T/a Cherry Blossom care Home,Residential Care
Peterborough,http://opendatacommunities.org/id/unitary-authority/peterborough,Peterborough City Council,Adult Services & Communities - Adults,Independent Sector Placements,Services,05/06/2017 00:00,30129733,2909.28,Revenue,Alysia Caring Ltd T/a Cherry Blossom care Home,Residential Care
Peterborough,http://opendatacommunities.org/id/unitary-authority/peterborough,Peterborough City Council,Adult Services & Communities - Adults,Independent Sector Placements,Services,05/06/2017 00:00,30129734,1127.32,Revenue,Alysia Caring Ltd T/a Cherry Blossom care Home,Residential Care
Peterborough,http://opendatacommunities.org/id/unitary-authority/peterborough,Peterborough City Council,Adult Services & Communities - Adults,Independent Sector Placements,Services,05/06/2017 00:00,30129735,2467.48,Revenue,Alysia Caring Ltd T/a Cherry Blossom care Home,Residential Care
Peterborough,http://opendatacommunities.org/id/unitary-authority/peterborough,Peterborough City Council,Adult Services & Communities - Adults,Independent Sector Placements,Services,05/06/2017 00:00,30129738,2128.92,Revenue,Alysia Caring Ltd T/a Cherry Blossom care Home,Residential Care
Peterborough,http://opendatacommunities.org/id/unitary-authority/peterborough,Peterborough City Council,Adult Services & Communities - Adults,Independent Sector Placements,Services,05/06/2017 00:00,30129740,2952.8,Revenue,Alysia Caring Ltd T/a Cherry Blossom care Home,Residential Care
Peterborough,http://opendatacommunities.org/id/unitary-authority/peterborough,Peterborough City Council,Adult Services & Communities - Adults,Independent Sector Placements,Services,05/06/2017 00:00,30129741,3100,Revenue,Alysia Caring Ltd T/a Cherry Blossom care Home,Residential Care
Peterborough,http://opendatacommunities.org/id/unitary-authority/peterborough,Peterborough City Council,Corporate,Corporate,Non Revenue,05/06/2017 00:00,30130263,3447.76,Capital,British Telecom PLC,Infrastructure
Peterborough,http://opendatacommunities.org/id/unitary-authority/peterborough,Peterborough City Council,Adult Services & Communities - Adults,Block Contracts,Third Party Payments,05/06/2017 00:00,30130623,5664.4,Revenue,Axiom Housing Association,Third Party Payments - Contract
Peterborough,http://opendatacommunities.org/id/unitary-authority/peterborough,Peterborough City Council,Children's & Safeguarding,Access to Resources & Specialist Commissioning,Services,05/06/2017 00:00,30130654,13055.25,Revenue,Horizon Care & Education Group,Boarding Out Allowances
Peterborough,http://opendatacommunities.org/id/unitary-authority/peterborough,Peterborough City Council,Westcombe Engineering,Westcombe Engineering,"Tools, Equipment, Furniture & Materials",05/06/2017 00:00,30130943,652,Revenue,Barron Clark Castings Ltd,Items For Resale
Peterborough,http://opendatacommunities.org/id/unitary-authority/peterborough,Peterborough City Council,Corporate,Corporate,Non Revenue,05/06/2017 00:00,30131535,811529.53,Balance Sheet,Teachers Pensions,Pensions
Peterborough,http://opendatacommunities.org/id/unitary-authority/peterborough,Peterborough City Council,Vivacity/Cultural Services,Cultural Services,Customer and client receipts - Fees & Charges,05/06/2017 00:00,30131607,4858.62,Revenue,Vivacity Culture and Leisure,Fees And Charges
Peterborough,http://opendatacommunities.org/id/unitary-authority/peterborough,Peterborough City Council,Adult Services & Communities - Adults,Independent Sector Placements,Services,05/06/2017 00:00,30131772,1811.24,Revenue,Excelcare Aliwal Manor,Residential Care
Peterborough,http://opendatacommunities.org/id/unitary-authority/peterborough,Peterborough City Council,Adult Services & Communities - Adults,Independent Sector Placements,Services,05/06/2017 00:00,30131773,910.94,Revenue,THE CLAIR FRANCIS RETIREMENT HOME,Residential Care
Peterborough,http://opendatacommunities.org/id/unitary-authority/peterborough,Peterborough City Council,Adult Services & Communities - Adults,Independent Sector Placements,Services,05/06/2017 00:00,30131774,2931.04,Revenue,Boulevard Care Limited,Residential Care
Peterborough,http://opendatacommunities.org/id/unitary-authority/peterborough,Peterborough City Council,Adult Services & Communities - Adults,Independent Sector Placements,Services,05/06/2017 00:00,30131789,1284.08,Revenue,THE CLAIR FRANCIS RETIREMENT HOME,Residential Care
Peterborough,http://opendatacommunities.org/id/unitary-authority/peterborough,Peterborough City Council,Adult Services & Communities - Adults,Independent Sector Placements,Services,05/06/2017 00:00,30131790,3185.44,Revenue,HEREWARD CARE SERVICES LIMITED,Residential Care
Peterborough,http://opendatacommunities.org/id/unitary-authority/peterborough,Peterborough City Council,Adult Services & Communities - Adults,Independent Sector Placements,Services,05/06/2017 00:00,30131814,1157.44,Revenue,K2 CARE LTD,Home Care
Peterborough,http://opendatacommunities.org/id/unitary-authority/peterborough,Peterborough City Council,Adult Services & Communities - Adults,Independent Sector Placements,Services,05/06/2017 00:00,30131817,861.88,Revenue,K2 CARE LTD,Home Care
Peterborough,http://opendatacommunities.org/id/unitary-authority/peterborough,Peterborough City Council,Adult Services & Communities - Adults,Independent Sector Placements,Services,05/06/2017 00:00,30131819,2369.4,Revenue,K2 CARE LTD,Home Care
Peterborough,http://opendatacommunities.org/id/unitary-authority/peterborough,Peterborough City Council,Adult Services & Communities - Adults,Independent Sector Placements,Services,05/06/2017 00:00,30131821,2431,Revenue,K2 CARE LTD,Home Care
Peterborough,http://opendatacommunities.org/id/unitary-authority/peterborough,Peterborough City Council,Adult Services & Communities - Adults,Independent Sector Placements,Services,05/06/2017 00:00,30131822,2402.4,Revenue,K2 CARE LTD,Home Care
Peterborough,http://opendatacommunities.org/id/unitary-authority/peterborough,Peterborough City Council,Adult Services & Communities - Adults,Independent Sector Placements,Services,05/06/2017 00:00,30131824,2431.44,Revenue,K2 CARE LTD,Home Care
Peterborough,http://opendatacommunities.org/id/unitary-authority/peterborough,Peterborough City Council,"Cemeteries, Cremation & Registrars",Bereavement Service,Services,05/06/2017 00:00,30131833,627.33,Revenue,Yaboo Company Ltd T/a Wesley Music,Hired Services
Peterborough,http://opendatacommunities.org/id/unitary-authority/peterborough,Peterborough City Council,Adult Services & Communities - Adults,Independent Sector Placements,Services,05/06/2017 00:00,8000089584,749.7,Revenue,Axiom Care Ltd,Home Care
Peterborough,http://opendatacommunities.org/id/unitary-authority/peterborough,Peterborough City Council,Adult Services & Communities - Adults,Independent Sector Placements,Services,05/06/2017 00:00,8000089868,550.38,Revenue,Axiom Care Ltd,Home Care
Peterborough,http://opendatacommunities.org/id/unitary-authority/peterborough,Peterborough City Council,Adult Services & Communities - Adults,Independent Sector Placements,Services,05/06/2017 00:00,8000089871,2451.4,Revenue,Axiom Care Ltd,Home Care
Peterborough,http://opendatacommunities.org/id/unitary-authority/peterborough,Peterborough City Council,Adult Services & Communities - Adults,Independent Sector Placements,Services,05/06/2017 00:00,8000089872,511.7,Revenue,Axiom Care Ltd,Home Care
Peterborough,http://opendatacommunities.org/id/unitary-authority/peterborough,Peterborough City Council,Adult Services & Communities - Adults,Independent Sector Placements,Services,05/06/2017 00:00,8000089874,657.48,Revenue,Axiom Care Ltd,Home Care
Peterborough,http://opendatacommunities.org/id/unitary-authority/peterborough,Peterborough City Council,Adult Services & Communities - Adults,Independent Sector Placements,Services,05/06/2017 00:00,8000089875,975.8,Revenue,Axiom Care Ltd,Home Care
Peterborough,http://opendatacommunities.org/id/unitary-authority/peterborough,Peterborough City Council,Adult Services & Communities - Adults,Independent Sector Placements,Services,05/06/2017 00:00,8000089879,583.1,Revenue,Axiom Care Ltd,Home Care
Peterborough,http://opendatacommunities.org/id/unitary-authority/peterborough,Peterborough City Council,Adult Services & Communities - Adults,Independent Sector Placements,Services,05/06/2017 00:00,8000089880,666.4,Revenue,Axiom Care Ltd,Home Care
Peterborough,http://opendatacommunities.org/id/unitary-authority/peterborough,Peterborough City Council,Adult Services & Communities - Adults,Independent Sector Placements,Services,05/06/2017 00:00,8000089884,583.1,Revenue,Axiom Care Ltd,Home Care
Peterborough,http://opendatacommunities.org/id/unitary-authority/peterborough,Peterborough City Council,Adult Services & Communities - Adults,Independent Sector Placements,Services,05/06/2017 00:00,8000089885,583.1,Revenue,Axiom Care Ltd,Home Care
Peterborough,http://opendatacommunities.org/id/unitary-authority/peterborough,Peterborough City Council,Adult Services & Communities - Adults,Independent Sector Placements,Services,05/06/2017 00:00,8000089886,963.9,Revenue,Axiom Care Ltd,Home Care
Peterborough,http://opendatacommunities.org/id/unitary-authority/peterborough,Peterborough City Council,Adult Services & Communities - Adults,Independent Sector Placements,Services,05/06/2017 00:00,8000089887,749.7,Revenue,Axiom Care Ltd,Home Care
Peterborough,http://opendatacommunities.org/id/unitary-authority/peterborough,Peterborough City Council,Adult Services & Communities - Adults,Independent Sector Placements,Services,05/06/2017 00:00,8000089892,2499,Revenue,Axiom Care Ltd,Home Care
Peterborough,http://opendatacommunities.org/id/unitary-authority/peterborough,Peterborough City Council,Adult Services & Communities - Adults,Independent Sector Placements,Services,05/06/2017 00:00,8000089896,2261,Revenue,Axiom Care Ltd,Home Care
Peterborough,http://opendatacommunities.org/id/unitary-authority/peterborough,Peterborough City Council,Adult Services & Communities - Adults,Independent Sector Placements,Services,05/06/2017 00:00,8000089900,1582.7,Revenue,Axiom Care Ltd,Home Care
Peterborough,http://opendatacommunities.org/id/unitary-authority/peterborough,Peterborough City Council,Adult Services & Communities - Adults,Independent Sector Placements,Services,05/06/2017 00:00,8000089901,511.7,Revenue,Axiom Care Ltd,Home Care
Peterborough,http://opendatacommunities.org/id/unitary-authority/peterborough,Peterborough City Council,Adult Services & Communities - Adults,Independent Sector Placements,Services,05/06/2017 00:00,8000089903,862.75,Revenue,Axiom Care Ltd,Home Care
Peterborough,http://opendatacommunities.org/id/unitary-authority/peterborough,Peterborough City Council,Adult Services & Communities - Adults,Independent Sector Placements,Services,05/06/2017 00:00,8000089906,821.1,Revenue,Axiom Care Ltd,Home Care
Peterborough,http://opendatacommunities.org/id/unitary-authority/peterborough,Peterborough City Council,Adult Services & Communities - Adults,Independent Sector Placements,Services,05/06/2017 00:00,8000089909,523.6,Revenue,Axiom Care Ltd,Home Care
Peterborough,http://opendatacommunities.org/id/unitary-authority/peterborough,Peterborough City Council,Adult Services & Communities - Adults,Independent Sector Placements,Services,05/06/2017 00:00,8000089910,508.73,Revenue,Axiom Care Ltd,Home Care
Peterborough,http://opendatacommunities.org/id/unitary-authority/peterborough,Peterborough City Council,Adult Services & Communities - Adults,Independent Sector Placements,Services,05/06/2017 00:00,8000089911,517.65,Revenue,Axiom Care Ltd,Home Care
Peterborough,http://opendatacommunities.org/id/unitary-authority/peterborough,Peterborough City Council,Adult Services & Communities - Adults,Independent Sector Placements,Services,05/06/2017 00:00,8000089913,563.1,Revenue,Axiom Care Ltd,Home Care
Peterborough,http://opendatacommunities.org/id/unitary-authority/peterborough,Peterborough City Council,Adult Services & Communities - Adults,Independent Sector Placements,Services,05/06/2017 00:00,8000089916,550.38,Revenue,Axiom Care Ltd,Home Care
Peterborough,http://opendatacommunities.org/id/unitary-authority/peterborough,Peterborough City Council,Education,Home to School Transport,Contract Hire and Operating Leases,05/06/2017 00:00,8000090637,592,Revenue,A2B Euro Cars,Hired Transport
Peterborough,http://opendatacommunities.org/id/unitary-authority/peterborough,Peterborough City Council,Education,Home to School Transport,Contract Hire and Operating Leases,05/06/2017 00:00,8000090639,1180,Revenue,A2B Euro Cars,Hired Transport
Peterborough,http://opendatacommunities.org/id/unitary-authority/peterborough,Peterborough City Council,Education,Home to School Transport,Contract Hire and Operating Leases,05/06/2017 00:00,8000090640,976,Revenue,A2B Euro Cars,Hired Transport
Peterborough,http://opendatacommunities.org/id/unitary-authority/peterborough,Peterborough City Council,Education,Home to School Transport,Contract Hire and Operating Leases,05/06/2017 00:00,8000090641,1120,Revenue,A2B Euro Cars,Hired Transport
Peterborough,http://opendatacommunities.org/id/unitary-authority/peterborough,Peterborough City Council,Education,Home to School Transport,Contract Hire and Operating Leases,05/06/2017 00:00,8000090642,988,Revenue,A2B Euro Cars,Hired Transport
Peterborough,http://opendatacommunities.org/id/unitary-authority/peterborough,Peterborough City Council,Education,Home to School Transport,Contract Hire and Operating Leases,05/06/2017 00:00,8000090643,804,Revenue,A2B Euro Cars,Hired Transport
Peterborough,http://opendatacommunities.org/id/unitary-authority/peterborough,Peterborough City Council,Education,Home to School Transport,Contract Hire and Operating Leases,05/06/2017 00:00,8000090646,540,Revenue,A2B Euro Cars,Hired Transport
Peterborough,http://opendatacommunities.org/id/unitary-authority/peterborough,Peterborough City Council,Education,Home to School Transport,Contract Hire and Operating Leases,05/06/2017 00:00,8000090648,720,Revenue,A2B Euro Cars,Hired Transport
Peterborough,http://opendatacommunities.org/id/unitary-authority/peterborough,Peterborough City Council,Education,Home to School Transport,Contract Hire and Operating Leases,05/06/2017 00:00,8000090649,630,Revenue,A2B Euro Cars,Hired Transport
Peterborough,http://opendatacommunities.org/id/unitary-authority/peterborough,Peterborough City Council,Education,Home to School Transport,Contract Hire and Operating Leases,05/06/2017 00:00,8000090650,765,Revenue,A2B Euro Cars,Hired Transport
Peterborough,http://opendatacommunities.org/id/unitary-authority/peterborough,Peterborough City Council,Education,Home to School Transport,Contract Hire and Operating Leases,05/06/2017 00:00,8000090652,1800,Revenue,Grettons Coaches,Hired Transport
Peterborough,http://opendatacommunities.org/id/unitary-authority/peterborough,Peterborough City Council,Education,Home to School Transport,Contract Hire and Operating Leases,05/06/2017 00:00,8000090658,530.99,Revenue,R T Enterprises Ltd T/A Royal Taxis,Hired Transport
Peterborough,http://opendatacommunities.org/id/unitary-authority/peterborough,Peterborough City Council,Education,Home to School Transport,Contract Hire and Operating Leases,05/06/2017 00:00,8000090659,594,Revenue,R T Enterprises Ltd T/A Royal Taxis,Hired Transport
Peterborough,http://opendatacommunities.org/id/unitary-authority/peterborough,Peterborough City Council,Business Management and Commercial Operations,Business Management and Commercial Operations,Contract Hire and Operating Leases,05/06/2017 00:00,8000090663,3706,Revenue,Goldstar Cabs Ltd,Hired Transport
Peterborough,http://opendatacommunities.org/id/unitary-authority/peterborough,Peterborough City Council,Business Management and Commercial Operations,Business Management and Commercial Operations,Contract Hire and Operating Leases,05/06/2017 00:00,8000090664,3748.25,Revenue,Goldstar Cabs Ltd,Hired Transport
Peterborough,http://opendatacommunities.org/id/unitary-authority/peterborough,Peterborough City Council,Business Management and Commercial Operations,Business Management and Commercial Operations,Contract Hire and Operating Leases,05/06/2017 00:00,8000090665,4174,Revenue,Goldstar Cabs Ltd,Hired Transport
Peterborough,http://opendatacommunities.org/id/unitary-authority/peterborough,Peterborough City Council,Business Management and Commercial Operations,Business Management and Commercial Operations,Contract Hire and Operating Leases,05/06/2017 00:00,8000090666,4038.75,Revenue,Goldstar Cabs Ltd,Hired Transport
Peterborough,http://opendatacommunities.org/id/unitary-authority/peterborough,Peterborough City Council,Business Management and Commercial Operations,Business Management and Commercial Operations,Contract Hire and Operating Leases,05/06/2017 00:00,8000090667,2232,Revenue,Goldstar Cabs Ltd,Hired Transport
Peterborough,http://opendatacommunities.org/id/unitary-authority/peterborough,Peterborough City Council,Business Management and Commercial Operations,Business Management and Commercial Operations,Contract Hire and Operating Leases,05/06/2017 00:00,8000090669,3673,Revenue,Goldstar Cabs Ltd,Hired Transport
Peterborough,http://opendatacommunities.org/id/unitary-authority/peterborough,Peterborough City Council,Business Management and Commercial Operations,Business Management and Commercial Operations,Contract Hire and Operating Leases,05/06/2017 00:00,8000090670,2623,Revenue,Goldstar Cabs Ltd,Hired Transport
Peterborough,http://opendatacommunities.org/id/unitary-authority/peterborough,Peterborough City Council,Business Management and Commercial Operations,Business Management and Commercial Operations,Contract Hire and Operating Leases,05/06/2017 00:00,8000090675,1896,Revenue,Redacted Personal Data,Hired Transport
Peterborough,http://opendatacommunities.org/id/unitary-authority/peterborough,Peterborough City Council,Business Management and Commercial Operations,Business Management and Commercial Operations,Contract Hire and Operating Leases,05/06/2017 00:00,8000090676,784.49,Revenue,Redacted Personal Data,Hired Transport
Peterborough,http://opendatacommunities.org/id/unitary-authority/peterborough,Peterborough City Council,Business Management and Commercial Operations,Business Management and Commercial Operations,Contract Hire and Operating Leases,05/06/2017 00:00,8000090678,1151.62,Revenue,Redacted Personal Data,Hired Transport
Peterborough,http://opendatacommunities.org/id/unitary-authority/peterborough,Peterborough City Council,Business Management and Commercial Operations,Business Management and Commercial Operations,Contract Hire and Operating Leases,05/06/2017 00:00,8000090679,1868.24,Revenue,Redacted Personal Data,Hired Transport
Peterborough,http://opendatacommunities.org/id/unitary-authority/peterborough,Peterborough City Council,Business Management and Commercial Operations,Business Management and Commercial Operations,Contract Hire and Operating Leases,05/06/2017 00:00,8000090680,618.41,Revenue,Redacted Personal Data,Hired Transport
Peterborough,http://opendatacommunities.org/id/unitary-authority/peterborough,Peterborough City Council,Adult Services & Communities - Adults,Independent Sector Placements,Services,05/06/2017 00:00,8000090784,888,Revenue,COMFORCARE SENIOR SERVICES,Home Care
Peterborough,http://opendatacommunities.org/id/unitary-authority/peterborough,Peterborough City Council,Adult Services & Communities - Adults,Independent Sector Placements,Services,05/06/2017 00:00,8000090785,1745.5,Revenue,COMFORCARE SENIOR SERVICES,Home Care
Peterborough,http://opendatacommunities.org/id/unitary-authority/peterborough,Peterborough City Council,Adult Services & Communities - Adults,Independent Sector Placements,Services,05/06/2017 00:00,8000090807,717.6,Revenue,Cozy Care,Home Care
Peterborough,http://opendatacommunities.org/id/unitary-authority/peterborough,Peterborough City Council,Adult Services & Communities - Adults,Independent Sector Placements,Services,05/06/2017 00:00,8000090808,828,Revenue,Cozy Care,Home Care
Peterborough,http://opendatacommunities.org/id/unitary-authority/peterborough,Peterborough City Council,Adult Services & Communities - Adults,Independent Sector Placements,Services,05/06/2017 00:00,8000090809,1352.4,Revenue,Cozy Care,Home Care
Peterborough,http://opendatacommunities.org/id/unitary-authority/peterborough,Peterborough City Council,Education,Pupil Referral Unit,Agency Staff,07/06/2017 00:00,30119475,650,Revenue,Vision for Education Ltd,Supply Teachers
Peterborough,http://opendatacommunities.org/id/unitary-authority/peterborough,Peterborough City Council,Education,Pupil Referral Unit,Agency Staff,07/06/2017 00:00,30121866,650,Revenue,Vision for Education Ltd,Supply Teachers
Peterborough,http://opendatacommunities.org/id/unitary-authority/peterborough,Peterborough City Council,Children's & Safeguarding,Children's Social Care,Agency Staff,07/06/2017 00:00,30125713,-661.38,Revenue,Caritas Recruitment,External Temporary Staff
Peterborough,http://opendatacommunities.org/id/unitary-authority/peterborough,Peterborough City Council,Children's & Safeguarding,Children's Social Care,Agency Staff,07/06/2017 00:00,30126903,1322.75,Revenue,Caritas Recruitment,External Temporary Staff
Peterborough,http://opendatacommunities.org/id/unitary-authority/peterborough,Peterborough City Council,Children's & Safeguarding,Children's Social Care,Agency Staff,07/06/2017 00:00,30126914,4761.9,Revenue,Caritas Recruitment,External Temporary Staff
Peterborough,http://opendatacommunities.org/id/unitary-authority/peterborough,Peterborough City Council,Children's & Safeguarding,Children's Social Care,Agency Staff,07/06/2017 00:00,30126917,2645.5,Revenue,Caritas Recruitment,External Temporary Staff
Peterborough,http://opendatacommunities.org/id/unitary-authority/peterborough,Peterborough City Council,Education,Pupil Referral Unit,Services,07/06/2017 00:00,30127399,5020,Revenue,Stagecoach in Peterborough,Passes
Peterborough,http://opendatacommunities.org/id/unitary-authority/peterborough,Peterborough City Council,Education,Pupil Referral Unit,Services,07/06/2017 00:00,30127400,5020,Revenue,Stagecoach in Peterborough,Passes
Peterborough,http://opendatacommunities.org/id/unitary-authority/peterborough,Peterborough City Council,Corporate,Corporate,Non Revenue,07/06/2017 00:00,30127639,10806.86,Capital,Remark Group,Building And Site Works
Peterborough,http://opendatacommunities.org/id/unitary-authority/peterborough,Peterborough City Council,ICT,ICT,Services,07/06/2017 00:00,30127811,3470,Revenue,Arcus Global ltd,Consultants Fees
Peterborough,http://opendatacommunities.org/id/unitary-authority/peterborough,Peterborough City Council,Adult Services & Communities - Adults,Day Opportunities / In House,Agency Staff,07/06/2017 00:00,30128184,3196.8,Revenue,Sanctuary Personnel Ltd,External Temporary Staff
Peterborough,http://opendatacommunities.org/id/unitary-authority/peterborough,Peterborough City Council,Adult Services & Communities - Adults,Day Opportunities / In House,Agency Staff,07/06/2017 00:00,30128187,1332,Revenue,Sanctuary Personnel Ltd,External Temporary Staff
Peterborough,http://opendatacommunities.org/id/unitary-authority/peterborough,Peterborough City Council,Adult Services & Communities - Adults,Day Opportunities / In House,Agency Staff,07/06/2017 00:00,30128188,1250,Revenue,Sanctuary Personnel Ltd,External Temporary Staff
Peterborough,http://opendatacommunities.org/id/unitary-authority/peterborough,Peterborough City Council,Corporate,Corporate,Non Revenue,07/06/2017 00:00,30128474,4858.75,Capital,Euro Pools Service Ltd,Building And Site Works
Peterborough,http://opendatacommunities.org/id/unitary-authority/peterborough,Peterborough City Council,Business Management and Commercial Operations,Commissioning,Services,07/06/2017 00:00,30128573,1280,Revenue,Adoptionplus Ltd,Purchased Social Care Services
Peterborough,http://opendatacommunities.org/id/unitary-authority/peterborough,Peterborough City Council,Children's & Safeguarding,Access to Resources & Specialist Commissioning,Services,07/06/2017 00:00,30128679,5000,Revenue,Kirkstone House School,Out Of Area Education Costs
Peterborough,http://opendatacommunities.org/id/unitary-authority/peterborough,Peterborough City Council,Children's & Safeguarding,Access to Resources & Specialist Commissioning,Services,07/06/2017 00:00,30128682,4695.85,Revenue,Kirkstone House School,Out Of Area Education Costs
Peterborough,http://opendatacommunities.org/id/unitary-authority/peterborough,Peterborough City Council,Children's & Safeguarding,Access to Resources & Specialist Commissioning,Services,07/06/2017 00:00,30128684,3566.66,Revenue,Kirkstone House School,Out Of Area Education Costs
Peterborough,http://opendatacommunities.org/id/unitary-authority/peterborough,Peterborough City Council,Children's & Safeguarding,Access to Resources & Specialist Commissioning,Services,07/06/2017 00:00,30128686,4695.85,Revenue,Kirkstone House School,Out Of Area Education Costs
Peterborough,http://opendatacommunities.org/id/unitary-authority/peterborough,Peterborough City Council,Children's & Safeguarding,Access to Resources & Specialist Commissioning,Services,07/06/2017 00:00,30128688,3566.66,Revenue,Kirkstone House School,Out Of Area Education Costs
Peterborough,http://opendatacommunities.org/id/unitary-authority/peterborough,Peterborough City Council,Children's & Safeguarding,Access to Resources & Specialist Commissioning,Services,07/06/2017 00:00,30128738,2429.58,Revenue,Kirkstone House School,Out Of Area Education Costs
Peterborough,http://opendatacommunities.org/id/unitary-authority/peterborough,Peterborough City Council,Children's & Safeguarding,Access to Resources & Specialist Commissioning,Services,07/06/2017 00:00,30128739,3943.66,Revenue,Kirkstone House School,Out Of Area Education Costs
Peterborough,http://opendatacommunities.org/id/unitary-authority/peterborough,Peterborough City Council,Legal & Democratic,Legal Services,Services,07/06/2017 00:00,30128758,550,Revenue,"Walji, Miss Shabnam",Legal Costs
Peterborough,http://opendatacommunities.org/id/unitary-authority/peterborough,Peterborough City Council,Legal & Democratic,Legal Services,Services,07/06/2017 00:00,30128761,570,Revenue,"Newport, Mr Ian",Legal Costs
Peterborough,http://opendatacommunities.org/id/unitary-authority/peterborough,Peterborough City Council,Children's & Safeguarding,Child Health,Services,07/06/2017 00:00,30128776,592.8,Revenue,Sahara Community Care Services,Purchased Social Care Services
Peterborough,http://opendatacommunities.org/id/unitary-authority/peterborough,Peterborough City Council,Legal & Democratic,Legal Services,Agency Staff,07/06/2017 00:00,30128856,1254.31,Revenue,Venn Group Ltd,External Temporary Staff
Peterborough,http://opendatacommunities.org/id/unitary-authority/peterborough,Peterborough City Council,Legal & Democratic,Legal Services,Agency Staff,07/06/2017 00:00,30128857,1067.95,Revenue,Venn Group Ltd,External Temporary Staff
Peterborough,http://opendatacommunities.org/id/unitary-authority/peterborough,Peterborough City Council,Legal & Democratic,Legal Services,Agency Staff,07/06/2017 00:00,30128859,1281.06,Revenue,Venn Group Ltd,External Temporary Staff
Peterborough,http://opendatacommunities.org/id/unitary-authority/peterborough,Peterborough City Council,Education,Non-Schools Finance,Agency Staff,07/06/2017 00:00,30128860,547.5,Revenue,Venn Group Ltd,External Temporary Staff
Peterborough,http://opendatacommunities.org/id/unitary-authority/peterborough,Peterborough City Council,Legal & Democratic,Legal Services,Agency Staff,07/06/2017 00:00,30128861,1875,Revenue,Venn Group Ltd,External Temporary Staff
Peterborough,http://opendatacommunities.org/id/unitary-authority/peterborough,Peterborough City Council,Adult Services & Communities - Adults,Finance,Services,07/06/2017 00:00,30128991,30318.03,Revenue,NHS Cambs & P'boro CCG (Clinical Commissioning Group),Hired Services
Peterborough,http://opendatacommunities.org/id/unitary-authority/peterborough,Peterborough City Council,Westcombe Engineering,Westcombe Engineering,"Tools, Equipment, Furniture & Materials",07/06/2017 00:00,30129001,511.5,Revenue,AALCO,Items For Resale
Peterborough,http://opendatacommunities.org/id/unitary-authority/peterborough,Peterborough City Council,Legal & Democratic,Legal Services,Services,07/06/2017 00:00,30129016,720,Revenue,"King, Miss Fawzia",Legal Costs
Peterborough,http://opendatacommunities.org/id/unitary-authority/peterborough,Peterborough City Council,Adult Services & Communities - Adults,Independent Sector Placements,Services,07/06/2017 00:00,30129038,682.5,Revenue,Cross Keys Homes,Home Care
Peterborough,http://opendatacommunities.org/id/unitary-authority/peterborough,Peterborough City Council,Corporate,Corporate,Non Revenue,07/06/2017 00:00,30129088,3988.5,Capital,Pinsent Masons,Legal Costs
Peterborough,http://opendatacommunities.org/id/unitary-authority/peterborough,Peterborough City Council,Corporate,Corporate,Non Revenue,07/06/2017 00:00,30129090,11457,Capital,Pinsent Masons,Legal Costs
Peterborough,http://opendatacommunities.org/id/unitary-authority/peterborough,Peterborough City Council,Adult Services & Communities - Adults,Independent Sector Placements,Services,07/06/2017 00:00,30129138,1586,Revenue,Thera East Anglia,Day Care
Peterborough,http://opendatacommunities.org/id/unitary-authority/peterborough,Peterborough City Council,Adult Services & Communities - Adults,Independent Sector Placements,Services,07/06/2017 00:00,30129139,1586,Revenue,Thera East Anglia,Day Care
Peterborough,http://opendatacommunities.org/id/unitary-authority/peterborough,Peterborough City Council,Corporate Property,Commercial Propety,Services,07/06/2017 00:00,30129197,5500,Revenue,Serco Ltd,Hired Services
Peterborough,http://opendatacommunities.org/id/unitary-authority/peterborough,Peterborough City Council,Peterborough Highway Services,Highway & Drainage Control,Agency Staff,07/06/2017 00:00,30129198,960,Revenue,Matchtech,External Temporary Staff
Peterborough,http://opendatacommunities.org/id/unitary-authority/peterborough,Peterborough City Council,Peterborough Highway Services,Highway & Drainage Control,Agency Staff,07/06/2017 00:00,30129200,990,Revenue,Matchtech,External Temporary Staff
Peterborough,http://opendatacommunities.org/id/unitary-authority/peterborough,Peterborough City Council,Legal & Democratic,Legal Services,Agency Staff,07/06/2017 00:00,30129218,1347.5,Revenue,Venn Group Ltd,External Temporary Staff
Peterborough,http://opendatacommunities.org/id/unitary-authority/peterborough,Peterborough City Council,Adult Services & Communities - Adults,Independent Sector Placements,Services,07/06/2017 00:00,30129229,926.64,Revenue,Pilgrim Havens,Residential Care
Peterborough,http://opendatacommunities.org/id/unitary-authority/peterborough,Peterborough City Council,Adult Services & Communities - Adults,Independent Sector Placements,Services,07/06/2017 00:00,30129230,928.04,Revenue,Pilgrim Havens,Residential Care
Peterborough,http://opendatacommunities.org/id/unitary-authority/peterborough,Peterborough City Council,Adult Services & Communities - Adults,Independent Sector Placements,Services,07/06/2017 00:00,30129231,1331.08,Revenue,Pilgrim Havens,Residential Care
Peterborough,http://opendatacommunities.org/id/unitary-authority/peterborough,Peterborough City Council,Education,Special Educational Needs / Inclusion,Services,07/06/2017 00:00,30129279,520,Revenue,Top Class Tutors,Education Expenses
Peterborough,http://opendatacommunities.org/id/unitary-authority/peterborough,Peterborough City Council,ICT,ICT,Services,07/06/2017 00:00,30129295,16929.17,Revenue,Yotta Ltd,Ict Maintenance
Peterborough,http://opendatacommunities.org/id/unitary-authority/peterborough,Peterborough City Council,Business Management and Commercial Operations,Clare Lodge,Agency Staff,07/06/2017 00:00,30129299,1403,Revenue,Textbook Teachers Recruitment & Education Services Ltd,Supply Teachers
Peterborough,http://opendatacommunities.org/id/unitary-authority/peterborough,Peterborough City Council,Business Management and Commercial Operations,Clare Lodge,Repair & Maintenance of Buildings,07/06/2017 00:00,30129302,1531,Revenue,Adcock Refrig/air Conditioning Ltd,Premises Maintenance
Peterborough,http://opendatacommunities.org/id/unitary-authority/peterborough,Peterborough City Council,Business Management and Commercial Operations,Clare Lodge,Agency Staff,07/06/2017 00:00,30129380,1016,Revenue,Wrixon Care Services,External Temporary Staff
Peterborough,http://opendatacommunities.org/id/unitary-authority/peterborough,Peterborough City Council,Business Management and Commercial Operations,Clare Lodge,Agency Staff,07/06/2017 00:00,30129382,608,Revenue,Wrixon Care Services,External Temporary Staff
Peterborough,http://opendatacommunities.org/id/unitary-authority/peterborough,Peterborough City Council,Adults and Communities - Communities,Community Safety,"Tools, Equipment, Furniture & Materials",07/06/2017 00:00,30129449,739.35,Revenue,keltic Ltd,Uniform/Protective Clothing
Peterborough,http://opendatacommunities.org/id/unitary-authority/peterborough,Peterborough City Council,Amey Peterborough & Waste Management,Waste Management,Services,07/06/2017 00:00,30129450,19796.63,Revenue,Material Change Ltd,Recycling
Peterborough,http://opendatacommunities.org/id/unitary-authority/peterborough,Peterborough City Council,Legal & Democratic,Elections,Services,07/06/2017 00:00,30129524,2340,Revenue,Print UK,Printing
Peterborough,http://opendatacommunities.org/id/unitary-authority/peterborough,Peterborough City Council,Education,Pupil Referral Unit,Agency Staff,07/06/2017 00:00,30129645,1089.98,Revenue,Textbook Teachers Recruitment & Education Services Ltd,Supply Teachers
Peterborough,http://opendatacommunities.org/id/unitary-authority/peterborough,Peterborough City Council,Business Management and Commercial Operations,Clare Lodge,Agency Staff,07/06/2017 00:00,30129647,1587,Revenue,Textbook Teachers Recruitment & Education Services Ltd,Supply Teachers
Peterborough,http://opendatacommunities.org/id/unitary-authority/peterborough,Peterborough City Council,Education,School Improvement,Services,07/06/2017 00:00,30129664,1290,Revenue,Learning Pool Limited,Subscriptions
Peterborough,http://opendatacommunities.org/id/unitary-authority/peterborough,Peterborough City Council,Legal & Democratic,Legal Services,Agency Staff,07/06/2017 00:00,30129669,1753.8,Revenue,Sellick Partnership Group Limited,External Temporary Staff
Peterborough,http://opendatacommunities.org/id/unitary-authority/peterborough,Peterborough City Council,Adult Services & Communities - Adults,Day Opportunities / In House,Agency Staff,07/06/2017 00:00,30129678,976.8,Revenue,Medicare First,External Temporary Staff
Peterborough,http://opendatacommunities.org/id/unitary-authority/peterborough,Peterborough City Council,Corporate Property,Office Accomodation,Services,07/06/2017 00:00,30129700,8508.93,Revenue,GSL Dardan Ltd,Security
Peterborough,http://opendatacommunities.org/id/unitary-authority/peterborough,Peterborough City Council,Education,Pupil Referral Unit,Agency Staff,07/06/2017 00:00,30129702,7317.5,Revenue,Vision for Education Ltd,External Temporary Staff
Peterborough,http://opendatacommunities.org/id/unitary-authority/peterborough,Peterborough City Council,Adult Services & Communities - Adults,Therapy/Reablement/Community Equipment,"Tools, Equipment, Furniture & Materials",07/06/2017 00:00,30129742,786.68,Revenue,NRS Healthcare,Occupational Therapy Equipment
Peterborough,http://opendatacommunities.org/id/unitary-authority/peterborough,Peterborough City Council,Education,Pupil Referral Unit,Agency Staff,07/06/2017 00:00,30129826,650,Revenue,Vision for Education Ltd,Supply Teachers
Peterborough,http://opendatacommunities.org/id/unitary-authority/peterborough,Peterborough City Council,Adults and Communities - Communities,Housing and Health,Services,07/06/2017 00:00,30129851,544,Revenue,Rawheat Heating & Plumbing Eng.,Contractors
Peterborough,http://opendatacommunities.org/id/unitary-authority/peterborough,Peterborough City Council,Adult Services & Communities - Adults,Independent Sector Placements,Services,07/06/2017 00:00,30129939,1805.2,Revenue,THE LODGE TRUST,Residential Care
Peterborough,http://opendatacommunities.org/id/unitary-authority/peterborough,Peterborough City Council,Adult Services & Communities - Adults,Independent Sector Placements,Services,07/06/2017 00:00,30129941,1804.2,Revenue,THE LODGE TRUST,Residential Care
Peterborough,http://opendatacommunities.org/id/unitary-authority/peterborough,Peterborough City Council,Education,Pupil Referral Unit,Agency Staff,07/06/2017 00:00,30129986,736,Revenue,t/a Travail Education,Supply Teachers
Peterborough,http://opendatacommunities.org/id/unitary-authority/peterborough,Peterborough City Council,Corporate Items,Corporate Services,Services,07/06/2017 00:00,30129994,5975,Revenue,Ernst & Young LLP,Audit Fees
Peterborough,http://opendatacommunities.org/id/unitary-authority/peterborough,Peterborough City Council,HR,HR,Advertising,07/06/2017 00:00,30130121,4117.6,Revenue,TMP (UK) LTD,Recruitment Advertising
Peterborough,http://opendatacommunities.org/id/unitary-authority/peterborough,Peterborough City Council,Performance & Information,Performance & Information,Agency Staff,07/06/2017 00:00,30130126,670.7,Revenue,Reed Specialist Recruitment Limited,External Temporary Staff
Peterborough,http://opendatacommunities.org/id/unitary-authority/peterborough,Peterborough City Council,Vivacity/Cultural Services,Cultural Services,Repair & Maintenance of Buildings,07/06/2017 00:00,30130153,525,Revenue,Jones Lang LaSalle,Service Charges - Premises
Peterborough,http://opendatacommunities.org/id/unitary-authority/peterborough,Peterborough City Council,Legal & Democratic,Legal Services,Agency Staff,07/06/2017 00:00,30130265,594,Revenue,Venn Group Ltd,External Temporary Staff
Peterborough,http://opendatacommunities.org/id/unitary-authority/peterborough,Peterborough City Council,HR,HR WFD & Training,Rents,07/06/2017 00:00,30130397,685,Revenue,Italian Community Association,Hire Of Premises
Peterborough,http://opendatacommunities.org/id/unitary-authority/peterborough,Peterborough City Council,Education,Special Educational Needs / Inclusion,Services,07/06/2017 00:00,30130421,1597.5,Revenue,NewArk Play Association Ltd,Education Expenses
Peterborough,http://opendatacommunities.org/id/unitary-authority/peterborough,Peterborough City Council,Education,Special Educational Needs / Inclusion,Services,07/06/2017 00:00,30130428,4815,Revenue,NewArk Play Association Ltd,Education Expenses
Peterborough,http://opendatacommunities.org/id/unitary-authority/peterborough,Peterborough City Council,Amey Peterborough & Waste Management,Waste Management,Services,07/06/2017 00:00,30130434,354395.02,Revenue,Viridor Peterborough Ltd,Waste Disposal
Peterborough,http://opendatacommunities.org/id/unitary-authority/peterborough,Peterborough City Council,Adults and Communities - Communities,Housing and Health,Third Party Payments,07/06/2017 00:00,30130548,5017.14,Revenue,Peterborough Womens Aid,Grant-Third Party
Peterborough,http://opendatacommunities.org/id/unitary-authority/peterborough,Peterborough City Council,Adult Services & Communities - Adults,Independent Sector Placements,Services,07/06/2017 00:00,30130651,1757.8,Revenue,Cross Keys Homes,Home Care
Peterborough,http://opendatacommunities.org/id/unitary-authority/peterborough,Peterborough City Council,Children's & Safeguarding,Children's Social Care,Services,07/06/2017 00:00,30130697,521.1,Revenue,Key2,Purchased Social Care Services
Peterborough,http://opendatacommunities.org/id/unitary-authority/peterborough,Peterborough City Council,Sustainable Growth Strategy,Natural & Historic Environment,Services,07/06/2017 00:00,30130760,1050,Revenue,The Wildlife Trust BCN,Conservation And Bio Diversity Projects
Peterborough,http://opendatacommunities.org/id/unitary-authority/peterborough,Peterborough City Council,Corporate Property,Office Accomodation,Energy Costs,07/06/2017 00:00,30130784,2916.21,Revenue,Corona Energy Retail 4 Limited,Gas
Peterborough,http://opendatacommunities.org/id/unitary-authority/peterborough,Peterborough City Council,Corporate Property,Commercial Propety,Energy Costs,07/06/2017 00:00,30130784,1141.5,Revenue,Corona Energy Retail 4 Limited,Gas
Peterborough,http://opendatacommunities.org/id/unitary-authority/peterborough,Peterborough City Council,Vivacity/Cultural Services,Cultural Services,Energy Costs,07/06/2017 00:00,30130785,756.87,Revenue,Corona Energy Retail 4 Limited,Gas
Peterborough,http://opendatacommunities.org/id/unitary-authority/peterborough,Peterborough City Council,Vivacity/Cultural Services,Cultural Services,Energy Costs,07/06/2017 00:00,30130785,835.63,Revenue,Corona Energy Retail 4 Limited,Gas
Peterborough,http://opendatacommunities.org/id/unitary-authority/peterborough,Peterborough City Council,Vivacity/Cultural Services,Cultural Services,Energy Costs,07/06/2017 00:00,30130785,845.49,Revenue,Corona Energy Retail 4 Limited,Gas
Peterborough,http://opendatacommunities.org/id/unitary-authority/peterborough,Peterborough City Council,Education,Pupil Referral Unit,Agency Staff,07/06/2017 00:00,30130801,5987.88,Revenue,Vision for Education Ltd,Supply Teachers
Peterborough,http://opendatacommunities.org/id/unitary-authority/peterborough,Peterborough City Council,Education,Pupil Referral Unit,Agency Staff,07/06/2017 00:00,30130821,685.64,Revenue,Teaching Personnel Ltd,Supply Teachers
Peterborough,http://opendatacommunities.org/id/unitary-authority/peterborough,Peterborough City Council,Westcombe Engineering,Westcombe Engineering,"Tools, Equipment, Furniture & Materials",07/06/2017 00:00,30130831,652,Revenue,Barron Clark Castings Ltd,Items For Resale
Peterborough,http://opendatacommunities.org/id/unitary-authority/peterborough,Peterborough City Council,Business Management and Commercial Operations,Clare Lodge,Agency Staff,07/06/2017 00:00,30130858,1520,Revenue,Wrixon Care Services,External Temporary Staff
Peterborough,http://opendatacommunities.org/id/unitary-authority/peterborough,Peterborough City Council,Business Management and Commercial Operations,Clare Lodge,Agency Staff,07/06/2017 00:00,30130859,1600,Revenue,Wrixon Care Services,External Temporary Staff
Peterborough,http://opendatacommunities.org/id/unitary-authority/peterborough,Peterborough City Council,Education,PFI,Energy Costs,07/06/2017 00:00,30130860,2256.79,Revenue,Corona Energy Retail 4 Limited,Gas
Peterborough,http://opendatacommunities.org/id/unitary-authority/peterborough,Peterborough City Council,Vivacity/Cultural Services,Cultural Services,Energy Costs,07/06/2017 00:00,30130860,4401.26,Revenue,Corona Energy Retail 4 Limited,Gas
Peterborough,http://opendatacommunities.org/id/unitary-authority/peterborough,Peterborough City Council,Education,Pupil Referral Unit,Energy Costs,07/06/2017 00:00,30130930,3455.34,Revenue,Corona Energy Retail 4 Limited,Gas
Peterborough,http://opendatacommunities.org/id/unitary-authority/peterborough,Peterborough City Council,Vivacity/Cultural Services,Cultural Services,Energy Costs,07/06/2017 00:00,30130930,1831.1,Revenue,Corona Energy Retail 4 Limited,Gas
Peterborough,http://opendatacommunities.org/id/unitary-authority/peterborough,Peterborough City Council,Vivacity/Cultural Services,Cultural Services,Energy Costs,07/06/2017 00:00,30130931,1463.32,Revenue,Corona Energy Retail 4 Limited,Gas
Peterborough,http://opendatacommunities.org/id/unitary-authority/peterborough,Peterborough City Council,"Cemeteries, Cremation & Registrars",Bereavement Service,Energy Costs,07/06/2017 00:00,30130931,2026.91,Revenue,Corona Energy Retail 4 Limited,Gas
Peterborough,http://opendatacommunities.org/id/unitary-authority/peterborough,Peterborough City Council,Education,PFI,Energy Costs,07/06/2017 00:00,30130932,1277.79,Revenue,Corona Energy Retail 4 Limited,Gas
Peterborough,http://opendatacommunities.org/id/unitary-authority/peterborough,Peterborough City Council,Education,PFI,Energy Costs,07/06/2017 00:00,30130932,1188.07,Revenue,Corona Energy Retail 4 Limited,Gas
Peterborough,http://opendatacommunities.org/id/unitary-authority/peterborough,Peterborough City Council,Business Management and Commercial Operations,Clare Lodge,Energy Costs,07/06/2017 00:00,30130976,-1290.91,Revenue,Corona Energy Retail 4 Limited,Gas
Peterborough,http://opendatacommunities.org/id/unitary-authority/peterborough,Peterborough City Council,Business Management and Commercial Operations,Clare Lodge,Energy Costs,07/06/2017 00:00,30130976,1217.95,Revenue,Corona Energy Retail 4 Limited,Gas
Peterborough,http://opendatacommunities.org/id/unitary-authority/peterborough,Peterborough City Council,Business Management and Commercial Operations,Clare Lodge,Energy Costs,07/06/2017 00:00,30130976,-842.03,Revenue,Corona Energy Retail 4 Limited,Gas
Peterborough,http://opendatacommunities.org/id/unitary-authority/peterborough,Peterborough City Council,Business Management and Commercial Operations,Clare Lodge,Energy Costs,07/06/2017 00:00,30130976,800.36,Revenue,Corona Energy Retail 4 Limited,Gas
Peterborough,http://opendatacommunities.org/id/unitary-authority/peterborough,Peterborough City Council,Business Management and Commercial Operations,Clare Lodge,Energy Costs,07/06/2017 00:00,30130976,-766.68,Revenue,Corona Energy Retail 4 Limited,Gas
Peterborough,http://opendatacommunities.org/id/unitary-authority/peterborough,Peterborough City Council,Business Management and Commercial Operations,Clare Lodge,Energy Costs,07/06/2017 00:00,30130976,729.65,Revenue,Corona Energy Retail 4 Limited,Gas
Peterborough,http://opendatacommunities.org/id/unitary-authority/peterborough,Peterborough City Council,Business Management and Commercial Operations,Clare Lodge,Energy Costs,07/06/2017 00:00,30130976,-660.12,Revenue,Corona Energy Retail 4 Limited,Gas
Peterborough,http://opendatacommunities.org/id/unitary-authority/peterborough,Peterborough City Council,Business Management and Commercial Operations,Clare Lodge,Energy Costs,07/06/2017 00:00,30130976,630.91,Revenue,Corona Energy Retail 4 Limited,Gas
Peterborough,http://opendatacommunities.org/id/unitary-authority/peterborough,Peterborough City Council,Business Management and Commercial Operations,Clare Lodge,Energy Costs,07/06/2017 00:00,30130976,-648.1,Revenue,Corona Energy Retail 4 Limited,Gas
Peterborough,http://opendatacommunities.org/id/unitary-authority/peterborough,Peterborough City Council,Corporate Property,Office Accomodation,Energy Costs,07/06/2017 00:00,30130976,2922.4,Revenue,Corona Energy Retail 4 Limited,Gas
Peterborough,http://opendatacommunities.org/id/unitary-authority/peterborough,Peterborough City Council,Business Management and Commercial Operations,Clare Lodge,Energy Costs,07/06/2017 00:00,30130980,619.72,Revenue,Corona Energy Retail 4 Limited,Gas
Peterborough,http://opendatacommunities.org/id/unitary-authority/peterborough,Peterborough City Council,Business Management and Commercial Operations,Clare Lodge,Energy Costs,07/06/2017 00:00,30130980,-839.86,Revenue,Corona Energy Retail 4 Limited,Gas
Peterborough,http://opendatacommunities.org/id/unitary-authority/peterborough,Peterborough City Council,Business Management and Commercial Operations,Clare Lodge,Energy Costs,07/06/2017 00:00,30130980,797.82,Revenue,Corona Energy Retail 4 Limited,Gas
Peterborough,http://opendatacommunities.org/id/unitary-authority/peterborough,Peterborough City Council,Business Management and Commercial Operations,Clare Lodge,Energy Costs,07/06/2017 00:00,30130980,-1086.48,Revenue,Corona Energy Retail 4 Limited,Gas
Peterborough,http://opendatacommunities.org/id/unitary-authority/peterborough,Peterborough City Council,Business Management and Commercial Operations,Clare Lodge,Energy Costs,07/06/2017 00:00,30130980,1028.05,Revenue,Corona Energy Retail 4 Limited,Gas
Peterborough,http://opendatacommunities.org/id/unitary-authority/peterborough,Peterborough City Council,Business Management and Commercial Operations,Clare Lodge,Energy Costs,07/06/2017 00:00,30130980,-1469.12,Revenue,Corona Energy Retail 4 Limited,Gas
Peterborough,http://opendatacommunities.org/id/unitary-authority/peterborough,Peterborough City Council,Business Management and Commercial Operations,Clare Lodge,Energy Costs,07/06/2017 00:00,30130980,1383.95,Revenue,Corona Energy Retail 4 Limited,Gas
Peterborough,http://opendatacommunities.org/id/unitary-authority/peterborough,Peterborough City Council,Business Management and Commercial Operations,Clare Lodge,Energy Costs,07/06/2017 00:00,30130980,-1364.31,Revenue,Corona Energy Retail 4 Limited,Gas
Peterborough,http://opendatacommunities.org/id/unitary-authority/peterborough,Peterborough City Council,Business Management and Commercial Operations,Clare Lodge,Energy Costs,07/06/2017 00:00,30130980,1286.84,Revenue,Corona Energy Retail 4 Limited,Gas
Peterborough,http://opendatacommunities.org/id/unitary-authority/peterborough,Peterborough City Council,Business Management and Commercial Operations,Clare Lodge,Energy Costs,07/06/2017 00:00,30130980,-1597.97,Revenue,Corona Energy Retail 4 Limited,Gas
Peterborough,http://opendatacommunities.org/id/unitary-authority/peterborough,Peterborough City Council,Vivacity/Cultural Services,Cultural Services,Energy Costs,07/06/2017 00:00,30130980,5050.39,Revenue,Corona Energy Retail 4 Limited,Gas
Peterborough,http://opendatacommunities.org/id/unitary-authority/peterborough,Peterborough City Council,Business Management and Commercial Operations,Clare Lodge,Energy Costs,07/06/2017 00:00,30130982,1504.48,Revenue,Corona Energy Retail 4 Limited,Gas
Peterborough,http://opendatacommunities.org/id/unitary-authority/peterborough,Peterborough City Council,Business Management and Commercial Operations,Clare Lodge,Energy Costs,07/06/2017 00:00,30130982,-1318.15,Revenue,Corona Energy Retail 4 Limited,Gas
Peterborough,http://opendatacommunities.org/id/unitary-authority/peterborough,Peterborough City Council,Business Management and Commercial Operations,Clare Lodge,Energy Costs,07/06/2017 00:00,30130982,1242.29,Revenue,Corona Energy Retail 4 Limited,Gas
Peterborough,http://opendatacommunities.org/id/unitary-authority/peterborough,Peterborough City Council,Business Management and Commercial Operations,Clare Lodge,Energy Costs,07/06/2017 00:00,30130982,-1352.2,Revenue,Corona Energy Retail 4 Limited,Gas
Peterborough,http://opendatacommunities.org/id/unitary-authority/peterborough,Peterborough City Council,Business Management and Commercial Operations,Clare Lodge,Energy Costs,07/06/2017 00:00,30130982,1275.56,Revenue,Corona Energy Retail 4 Limited,Gas
Peterborough,http://opendatacommunities.org/id/unitary-authority/peterborough,Peterborough City Council,Business Management and Commercial Operations,Clare Lodge,Energy Costs,07/06/2017 00:00,30130982,-1022.1,Revenue,Corona Energy Retail 4 Limited,Gas
Peterborough,http://opendatacommunities.org/id/unitary-authority/peterborough,Peterborough City Council,Business Management and Commercial Operations,Clare Lodge,Energy Costs,07/06/2017 00:00,30130982,955.85,Revenue,Corona Energy Retail 4 Limited,Gas
Peterborough,http://opendatacommunities.org/id/unitary-authority/peterborough,Peterborough City Council,Business Management and Commercial Operations,Clare Lodge,Energy Costs,07/06/2017 00:00,30130982,-899.53,Revenue,Corona Energy Retail 4 Limited,Gas
Peterborough,http://opendatacommunities.org/id/unitary-authority/peterborough,Peterborough City Council,Business Management and Commercial Operations,Clare Lodge,Energy Costs,07/06/2017 00:00,30130982,842.53,Revenue,Corona Energy Retail 4 Limited,Gas
Peterborough,http://opendatacommunities.org/id/unitary-authority/peterborough,Peterborough City Council,Business Management and Commercial Operations,Clare Lodge,Energy Costs,07/06/2017 00:00,30130982,-611.23,Revenue,Corona Energy Retail 4 Limited,Gas
Peterborough,http://opendatacommunities.org/id/unitary-authority/peterborough,Peterborough City Council,Business Management and Commercial Operations,Clare Lodge,Energy Costs,07/06/2017 00:00,30130982,575.04,Revenue,Corona Energy Retail 4 Limited,Gas
Peterborough,http://opendatacommunities.org/id/unitary-authority/peterborough,Peterborough City Council,Children's & Safeguarding,Child Health,Energy Costs,07/06/2017 00:00,30130987,208.09,Revenue,Corona Energy Retail 4 Limited,Gas
Peterborough,http://opendatacommunities.org/id/unitary-authority/peterborough,Peterborough City Council,Children's & Safeguarding,Child Health,Energy Costs,07/06/2017 00:00,30130987,217.48,Revenue,Corona Energy Retail 4 Limited,Gas
Peterborough,http://opendatacommunities.org/id/unitary-authority/peterborough,Peterborough City Council,Education,PFI,Energy Costs,07/06/2017 00:00,30130987,1896.26,Revenue,Corona Energy Retail 4 Limited,Gas
Peterborough,http://opendatacommunities.org/id/unitary-authority/peterborough,Peterborough City Council,Business Management and Commercial Operations,Clare Lodge,Energy Costs,07/06/2017 00:00,30130987,685.35,Revenue,Corona Energy Retail 4 Limited,Gas
Peterborough,http://opendatacommunities.org/id/unitary-authority/peterborough,Peterborough City Council,Westcombe Engineering,Westcombe Engineering,"Tools, Equipment, Furniture & Materials",07/06/2017 00:00,30131001,1187.91,Revenue,Carillon Industrial Services Ltd,Equipment Purchase
Peterborough,http://opendatacommunities.org/id/unitary-authority/peterborough,Peterborough City Council,Children's & Safeguarding,Children's Social Care,Agency Staff,07/06/2017 00:00,30131040,-4940,Revenue,Sanctuary Personnel Ltd,External Temporary Staff
Peterborough,http://opendatacommunities.org/id/unitary-authority/peterborough,Peterborough City Council,ICT,ICT,Services,07/06/2017 00:00,30131065,15388.51,Revenue,Capita Business Services Ltd,Computer Software
Peterborough,http://opendatacommunities.org/id/unitary-authority/peterborough,Peterborough City Council,Financial Services,Finance,Agency Staff,07/06/2017 00:00,30131078,777,Revenue,Reed Specialist Recruitment Limited,External Temporary Staff
Peterborough,http://opendatacommunities.org/id/unitary-authority/peterborough,Peterborough City Council,Financial Services,Finance,Agency Staff,07/06/2017 00:00,30131083,665.63,Revenue,Reed Specialist Recruitment Limited,External Temporary Staff
Peterborough,http://opendatacommunities.org/id/unitary-authority/peterborough,Peterborough City Council,Corporate,Corporate,Non Revenue,07/06/2017 00:00,30131100,24000,Capital,Enterprise Managed Services Limited,Building And Site Works
Peterborough,http://opendatacommunities.org/id/unitary-authority/peterborough,Peterborough City Council,Corporate,Corporate,Non Revenue,07/06/2017 00:00,30131101,1087.11,Capital,Enterprise Managed Services Limited,Building And Site Works
Peterborough,http://opendatacommunities.org/id/unitary-authority/peterborough,Peterborough City Council,Peterborough Serco Strategic Partnership,Peterborough Serco Strategic Partnership,Services,07/06/2017 00:00,30131122,3670,Revenue,Royal Mail,Franking Machine
Peterborough,http://opendatacommunities.org/id/unitary-authority/peterborough,Peterborough City Council,Corporate,Corporate,Non Revenue,07/06/2017 00:00,30131146,510,Capital,Enterprise Managed Services Limited,Building And Site Works
Peterborough,http://opendatacommunities.org/id/unitary-authority/peterborough,Peterborough City Council,Corporate,Corporate,Non Revenue,07/06/2017 00:00,30131147,1389.07,Capital,Enterprise Managed Services Limited,Building And Site Works
Peterborough,http://opendatacommunities.org/id/unitary-authority/peterborough,Peterborough City Council,"Cemeteries, Cremation & Registrars",Registration Service,Repair & Maintenance of Buildings,07/06/2017 00:00,30131190,2950,Revenue,The Lawns(Peterborough) Ltd,Service Charges - Premises
Peterborough,http://opendatacommunities.org/id/unitary-authority/peterborough,Peterborough City Council,"Cemeteries, Cremation & Registrars",Registration Service,Rents,07/06/2017 00:00,30131191,11469,Revenue,The Lawns(Peterborough) Ltd,Rent
Peterborough,http://opendatacommunities.org/id/unitary-authority/peterborough,Peterborough City Council,HR,HR WFD & Training,Services,07/06/2017 00:00,30131192,6735,Revenue,Interface Enterprises Ltd,Course Instructors Fees
Peterborough,http://opendatacommunities.org/id/unitary-authority/peterborough,Peterborough City Council,Corporate,Corporate,Non Revenue,07/06/2017 00:00,30131211,4811,Capital,John F Dunkling Ltd,Building And Site Works
Peterborough,http://opendatacommunities.org/id/unitary-authority/peterborough,Peterborough City Council,Education,Financing - Resources,Services,07/06/2017 00:00,30131225,107574.02,Revenue,Peterborough Regional College,Education Expenses
Peterborough,http://opendatacommunities.org/id/unitary-authority/peterborough,Peterborough City Council,Children's & Safeguarding,Children's Social Care,Agency Staff,07/06/2017 00:00,30131283,-2497.04,Revenue,Sanctuary Personnel Ltd,External Temporary Staff
Peterborough,http://opendatacommunities.org/id/unitary-authority/peterborough,Peterborough City Council,ICT,ICT,Services,07/06/2017 00:00,30131384,13414,Revenue,The Technology Forge Ltd,Computer Software
Peterborough,http://opendatacommunities.org/id/unitary-authority/peterborough,Peterborough City Council,Corporate Property,Office Accomodation,Repair & Maintenance of Buildings,07/06/2017 00:00,30131397,610.19,Revenue,YMCA Cambridge & Peterborough,Service Charges - Premises
Peterborough,http://opendatacommunities.org/id/unitary-authority/peterborough,Peterborough City Council,HR,HR,Services,07/06/2017 00:00,30131474,23471.86,Revenue,Edenred,Childcare
Peterborough,http://opendatacommunities.org/id/unitary-authority/peterborough,Peterborough City Council,Education,Assets and Schools Place Planning,Services,07/06/2017 00:00,30131598,1600,Revenue,Nelsons,Legal Costs
Peterborough,http://opendatacommunities.org/id/unitary-authority/peterborough,Peterborough City Council,Amey Peterborough & Waste Management,Waste Management,Services,07/06/2017 00:00,30131603,734.9,Revenue,Mick George (Haulage) Ltd,Recycling
Peterborough,http://opendatacommunities.org/id/unitary-authority/peterborough,Peterborough City Council,Business Management and Commercial Operations,Clare Lodge,Interview & Training Expenses,07/06/2017 00:00,30131655,2167.5,Revenue,SG Training Ltd,Training
Peterborough,http://opendatacommunities.org/id/unitary-authority/peterborough,Peterborough City Council,Peterborough Serco Strategic Partnership,Peterborough Serco Strategic Partnership,Services,07/06/2017 00:00,30131686,1187.45,Revenue,Royal Mail,Postage
Peterborough,http://opendatacommunities.org/id/unitary-authority/peterborough,Peterborough City Council,Financial Services,Finance,Agency Staff,07/06/2017 00:00,30131747,1239.51,Revenue,Reed Specialist Recruitment Limited,External Temporary Staff
Peterborough,http://opendatacommunities.org/id/unitary-authority/peterborough,Peterborough City Council,Adult Services & Communities - Adults,Finance,Agency Staff,07/06/2017 00:00,30131753,1808.35,Revenue,Reed Specialist Recruitment Limited,External Temporary Staff
Peterborough,http://opendatacommunities.org/id/unitary-authority/peterborough,Peterborough City Council,Education,Service Director Education,Employee Costs,07/06/2017 00:00,30131771,25990.1,Revenue,Teachers Pensions,Pensions
Peterborough,http://opendatacommunities.org/id/unitary-authority/peterborough,Peterborough City Council,Amey Peterborough & Waste Management,Waste Management,Services,07/06/2017 00:00,30131808,6144.8,Revenue,Biffa Waste Services Ltd,Waste Disposal
Peterborough,http://opendatacommunities.org/id/unitary-authority/peterborough,Peterborough City Council,"Cemeteries, Cremation & Registrars",Bereavement Service,Services,07/06/2017 00:00,30131829,1433,Revenue,Anglia Co-operative Funerals,Contract Funerals
Peterborough,http://opendatacommunities.org/id/unitary-authority/peterborough,Peterborough City Council,Adult Services & Communities - Adults,Independent Sector Placements,Services,07/06/2017 00:00,30131861,1153.56,Revenue,Country Court Care Homes Ltd (St Johns),Residential Care
Peterborough,http://opendatacommunities.org/id/unitary-authority/peterborough,Peterborough City Council,Adult Services & Communities - Adults,Independent Sector Placements,Services,07/06/2017 00:00,30131862,1874.59,Revenue,Cambridgeshire County Council,Day Care
Peterborough,http://opendatacommunities.org/id/unitary-authority/peterborough,Peterborough City Council,Adult Services & Communities - Adults,Independent Sector Placements,Services,07/06/2017 00:00,30131865,1708.8,Revenue,Sahara Community Care Services,Home Care
Peterborough,http://opendatacommunities.org/id/unitary-authority/peterborough,Peterborough City Council,Adult Services & Communities - Adults,Independent Sector Placements,Services,07/06/2017 00:00,30131869,638.57,Revenue,Country Court Care Homes Ltd (St Johns),Residential Care
Peterborough,http://opendatacommunities.org/id/unitary-authority/peterborough,Peterborough City Council,Adults and Communities - Communities,Housing and Health,Services,07/06/2017 00:00,30131884,510.4,Revenue,DA Rosalia Hotel,Homelessness Bed & Breakfast Costs
Peterborough,http://opendatacommunities.org/id/unitary-authority/peterborough,Peterborough City Council,Adults and Communities - Communities,Housing and Health,Services,07/06/2017 00:00,30131891,595.56,Revenue,DA Rosalia Hotel,Homelessness Bed & Breakfast Costs
Peterborough,http://opendatacommunities.org/id/unitary-authority/peterborough,Peterborough City Council,Business Management and Commercial Operations,Clare Lodge,Services,07/06/2017 00:00,30131924,2921.48,Revenue,The K A Wing Group Ltd,Hired Services
Peterborough,http://opendatacommunities.org/id/unitary-authority/peterborough,Peterborough City Council,City Servs & Communications,Regulatory Services,Agency Staff,07/06/2017 00:00,30131928,1140,Revenue,Osborne Richardson,External Temporary Staff
Peterborough,http://opendatacommunities.org/id/unitary-authority/peterborough,Peterborough City Council,City Servs & Communications,Regulatory Services,Agency Staff,07/06/2017 00:00,30131929,1110,Revenue,Osborne Richardson,External Temporary Staff
Peterborough,http://opendatacommunities.org/id/unitary-authority/peterborough,Peterborough City Council,City Servs & Communications,Regulatory Services,Agency Staff,07/06/2017 00:00,30131931,1110,Revenue,Osborne Richardson,External Temporary Staff
Peterborough,http://opendatacommunities.org/id/unitary-authority/peterborough,Peterborough City Council,Adults and Communities - Communities,Service Director - Adults & Communities,Services,07/06/2017 00:00,30131942,1650,Revenue,Athene Communications,Subscriptions
Peterborough,http://opendatacommunities.org/id/unitary-authority/peterborough,Peterborough City Council,Adult Services & Communities - Adults,Independent Sector Placements,Services,07/06/2017 00:00,30131946,2176.24,Revenue,Avery House (Peterborough) t/a Brighterkind,Residential Care
Peterborough,http://opendatacommunities.org/id/unitary-authority/peterborough,Peterborough City Council,Adult Services & Communities - Adults,Independent Sector Placements,Services,07/06/2017 00:00,30131947,2176.24,Revenue,Avery House (Peterborough) t/a Brighterkind,Residential Care
Peterborough,http://opendatacommunities.org/id/unitary-authority/peterborough,Peterborough City Council,Adult Services & Communities - Adults,Independent Sector Placements,Services,07/06/2017 00:00,30131951,-559.14,Revenue,Avery House (Peterborough) t/a Brighterkind,Residential Care
Peterborough,http://opendatacommunities.org/id/unitary-authority/peterborough,Peterborough City Council,HR,HR WFD & Training,Services,07/06/2017 00:00,30131985,1650,Revenue,Athene Communications,Subscriptions
Peterborough,http://opendatacommunities.org/id/unitary-authority/peterborough,Peterborough City Council,HR,HR WFD & Training,Services,07/06/2017 00:00,30131989,1650,Revenue,Athene Communications,Subscriptions
Peterborough,http://opendatacommunities.org/id/unitary-authority/peterborough,Peterborough City Council,Energy,Environment Capital,Services,07/06/2017 00:00,30132011,16000,Revenue,Pinsent Masons,Legal Costs
Peterborough,http://opendatacommunities.org/id/unitary-authority/peterborough,Peterborough City Council,Children's & Safeguarding,Adult & Children Safeguarding Board,Interview & Training Expenses,07/06/2017 00:00,30132022,600,Revenue,HHSCC,Training
Peterborough,http://opendatacommunities.org/id/unitary-authority/peterborough,Peterborough City Council,Children's & Safeguarding,Children's Social Care,Agency Staff,07/06/2017 00:00,30132070,-2035.14,Revenue,Caritas Recruitment,External Temporary Staff
Peterborough,http://opendatacommunities.org/id/unitary-authority/peterborough,Peterborough City Council,Adult Services & Communities - Adults,Block Contracts,Third Party Payments,07/06/2017 00:00,30132075,1999.2,Revenue,Axiom Housing Association,Third Party Payments - Contract
Peterborough,http://opendatacommunities.org/id/unitary-authority/peterborough,Peterborough City Council,Adult Services & Communities - Adults,Block Contracts,Third Party Payments,07/06/2017 00:00,30132079,1999.2,Revenue,Axiom Housing Association,Third Party Payments - Contract
Peterborough,http://opendatacommunities.org/id/unitary-authority/peterborough,Peterborough City Council,HR,HR,Services,07/06/2017 00:00,30132080,995,Revenue,DLA Piper UK LLP,Legal Costs
Peterborough,http://opendatacommunities.org/id/unitary-authority/peterborough,Peterborough City Council,Adult Services & Communities - Adults,Learning Disability,Third Party Payments,07/06/2017 00:00,30132087,14000,Revenue,P'Boro Council For Voluntary Srvs (PCVS),Third Party Payments - Contract
Peterborough,http://opendatacommunities.org/id/unitary-authority/peterborough,Peterborough City Council,Children's & Safeguarding,Children's Social Care,Agency Staff,07/06/2017 00:00,30132100,-1322.75,Revenue,Caritas Recruitment,External Temporary Staff
Peterborough,http://opendatacommunities.org/id/unitary-authority/peterborough,Peterborough City Council,Children's & Safeguarding,Children's Social Care,Agency Staff,07/06/2017 00:00,30132108,-1322.75,Revenue,Caritas Recruitment,External Temporary Staff
Peterborough,http://opendatacommunities.org/id/unitary-authority/peterborough,Peterborough City Council,Financial Services,Finance,Services,07/06/2017 00:00,30132120,2508,Revenue,Emap Publishing Ltd,Subscriptions
Peterborough,http://opendatacommunities.org/id/unitary-authority/peterborough,Peterborough City Council,Children's & Safeguarding,Children's Social Care,Agency Staff,07/06/2017 00:00,30132158,4400,Revenue,Sanctuary Personnel Ltd,External Temporary Staff
Peterborough,http://opendatacommunities.org/id/unitary-authority/peterborough,Peterborough City Council,Education,Special Educational Needs / Inclusion,Services,07/06/2017 00:00,30132165,3630,Revenue,Families First Peterborough,Education Expenses
Peterborough,http://opendatacommunities.org/id/unitary-authority/peterborough,Peterborough City Council,Education,Special Educational Needs / Inclusion,Services,07/06/2017 00:00,30132167,1230,Revenue,Families First Peterborough,Education Expenses
Peterborough,http://opendatacommunities.org/id/unitary-authority/peterborough,Peterborough City Council,Education,Special Educational Needs / Inclusion,Services,07/06/2017 00:00,30132169,1065,Revenue,Families First Peterborough,Education Expenses
Peterborough,http://opendatacommunities.org/id/unitary-authority/peterborough,Peterborough City Council,Adult Services & Communities - Adults,Independent Sector Placements,Services,07/06/2017 00:00,8000090791,630,Revenue,Cambridgeshirehomecare,Home Care
Peterborough,http://opendatacommunities.org/id/unitary-authority/peterborough,Peterborough City Council,Adult Services & Communities - Adults,Independent Sector Placements,Services,07/06/2017 00:00,8000090793,900,Revenue,Cambridgeshirehomecare,Home Care
Peterborough,http://opendatacommunities.org/id/unitary-authority/peterborough,Peterborough City Council,Adult Services & Communities - Adults,Independent Sector Placements,Services,07/06/2017 00:00,8000090794,900,Revenue,Cambridgeshirehomecare,Home Care
Peterborough,http://opendatacommunities.org/id/unitary-authority/peterborough,Peterborough City Council,Adult Services & Communities - Adults,Independent Sector Placements,Services,07/06/2017 00:00,8000090796,866.25,Revenue,Cambridgeshirehomecare,Home Care
Peterborough,http://opendatacommunities.org/id/unitary-authority/peterborough,Peterborough City Council,Adult Services & Communities - Adults,Independent Sector Placements,Services,07/06/2017 00:00,8000090797,1878.75,Revenue,Cambridgeshirehomecare,Home Care
Peterborough,http://opendatacommunities.org/id/unitary-authority/peterborough,Peterborough City Council,Adult Services & Communities - Adults,Independent Sector Placements,Services,07/06/2017 00:00,8000090798,1169.25,Revenue,Cambridgeshirehomecare,Home Care
Peterborough,http://opendatacommunities.org/id/unitary-authority/peterborough,Peterborough City Council,Adult Services & Communities - Adults,Independent Sector Placements,Services,07/06/2017 00:00,8000090800,3780,Revenue,Cambridgeshirehomecare,Home Care
Peterborough,http://opendatacommunities.org/id/unitary-authority/peterborough,Peterborough City Council,Adult Services & Communities - Adults,Independent Sector Placements,Services,07/06/2017 00:00,8000090803,855,Revenue,Cambridgeshirehomecare,Home Care
Peterborough,http://opendatacommunities.org/id/unitary-authority/peterborough,Peterborough City Council,Education,Home to School Transport,Contract Hire and Operating Leases,07/06/2017 00:00,8000090816,1940,Revenue,A2B Euro Cars,Hired Transport
Peterborough,http://opendatacommunities.org/id/unitary-authority/peterborough,Peterborough City Council,Education,Home to School Transport,Contract Hire and Operating Leases,07/06/2017 00:00,8000090817,2690,Revenue,A2B Euro Cars,Hired Transport
Peterborough,http://opendatacommunities.org/id/unitary-authority/peterborough,Peterborough City Council,Education,Home to School Transport,Contract Hire and Operating Leases,07/06/2017 00:00,8000090818,1830,Revenue,A2B Euro Cars,Hired Transport
Peterborough,http://opendatacommunities.org/id/unitary-authority/peterborough,Peterborough City Council,Education,Home to School Transport,Contract Hire and Operating Leases,07/06/2017 00:00,8000090819,1517,Revenue,A2B Euro Cars,Hired Transport
Peterborough,http://opendatacommunities.org/id/unitary-authority/peterborough,Peterborough City Council,Education,Home to School Transport,Contract Hire and Operating Leases,07/06/2017 00:00,8000090820,1059,Revenue,A2B Euro Cars,Hired Transport
Peterborough,http://opendatacommunities.org/id/unitary-authority/peterborough,Peterborough City Council,Education,Home to School Transport,Contract Hire and Operating Leases,07/06/2017 00:00,8000090821,1259,Revenue,A2B Euro Cars,Hired Transport
Peterborough,http://opendatacommunities.org/id/unitary-authority/peterborough,Peterborough City Council,Education,Home to School Transport,Contract Hire and Operating Leases,07/06/2017 00:00,8000090822,503.5,Revenue,A2B Euro Cars,Hired Transport
Peterborough,http://opendatacommunities.org/id/unitary-authority/peterborough,Peterborough City Council,Education,Home to School Transport,Contract Hire and Operating Leases,07/06/2017 00:00,8000090823,2190,Revenue,A2B Euro Cars,Hired Transport
Peterborough,http://opendatacommunities.org/id/unitary-authority/peterborough,Peterborough City Council,Education,Home to School Transport,Contract Hire and Operating Leases,07/06/2017 00:00,8000090824,2440,Revenue,A2B Euro Cars,Hired Transport
Peterborough,http://opendatacommunities.org/id/unitary-authority/peterborough,Peterborough City Council,Education,Home to School Transport,Contract Hire and Operating Leases,07/06/2017 00:00,8000090828,702,Revenue,Peterborough Cars,Hired Transport
Peterborough,http://opendatacommunities.org/id/unitary-authority/peterborough,Peterborough City Council,Education,Home to School Transport,Contract Hire and Operating Leases,07/06/2017 00:00,8000090829,605.16,Revenue,Peterborough Cars,Hired Transport
Peterborough,http://opendatacommunities.org/id/unitary-authority/peterborough,Peterborough City Council,Education,Home to School Transport,Contract Hire and Operating Leases,07/06/2017 00:00,8000090833,557.82,Revenue,Peterborough Cars,Hired Transport
Peterborough,http://opendatacommunities.org/id/unitary-authority/peterborough,Peterborough City Council,Education,Home to School Transport,Contract Hire and Operating Leases,07/06/2017 00:00,8000090837,592,Revenue,Peterborough Cars,Hired Transport
Peterborough,http://opendatacommunities.org/id/unitary-authority/peterborough,Peterborough City Council,Education,Home to School Transport,Contract Hire and Operating Leases,07/06/2017 00:00,8000090838,1126.92,Revenue,Goldstar Cabs Ltd,Hired Transport
Peterborough,http://opendatacommunities.org/id/unitary-authority/peterborough,Peterborough City Council,Education,Home to School Transport,Contract Hire and Operating Leases,07/06/2017 00:00,8000090839,2096,Revenue,Goldstar Cabs Ltd,Hired Transport
Peterborough,http://opendatacommunities.org/id/unitary-authority/peterborough,Peterborough City Council,Education,Home to School Transport,Contract Hire and Operating Leases,07/06/2017 00:00,8000090842,948,Revenue,Nationwide Cars (Peterborough) Ltd,Hired Transport
Peterborough,http://opendatacommunities.org/id/unitary-authority/peterborough,Peterborough City Council,Adult Services & Communities - Adults,Independent Sector Placements,Services,07/06/2017 00:00,8000090862,518.76,Revenue,Redacted Personal Data,Adult Social Care Direct Payment
Peterborough,http://opendatacommunities.org/id/unitary-authority/peterborough,Peterborough City Council,Adult Services & Communities - Adults,Independent Sector Placements,Services,07/06/2017 00:00,8000090863,4899.8,Revenue,Redacted Personal Data,Adult Social Care Direct Payment
Peterborough,http://opendatacommunities.org/id/unitary-authority/peterborough,Peterborough City Council,Adult Services & Communities - Adults,Independent Sector Placements,Services,07/06/2017 00:00,8000090864,969.76,Revenue,Redacted Personal Data,Adult Social Care Direct Payment
Peterborough,http://opendatacommunities.org/id/unitary-authority/peterborough,Peterborough City Council,Adult Services & Communities - Adults,Independent Sector Placements,Services,07/06/2017 00:00,8000090865,1426.52,Revenue,Redacted Personal Data,Adult Social Care Direct Payment
Peterborough,http://opendatacommunities.org/id/unitary-authority/peterborough,Peterborough City Council,Adult Services & Communities - Adults,Independent Sector Placements,Services,07/06/2017 00:00,8000090867,1166.04,Revenue,Redacted Personal Data,Adult Social Care Direct Payment
Peterborough,http://opendatacommunities.org/id/unitary-authority/peterborough,Peterborough City Council,Adult Services & Communities - Adults,Independent Sector Placements,Services,07/06/2017 00:00,8000090868,858.16,Revenue,Redacted Personal Data,Adult Social Care Direct Payment
Peterborough,http://opendatacommunities.org/id/unitary-authority/peterborough,Peterborough City Council,Adult Services & Communities - Adults,Independent Sector Placements,Services,07/06/2017 00:00,8000090869,941.04,Revenue,Redacted Personal Data,Adult Social Care Direct Payment
Peterborough,http://opendatacommunities.org/id/unitary-authority/peterborough,Peterborough City Council,Adult Services & Communities - Adults,Independent Sector Placements,Services,07/06/2017 00:00,8000090872,2573.28,Revenue,Redacted Personal Data,Adult Social Care Direct Payment
Peterborough,http://opendatacommunities.org/id/unitary-authority/peterborough,Peterborough City Council,Adult Services & Communities - Adults,Independent Sector Placements,Services,07/06/2017 00:00,8000090873,899.04,Revenue,Redacted Personal Data,Adult Social Care Direct Payment
Peterborough,http://opendatacommunities.org/id/unitary-authority/peterborough,Peterborough City Council,Adult Services & Communities - Adults,Independent Sector Placements,Services,07/06/2017 00:00,8000090874,1790.2,Revenue,Redacted Personal Data,Adult Social Care Direct Payment
Peterborough,http://opendatacommunities.org/id/unitary-authority/peterborough,Peterborough City Council,Adult Services & Communities - Adults,Independent Sector Placements,Services,07/06/2017 00:00,8000090875,1440.8,Revenue,Redacted Personal Data,Adult Social Care Direct Payment
Peterborough,http://opendatacommunities.org/id/unitary-authority/peterborough,Peterborough City Council,Adult Services & Communities - Adults,Independent Sector Placements,Services,07/06/2017 00:00,8000090876,7180.56,Revenue,Redacted Personal Data,Adult Social Care Direct Payment
Peterborough,http://opendatacommunities.org/id/unitary-authority/peterborough,Peterborough City Council,Adult Services & Communities - Adults,Independent Sector Placements,Services,07/06/2017 00:00,8000090877,5805.72,Revenue,Redacted Personal Data,Adult Social Care Direct Payment
Peterborough,http://opendatacommunities.org/id/unitary-authority/peterborough,Peterborough City Council,Adult Services & Communities - Adults,Independent Sector Placements,Services,07/06/2017 00:00,8000090878,862.04,Revenue,Redacted Personal Data,Adult Social Care Direct Payment
Peterborough,http://opendatacommunities.org/id/unitary-authority/peterborough,Peterborough City Council,Adult Services & Communities - Adults,Independent Sector Placements,Services,07/06/2017 00:00,8000090879,4995.6,Revenue,Redacted Personal Data,Adult Social Care Direct Payment
Peterborough,http://opendatacommunities.org/id/unitary-authority/peterborough,Peterborough City Council,Adult Services & Communities - Adults,Independent Sector Placements,Services,07/06/2017 00:00,8000090881,14109.69,Revenue,Redacted Personal Data,Adult Social Care Direct Payment
Peterborough,http://opendatacommunities.org/id/unitary-authority/peterborough,Peterborough City Council,Adult Services & Communities - Adults,Independent Sector Placements,Services,07/06/2017 00:00,8000090882,600,Revenue,Redacted Personal Data,Adult Social Care Direct Payment
Peterborough,http://opendatacommunities.org/id/unitary-authority/peterborough,Peterborough City Council,Adult Services & Communities - Adults,Independent Sector Placements,Services,07/06/2017 00:00,8000090883,658.56,Revenue,Redacted Personal Data,Adult Social Care Direct Payment
Peterborough,http://opendatacommunities.org/id/unitary-authority/peterborough,Peterborough City Council,Adult Services & Communities - Adults,Independent Sector Placements,Services,07/06/2017 00:00,8000090885,2120.36,Revenue,Redacted Personal Data,Adult Social Care Direct Payment
Peterborough,http://opendatacommunities.org/id/unitary-authority/peterborough,Peterborough City Council,Adult Services & Communities - Adults,Independent Sector Placements,Services,07/06/2017 00:00,8000090886,6840.76,Revenue,Redacted Personal Data,Adult Social Care Direct Payment
Peterborough,http://opendatacommunities.org/id/unitary-authority/peterborough,Peterborough City Council,Adult Services & Communities - Adults,Independent Sector Placements,Services,07/06/2017 00:00,8000090887,2513.8,Revenue,Redacted Personal Data,Adult Social Care Direct Payment
Peterborough,http://opendatacommunities.org/id/unitary-authority/peterborough,Peterborough City Council,Adult Services & Communities - Adults,Independent Sector Placements,Services,07/06/2017 00:00,8000090888,1397.52,Revenue,Redacted Personal Data,Adult Social Care Direct Payment
Peterborough,http://opendatacommunities.org/id/unitary-authority/peterborough,Peterborough City Council,Adult Services & Communities - Adults,Independent Sector Placements,Services,07/06/2017 00:00,8000090890,2339.56,Revenue,Redacted Personal Data,Adult Social Care Direct Payment
Peterborough,http://opendatacommunities.org/id/unitary-authority/peterborough,Peterborough City Council,Adult Services & Communities - Adults,Independent Sector Placements,Services,07/06/2017 00:00,8000090891,920.52,Revenue,Redacted Personal Data,Adult Social Care Direct Payment
Peterborough,http://opendatacommunities.org/id/unitary-authority/peterborough,Peterborough City Council,Adult Services & Communities - Adults,Independent Sector Placements,Services,07/06/2017 00:00,8000090892,1647.64,Revenue,Redacted Personal Data,Adult Social Care Direct Payment
Peterborough,http://opendatacommunities.org/id/unitary-authority/peterborough,Peterborough City Council,Adult Services & Communities - Adults,Independent Sector Placements,Services,07/06/2017 00:00,8000090893,1089.48,Revenue,Redacted Personal Data,Adult Social Care Direct Payment
Peterborough,http://opendatacommunities.org/id/unitary-authority/peterborough,Peterborough City Council,Adult Services & Communities - Adults,Independent Sector Placements,Services,07/06/2017 00:00,8000090894,707.98,Revenue,Redacted Personal Data,Adult Social Care Direct Payment
Peterborough,http://opendatacommunities.org/id/unitary-authority/peterborough,Peterborough City Council,Adult Services & Communities - Adults,Independent Sector Placements,Services,07/06/2017 00:00,8000090895,1669.56,Revenue,Redacted Personal Data,Adult Social Care Direct Payment
Peterborough,http://opendatacommunities.org/id/unitary-authority/peterborough,Peterborough City Council,Adult Services & Communities - Adults,Independent Sector Placements,Services,07/06/2017 00:00,8000090896,1686.04,Revenue,Redacted Personal Data,Adult Social Care Direct Payment
Peterborough,http://opendatacommunities.org/id/unitary-authority/peterborough,Peterborough City Council,Adult Services & Communities - Adults,Independent Sector Placements,Services,07/06/2017 00:00,8000090897,2282.48,Revenue,Redacted Personal Data,Adult Social Care Direct Payment
Peterborough,http://opendatacommunities.org/id/unitary-authority/peterborough,Peterborough City Council,Adult Services & Communities - Adults,Independent Sector Placements,Services,07/06/2017 00:00,8000090898,5932.48,Revenue,Redacted Personal Data,Adult Social Care Direct Payment
Peterborough,http://opendatacommunities.org/id/unitary-authority/peterborough,Peterborough City Council,Adult Services & Communities - Adults,Independent Sector Placements,Services,07/06/2017 00:00,8000090899,2594.24,Revenue,Redacted Personal Data,Adult Social Care Direct Payment
Peterborough,http://opendatacommunities.org/id/unitary-authority/peterborough,Peterborough City Council,Adult Services & Communities - Adults,Independent Sector Placements,Services,07/06/2017 00:00,8000090900,1286.64,Revenue,Redacted Personal Data,Adult Social Care Direct Payment
Peterborough,http://opendatacommunities.org/id/unitary-authority/peterborough,Peterborough City Council,Adult Services & Communities - Adults,Independent Sector Placements,Services,07/06/2017 00:00,8000090901,2576.24,Revenue,Redacted Personal Data,Adult Social Care Direct Payment
Peterborough,http://opendatacommunities.org/id/unitary-authority/peterborough,Peterborough City Council,Adult Services & Communities - Adults,Independent Sector Placements,Services,07/06/2017 00:00,8000090903,1629.24,Revenue,Redacted Personal Data,Adult Social Care Direct Payment
Peterborough,http://opendatacommunities.org/id/unitary-authority/peterborough,Peterborough City Council,Adult Services & Communities - Adults,Independent Sector Placements,Services,07/06/2017 00:00,8000090904,979.08,Revenue,Redacted Personal Data,Adult Social Care Direct Payment
Peterborough,http://opendatacommunities.org/id/unitary-authority/peterborough,Peterborough City Council,Adult Services & Communities - Adults,Independent Sector Placements,Services,07/06/2017 00:00,8000090907,3141.72,Revenue,Redacted Personal Data,Adult Social Care Direct Payment
Peterborough,http://opendatacommunities.org/id/unitary-authority/peterborough,Peterborough City Council,Adult Services & Communities - Adults,Independent Sector Placements,Services,07/06/2017 00:00,8000090908,1325.16,Revenue,Redacted Personal Data,Adult Social Care Direct Payment
Peterborough,http://opendatacommunities.org/id/unitary-authority/peterborough,Peterborough City Council,Adult Services & Communities - Adults,Independent Sector Placements,Services,07/06/2017 00:00,8000090909,680.8,Revenue,Redacted Personal Data,Adult Social Care Direct Payment
Peterborough,http://opendatacommunities.org/id/unitary-authority/peterborough,Peterborough City Council,Adult Services & Communities - Adults,Independent Sector Placements,Services,07/06/2017 00:00,8000090910,1340.4,Revenue,Redacted Personal Data,Adult Social Care Direct Payment
Peterborough,http://opendatacommunities.org/id/unitary-authority/peterborough,Peterborough City Council,Adult Services & Communities - Adults,Independent Sector Placements,Services,07/06/2017 00:00,8000090911,1436,Revenue,Redacted Personal Data,Adult Social Care Direct Payment
Peterborough,http://opendatacommunities.org/id/unitary-authority/peterborough,Peterborough City Council,Adult Services & Communities - Adults,Independent Sector Placements,Services,07/06/2017 00:00,8000090912,2090.6,Revenue,Redacted Personal Data,Adult Social Care Direct Payment
Peterborough,http://opendatacommunities.org/id/unitary-authority/peterborough,Peterborough City Council,Adult Services & Communities - Adults,Independent Sector Placements,Services,07/06/2017 00:00,8000090913,2689,Revenue,Redacted Personal Data,Adult Social Care Direct Payment
Peterborough,http://opendatacommunities.org/id/unitary-authority/peterborough,Peterborough City Council,Adult Services & Communities - Adults,Independent Sector Placements,Services,07/06/2017 00:00,8000090914,3502.88,Revenue,Redacted Personal Data,Adult Social Care Direct Payment
Peterborough,http://opendatacommunities.org/id/unitary-authority/peterborough,Peterborough City Council,Adult Services & Communities - Adults,Independent Sector Placements,Services,07/06/2017 00:00,8000090915,1700,Revenue,Redacted Personal Data,Adult Social Care Direct Payment
Peterborough,http://opendatacommunities.org/id/unitary-authority/peterborough,Peterborough City Council,Adult Services & Communities - Adults,Independent Sector Placements,Services,07/06/2017 00:00,8000090916,2585.52,Revenue,Redacted Personal Data,Adult Social Care Direct Payment
Peterborough,http://opendatacommunities.org/id/unitary-authority/peterborough,Peterborough City Council,Adult Services & Communities - Adults,Independent Sector Placements,Services,07/06/2017 00:00,8000090917,2332.36,Revenue,Redacted Personal Data,Adult Social Care Direct Payment
Peterborough,http://opendatacommunities.org/id/unitary-authority/peterborough,Peterborough City Council,Adult Services & Communities - Adults,Independent Sector Placements,Services,07/06/2017 00:00,8000090921,503.36,Revenue,Redacted Personal Data,Adult Social Care Direct Payment
Peterborough,http://opendatacommunities.org/id/unitary-authority/peterborough,Peterborough City Council,Adult Services & Communities - Adults,Independent Sector Placements,Services,07/06/2017 00:00,8000090922,705.36,Revenue,Redacted Personal Data,Adult Social Care Direct Payment
Peterborough,http://opendatacommunities.org/id/unitary-authority/peterborough,Peterborough City Council,Adult Services & Communities - Adults,Independent Sector Placements,Services,07/06/2017 00:00,8000090923,972.72,Revenue,Redacted Personal Data,Adult Social Care Direct Payment
Peterborough,http://opendatacommunities.org/id/unitary-authority/peterborough,Peterborough City Council,Adult Services & Communities - Adults,Independent Sector Placements,Services,07/06/2017 00:00,8000090924,1584,Revenue,Redacted Personal Data,Adult Social Care Direct Payment
Peterborough,http://opendatacommunities.org/id/unitary-authority/peterborough,Peterborough City Council,Adult Services & Communities - Adults,Independent Sector Placements,Services,07/06/2017 00:00,8000090925,910.04,Revenue,Redacted Personal Data,Adult Social Care Direct Payment
Peterborough,http://opendatacommunities.org/id/unitary-authority/peterborough,Peterborough City Council,Adult Services & Communities - Adults,Independent Sector Placements,Services,07/06/2017 00:00,8000090928,1090.8,Revenue,Redacted Personal Data,Adult Social Care Direct Payment
Peterborough,http://opendatacommunities.org/id/unitary-authority/peterborough,Peterborough City Council,Adult Services & Communities - Adults,Independent Sector Placements,Services,07/06/2017 00:00,8000090929,2176,Revenue,Redacted Personal Data,Adult Social Care Direct Payment
Peterborough,http://opendatacommunities.org/id/unitary-authority/peterborough,Peterborough City Council,Adult Services & Communities - Adults,Independent Sector Placements,Services,07/06/2017 00:00,8000090930,852.32,Revenue,Redacted Personal Data,Adult Social Care Direct Payment
Peterborough,http://opendatacommunities.org/id/unitary-authority/peterborough,Peterborough City Council,Adult Services & Communities - Adults,Independent Sector Placements,Services,07/06/2017 00:00,8000090931,984.08,Revenue,Redacted Personal Data,Adult Social Care Direct Payment
Peterborough,http://opendatacommunities.org/id/unitary-authority/peterborough,Peterborough City Council,Adult Services & Communities - Adults,Independent Sector Placements,Services,07/06/2017 00:00,8000090932,1716.32,Revenue,Redacted Personal Data,Adult Social Care Direct Payment
Peterborough,http://opendatacommunities.org/id/unitary-authority/peterborough,Peterborough City Council,Adult Services & Communities - Adults,Independent Sector Placements,Services,07/06/2017 00:00,8000090933,537.44,Revenue,Redacted Personal Data,Adult Social Care Direct Payment
Peterborough,http://opendatacommunities.org/id/unitary-authority/peterborough,Peterborough City Council,Adult Services & Communities - Adults,Independent Sector Placements,Services,07/06/2017 00:00,8000090935,655.2,Revenue,Redacted Personal Data,Adult Social Care Direct Payment
Peterborough,http://opendatacommunities.org/id/unitary-authority/peterborough,Peterborough City Council,Adult Services & Communities - Adults,Independent Sector Placements,Services,07/06/2017 00:00,8000090939,656.32,Revenue,Redacted Personal Data,Adult Social Care Direct Payment
Peterborough,http://opendatacommunities.org/id/unitary-authority/peterborough,Peterborough City Council,Adult Services & Communities - Adults,Independent Sector Placements,Services,07/06/2017 00:00,8000090941,709.8,Revenue,Redacted Personal Data,Adult Social Care Direct Payment
Peterborough,http://opendatacommunities.org/id/unitary-authority/peterborough,Peterborough City Council,Adult Services & Communities - Adults,Independent Sector Placements,Services,07/06/2017 00:00,8000090942,1341.44,Revenue,Redacted Personal Data,Adult Social Care Direct Payment
Peterborough,http://opendatacommunities.org/id/unitary-authority/peterborough,Peterborough City Council,Adult Services & Communities - Adults,Independent Sector Placements,Services,07/06/2017 00:00,8000090945,1562,Revenue,Redacted Personal Data,Adult Social Care Direct Payment
Peterborough,http://opendatacommunities.org/id/unitary-authority/peterborough,Peterborough City Council,Adult Services & Communities - Adults,Independent Sector Placements,Services,07/06/2017 00:00,8000090946,555.6,Revenue,Redacted Personal Data,Adult Social Care Direct Payment
Peterborough,http://opendatacommunities.org/id/unitary-authority/peterborough,Peterborough City Council,Adult Services & Communities - Adults,Independent Sector Placements,Services,07/06/2017 00:00,8000090947,897.6,Revenue,Redacted Personal Data,Adult Social Care Direct Payment
Peterborough,http://opendatacommunities.org/id/unitary-authority/peterborough,Peterborough City Council,Adult Services & Communities - Adults,Independent Sector Placements,Services,07/06/2017 00:00,8000090950,760.88,Revenue,Redacted Personal Data,Adult Social Care Direct Payment
Peterborough,http://opendatacommunities.org/id/unitary-authority/peterborough,Peterborough City Council,Adult Services & Communities - Adults,Independent Sector Placements,Services,07/06/2017 00:00,8000090951,725.08,Revenue,Redacted Personal Data,Adult Social Care Direct Payment
Peterborough,http://opendatacommunities.org/id/unitary-authority/peterborough,Peterborough City Council,Adult Services & Communities - Adults,Independent Sector Placements,Services,07/06/2017 00:00,8000090952,1101.8,Revenue,Redacted Personal Data,Adult Social Care Direct Payment
Peterborough,http://opendatacommunities.org/id/unitary-authority/peterborough,Peterborough City Council,Adult Services & Communities - Adults,Independent Sector Placements,Services,07/06/2017 00:00,8000090953,3222.56,Revenue,Redacted Personal Data,Adult Social Care Direct Payment
Peterborough,http://opendatacommunities.org/id/unitary-authority/peterborough,Peterborough City Council,Adult Services & Communities - Adults,Independent Sector Placements,Services,07/06/2017 00:00,8000090954,1764,Revenue,Redacted Personal Data,Adult Social Care Direct Payment
Peterborough,http://opendatacommunities.org/id/unitary-authority/peterborough,Peterborough City Council,Adult Services & Communities - Adults,Independent Sector Placements,Services,07/06/2017 00:00,8000090956,811.24,Revenue,Redacted Personal Data,Adult Social Care Direct Payment
Peterborough,http://opendatacommunities.org/id/unitary-authority/peterborough,Peterborough City Council,Adult Services & Communities - Adults,Independent Sector Placements,Services,07/06/2017 00:00,8000090957,714.88,Revenue,Redacted Personal Data,Adult Social Care Direct Payment
Peterborough,http://opendatacommunities.org/id/unitary-authority/peterborough,Peterborough City Council,Adult Services & Communities - Adults,Independent Sector Placements,Services,07/06/2017 00:00,8000090960,2430.48,Revenue,Redacted Personal Data,Adult Social Care Direct Payment
Peterborough,http://opendatacommunities.org/id/unitary-authority/peterborough,Peterborough City Council,Adult Services & Communities - Adults,Independent Sector Placements,Services,07/06/2017 00:00,8000090961,1549.16,Revenue,Redacted Personal Data,Adult Social Care Direct Payment
Peterborough,http://opendatacommunities.org/id/unitary-authority/peterborough,Peterborough City Council,Adult Services & Communities - Adults,Independent Sector Placements,Services,07/06/2017 00:00,8000090962,3600,Revenue,Redacted Personal Data,Adult Social Care Direct Payment
Peterborough,http://opendatacommunities.org/id/unitary-authority/peterborough,Peterborough City Council,Adult Services & Communities - Adults,Independent Sector Placements,Services,07/06/2017 00:00,8000090963,733.36,Revenue,Redacted Personal Data,Adult Social Care Direct Payment
Peterborough,http://opendatacommunities.org/id/unitary-authority/peterborough,Peterborough City Council,Adult Services & Communities - Adults,Independent Sector Placements,Services,07/06/2017 00:00,8000090964,3800,Revenue,Redacted Personal Data,Adult Social Care Direct Payment
Peterborough,http://opendatacommunities.org/id/unitary-authority/peterborough,Peterborough City Council,Adult Services & Communities - Adults,Independent Sector Placements,Services,07/06/2017 00:00,8000090965,1688.52,Revenue,Redacted Personal Data,Adult Social Care Direct Payment
Peterborough,http://opendatacommunities.org/id/unitary-authority/peterborough,Peterborough City Council,Adult Services & Communities - Adults,Independent Sector Placements,Services,07/06/2017 00:00,8000090966,629.16,Revenue,Redacted Personal Data,Adult Social Care Direct Payment
Peterborough,http://opendatacommunities.org/id/unitary-authority/peterborough,Peterborough City Council,Adult Services & Communities - Adults,Independent Sector Placements,Services,07/06/2017 00:00,8000090968,878.92,Revenue,Redacted Personal Data,Adult Social Care Direct Payment
Peterborough,http://opendatacommunities.org/id/unitary-authority/peterborough,Peterborough City Council,Adult Services & Communities - Adults,Independent Sector Placements,Services,07/06/2017 00:00,8000090972,1214.48,Revenue,Redacted Personal Data,Adult Social Care Direct Payment
Peterborough,http://opendatacommunities.org/id/unitary-authority/peterborough,Peterborough City Council,Adult Services & Communities - Adults,Independent Sector Placements,Services,07/06/2017 00:00,8000090973,2149.4,Revenue,Redacted Personal Data,Adult Social Care Direct Payment
Peterborough,http://opendatacommunities.org/id/unitary-authority/peterborough,Peterborough City Council,Adult Services & Communities - Adults,Independent Sector Placements,Services,07/06/2017 00:00,8000090974,5783.28,Revenue,Redacted Personal Data,Adult Social Care Direct Payment
Peterborough,http://opendatacommunities.org/id/unitary-authority/peterborough,Peterborough City Council,Adult Services & Communities - Adults,Independent Sector Placements,Services,07/06/2017 00:00,8000090975,1612.08,Revenue,Redacted Personal Data,Adult Social Care Direct Payment
Peterborough,http://opendatacommunities.org/id/unitary-authority/peterborough,Peterborough City Council,Adult Services & Communities - Adults,Independent Sector Placements,Services,07/06/2017 00:00,8000090976,3701.16,Revenue,Redacted Personal Data,Adult Social Care Direct Payment
Peterborough,http://opendatacommunities.org/id/unitary-authority/peterborough,Peterborough City Council,Adult Services & Communities - Adults,Independent Sector Placements,Services,07/06/2017 00:00,8000090977,5558.88,Revenue,Redacted Personal Data,Adult Social Care Direct Payment
Peterborough,http://opendatacommunities.org/id/unitary-authority/peterborough,Peterborough City Council,Adult Services & Communities - Adults,Independent Sector Placements,Services,07/06/2017 00:00,8000090978,6232.88,Revenue,Redacted Personal Data,Adult Social Care Direct Payment
Peterborough,http://opendatacommunities.org/id/unitary-authority/peterborough,Peterborough City Council,Adult Services & Communities - Adults,Independent Sector Placements,Services,07/06/2017 00:00,8000090980,1604.6,Revenue,Redacted Personal Data,Adult Social Care Direct Payment
Peterborough,http://opendatacommunities.org/id/unitary-authority/peterborough,Peterborough City Council,Adult Services & Communities - Adults,Independent Sector Placements,Services,07/06/2017 00:00,8000090981,7015.12,Revenue,Redacted Personal Data,Adult Social Care Direct Payment
Peterborough,http://opendatacommunities.org/id/unitary-authority/peterborough,Peterborough City Council,Adult Services & Communities - Adults,Independent Sector Placements,Services,07/06/2017 00:00,8000090983,762.92,Revenue,Redacted Personal Data,Adult Social Care Direct Payment
Peterborough,http://opendatacommunities.org/id/unitary-authority/peterborough,Peterborough City Council,Adult Services & Communities - Adults,Independent Sector Placements,Services,07/06/2017 00:00,8000090984,6194.4,Revenue,Redacted Personal Data,Adult Social Care Direct Payment
Peterborough,http://opendatacommunities.org/id/unitary-authority/peterborough,Peterborough City Council,Adult Services & Communities - Adults,Independent Sector Placements,Services,07/06/2017 00:00,8000090986,3278.72,Revenue,Redacted Personal Data,Adult Social Care Direct Payment
Peterborough,http://opendatacommunities.org/id/unitary-authority/peterborough,Peterborough City Council,Adult Services & Communities - Adults,Independent Sector Placements,Services,07/06/2017 00:00,8000090987,952,Revenue,Redacted Personal Data,Adult Social Care Direct Payment
Peterborough,http://opendatacommunities.org/id/unitary-authority/peterborough,Peterborough City Council,Adult Services & Communities - Adults,Independent Sector Placements,Services,07/06/2017 00:00,8000090989,12587.14,Revenue,Redacted Personal Data,Adult Social Care Direct Payment
Peterborough,http://opendatacommunities.org/id/unitary-authority/peterborough,Peterborough City Council,Adult Services & Communities - Adults,Independent Sector Placements,Services,07/06/2017 00:00,8000090990,1050.48,Revenue,Redacted Personal Data,Adult Social Care Direct Payment
Peterborough,http://opendatacommunities.org/id/unitary-authority/peterborough,Peterborough City Council,Adult Services & Communities - Adults,Independent Sector Placements,Services,07/06/2017 00:00,8000090992,2608.68,Revenue,Redacted Personal Data,Adult Social Care Direct Payment
Peterborough,http://opendatacommunities.org/id/unitary-authority/peterborough,Peterborough City Council,Adult Services & Communities - Adults,Independent Sector Placements,Services,07/06/2017 00:00,8000090993,1124,Revenue,Redacted Personal Data,Adult Social Care Direct Payment
Peterborough,http://opendatacommunities.org/id/unitary-authority/peterborough,Peterborough City Council,Adult Services & Communities - Adults,Independent Sector Placements,Services,07/06/2017 00:00,8000090994,1416.64,Revenue,Redacted Personal Data,Adult Social Care Direct Payment
Peterborough,http://opendatacommunities.org/id/unitary-authority/peterborough,Peterborough City Council,Adult Services & Communities - Adults,Independent Sector Placements,Services,07/06/2017 00:00,8000090995,1088,Revenue,Redacted Personal Data,Adult Social Care Direct Payment
Peterborough,http://opendatacommunities.org/id/unitary-authority/peterborough,Peterborough City Council,Adult Services & Communities - Adults,Independent Sector Placements,Services,07/06/2017 00:00,8000090996,1107.6,Revenue,Redacted Personal Data,Adult Social Care Direct Payment
Peterborough,http://opendatacommunities.org/id/unitary-authority/peterborough,Peterborough City Council,Adult Services & Communities - Adults,Independent Sector Placements,Services,07/06/2017 00:00,8000090997,1948.12,Revenue,Redacted Personal Data,Adult Social Care Direct Payment
Peterborough,http://opendatacommunities.org/id/unitary-authority/peterborough,Peterborough City Council,Adult Services & Communities - Adults,Independent Sector Placements,Services,07/06/2017 00:00,8000090998,1719.2,Revenue,Redacted Personal Data,Adult Social Care Direct Payment
Peterborough,http://opendatacommunities.org/id/unitary-authority/peterborough,Peterborough City Council,Adult Services & Communities - Adults,Independent Sector Placements,Services,07/06/2017 00:00,8000091000,870.64,Revenue,Redacted Personal Data,Adult Social Care Direct Payment
Peterborough,http://opendatacommunities.org/id/unitary-authority/peterborough,Peterborough City Council,Adult Services & Communities - Adults,Independent Sector Placements,Services,07/06/2017 00:00,8000091002,618.84,Revenue,Redacted Personal Data,Adult Social Care Direct Payment
Peterborough,http://opendatacommunities.org/id/unitary-authority/peterborough,Peterborough City Council,Adult Services & Communities - Adults,Independent Sector Placements,Services,07/06/2017 00:00,8000091003,773.28,Revenue,Redacted Personal Data,Adult Social Care Direct Payment
Peterborough,http://opendatacommunities.org/id/unitary-authority/peterborough,Peterborough City Council,Adult Services & Communities - Adults,Independent Sector Placements,Services,07/06/2017 00:00,8000091004,554.64,Revenue,Redacted Personal Data,Adult Social Care Direct Payment
Peterborough,http://opendatacommunities.org/id/unitary-authority/peterborough,Peterborough City Council,Adult Services & Communities - Adults,Independent Sector Placements,Services,07/06/2017 00:00,8000091005,548.64,Revenue,Redacted Personal Data,Adult Social Care Direct Payment
Peterborough,http://opendatacommunities.org/id/unitary-authority/peterborough,Peterborough City Council,Adult Services & Communities - Adults,Independent Sector Placements,Services,07/06/2017 00:00,8000091006,8586.48,Revenue,Redacted Personal Data,Adult Social Care Direct Payment
Peterborough,http://opendatacommunities.org/id/unitary-authority/peterborough,Peterborough City Council,Adult Services & Communities - Adults,Independent Sector Placements,Services,07/06/2017 00:00,8000091007,1027.64,Revenue,Redacted Personal Data,Adult Social Care Direct Payment
Peterborough,http://opendatacommunities.org/id/unitary-authority/peterborough,Peterborough City Council,Adult Services & Communities - Adults,Independent Sector Placements,Services,07/06/2017 00:00,8000091008,5117.92,Revenue,Redacted Personal Data,Adult Social Care Direct Payment
Peterborough,http://opendatacommunities.org/id/unitary-authority/peterborough,Peterborough City Council,Adult Services & Communities - Adults,Independent Sector Placements,Services,07/06/2017 00:00,8000091009,1269.52,Revenue,Redacted Personal Data,Adult Social Care Direct Payment
Peterborough,http://opendatacommunities.org/id/unitary-authority/peterborough,Peterborough City Council,Adult Services & Communities - Adults,Independent Sector Placements,Services,07/06/2017 00:00,8000091010,951.44,Revenue,Redacted Personal Data,Adult Social Care Direct Payment
Peterborough,http://opendatacommunities.org/id/unitary-authority/peterborough,Peterborough City Council,Adult Services & Communities - Adults,Independent Sector Placements,Services,07/06/2017 00:00,8000091012,832.48,Revenue,Redacted Personal Data,Adult Social Care Direct Payment
Peterborough,http://opendatacommunities.org/id/unitary-authority/peterborough,Peterborough City Council,Adult Services & Communities - Adults,Independent Sector Placements,Services,07/06/2017 00:00,8000091013,586.56,Revenue,Redacted Personal Data,Adult Social Care Direct Payment
Peterborough,http://opendatacommunities.org/id/unitary-authority/peterborough,Peterborough City Council,Adult Services & Communities - Adults,Independent Sector Placements,Services,07/06/2017 00:00,8000091014,8517.88,Revenue,Redacted Personal Data,Adult Social Care Direct Payment
Peterborough,http://opendatacommunities.org/id/unitary-authority/peterborough,Peterborough City Council,Adult Services & Communities - Adults,Independent Sector Placements,Services,07/06/2017 00:00,8000091015,3618.48,Revenue,Redacted Personal Data,Adult Social Care Direct Payment
Peterborough,http://opendatacommunities.org/id/unitary-authority/peterborough,Peterborough City Council,Adult Services & Communities - Adults,Independent Sector Placements,Services,07/06/2017 00:00,8000091016,992.68,Revenue,Redacted Personal Data,Adult Social Care Direct Payment
Peterborough,http://opendatacommunities.org/id/unitary-authority/peterborough,Peterborough City Council,Adult Services & Communities - Adults,Independent Sector Placements,Services,07/06/2017 00:00,8000091019,1367.28,Revenue,Redacted Personal Data,Adult Social Care Direct Payment
Peterborough,http://opendatacommunities.org/id/unitary-authority/peterborough,Peterborough City Council,Adult Services & Communities - Adults,Independent Sector Placements,Services,07/06/2017 00:00,8000091020,3390.52,Revenue,Redacted Personal Data,Adult Social Care Direct Payment
Peterborough,http://opendatacommunities.org/id/unitary-authority/peterborough,Peterborough City Council,Adult Services & Communities - Adults,Independent Sector Placements,Services,07/06/2017 00:00,8000091021,1409.08,Revenue,Redacted Personal Data,Adult Social Care Direct Payment
Peterborough,http://opendatacommunities.org/id/unitary-authority/peterborough,Peterborough City Council,Adult Services & Communities - Adults,Independent Sector Placements,Services,07/06/2017 00:00,8000091023,1266.48,Revenue,Redacted Personal Data,Adult Social Care Direct Payment
Peterborough,http://opendatacommunities.org/id/unitary-authority/peterborough,Peterborough City Council,Adult Services & Communities - Adults,Independent Sector Placements,Services,07/06/2017 00:00,8000091024,6417.68,Revenue,Redacted Personal Data,Adult Social Care Direct Payment
Peterborough,http://opendatacommunities.org/id/unitary-authority/peterborough,Peterborough City Council,Adult Services & Communities - Adults,Independent Sector Placements,Services,07/06/2017 00:00,8000091025,4168.4,Revenue,Redacted Personal Data,Adult Social Care Direct Payment
Peterborough,http://opendatacommunities.org/id/unitary-authority/peterborough,Peterborough City Council,Adult Services & Communities - Adults,Independent Sector Placements,Services,07/06/2017 00:00,8000091026,716.8,Revenue,Redacted Personal Data,Adult Social Care Direct Payment
Peterborough,http://opendatacommunities.org/id/unitary-authority/peterborough,Peterborough City Council,Adult Services & Communities - Adults,Independent Sector Placements,Services,07/06/2017 00:00,8000091027,10074.4,Revenue,Redacted Personal Data,Adult Social Care Direct Payment
Peterborough,http://opendatacommunities.org/id/unitary-authority/peterborough,Peterborough City Council,Adult Services & Communities - Adults,Independent Sector Placements,Services,07/06/2017 00:00,8000091029,829.6,Revenue,Redacted Personal Data,Adult Social Care Direct Payment
Peterborough,http://opendatacommunities.org/id/unitary-authority/peterborough,Peterborough City Council,Adult Services & Communities - Adults,Independent Sector Placements,Services,07/06/2017 00:00,8000091030,1015.88,Revenue,Redacted Personal Data,Adult Social Care Direct Payment
Peterborough,http://opendatacommunities.org/id/unitary-authority/peterborough,Peterborough City Council,Adult Services & Communities - Adults,Independent Sector Placements,Services,07/06/2017 00:00,8000091031,570.48,Revenue,Redacted Personal Data,Adult Social Care Direct Payment
Peterborough,http://opendatacommunities.org/id/unitary-authority/peterborough,Peterborough City Council,Adult Services & Communities - Adults,Independent Sector Placements,Services,07/06/2017 00:00,8000091032,2342.76,Revenue,Redacted Personal Data,Adult Social Care Direct Payment
Peterborough,http://opendatacommunities.org/id/unitary-authority/peterborough,Peterborough City Council,Adult Services & Communities - Adults,Independent Sector Placements,Services,07/06/2017 00:00,8000091033,942.08,Revenue,Redacted Personal Data,Adult Social Care Direct Payment
Peterborough,http://opendatacommunities.org/id/unitary-authority/peterborough,Peterborough City Council,Adult Services & Communities - Adults,Independent Sector Placements,Services,07/06/2017 00:00,8000091034,2831.16,Revenue,Redacted Personal Data,Adult Social Care Direct Payment
Peterborough,http://opendatacommunities.org/id/unitary-authority/peterborough,Peterborough City Council,Adult Services & Communities - Adults,Independent Sector Placements,Services,07/06/2017 00:00,8000091035,6801.88,Revenue,Redacted Personal Data,Adult Social Care Direct Payment
Peterborough,http://opendatacommunities.org/id/unitary-authority/peterborough,Peterborough City Council,Adult Services & Communities - Adults,Independent Sector Placements,Services,07/06/2017 00:00,8000091036,3511.28,Revenue,Redacted Personal Data,Adult Social Care Direct Payment
Peterborough,http://opendatacommunities.org/id/unitary-authority/peterborough,Peterborough City Council,Adult Services & Communities - Adults,Independent Sector Placements,Services,07/06/2017 00:00,8000091037,1293.16,Revenue,Redacted Personal Data,Adult Social Care Direct Payment
Peterborough,http://opendatacommunities.org/id/unitary-authority/peterborough,Peterborough City Council,Adult Services & Communities - Adults,Independent Sector Placements,Services,07/06/2017 00:00,8000091038,523.2,Revenue,Redacted Personal Data,Adult Social Care Direct Payment
Peterborough,http://opendatacommunities.org/id/unitary-authority/peterborough,Peterborough City Council,Adult Services & Communities - Adults,Independent Sector Placements,Services,07/06/2017 00:00,8000091039,764.88,Revenue,Redacted Personal Data,Adult Social Care Direct Payment
Peterborough,http://opendatacommunities.org/id/unitary-authority/peterborough,Peterborough City Council,Adult Services & Communities - Adults,Independent Sector Placements,Services,07/06/2017 00:00,8000091040,6298,Revenue,Redacted Personal Data,Adult Social Care Direct Payment
Peterborough,http://opendatacommunities.org/id/unitary-authority/peterborough,Peterborough City Council,Adult Services & Communities - Adults,Independent Sector Placements,Services,07/06/2017 00:00,8000091041,6232.24,Revenue,Redacted Personal Data,Adult Social Care Direct Payment
Peterborough,http://opendatacommunities.org/id/unitary-authority/peterborough,Peterborough City Council,Adult Services & Communities - Adults,Independent Sector Placements,Services,07/06/2017 00:00,8000091043,4353.56,Revenue,Redacted Personal Data,Adult Social Care Direct Payment
Peterborough,http://opendatacommunities.org/id/unitary-authority/peterborough,Peterborough City Council,Adult Services & Communities - Adults,Independent Sector Placements,Services,07/06/2017 00:00,8000091044,4881.96,Revenue,Redacted Personal Data,Adult Social Care Direct Payment
Peterborough,http://opendatacommunities.org/id/unitary-authority/peterborough,Peterborough City Council,Adult Services & Communities - Adults,Independent Sector Placements,Services,07/06/2017 00:00,8000091045,1025.08,Revenue,Redacted Personal Data,Adult Social Care Direct Payment
Peterborough,http://opendatacommunities.org/id/unitary-authority/peterborough,Peterborough City Council,Adult Services & Communities - Adults,Independent Sector Placements,Services,07/06/2017 00:00,8000091046,3038.24,Revenue,Redacted Personal Data,Adult Social Care Direct Payment
Peterborough,http://opendatacommunities.org/id/unitary-authority/peterborough,Peterborough City Council,Adult Services & Communities - Adults,Independent Sector Placements,Services,07/06/2017 00:00,8000091047,12746.84,Revenue,Redacted Personal Data,Adult Social Care Direct Payment
Peterborough,http://opendatacommunities.org/id/unitary-authority/peterborough,Peterborough City Council,Adult Services & Communities - Adults,Independent Sector Placements,Services,07/06/2017 00:00,8000091048,8674.08,Revenue,Redacted Personal Data,Adult Social Care Direct Payment
Peterborough,http://opendatacommunities.org/id/unitary-authority/peterborough,Peterborough City Council,Adult Services & Communities - Adults,Independent Sector Placements,Services,07/06/2017 00:00,8000091049,6855.28,Revenue,Redacted Personal Data,Adult Social Care Direct Payment
Peterborough,http://opendatacommunities.org/id/unitary-authority/peterborough,Peterborough City Council,Adult Services & Communities - Adults,Independent Sector Placements,Services,07/06/2017 00:00,8000091051,3616.4,Revenue,Redacted Personal Data,Adult Social Care Direct Payment
Peterborough,http://opendatacommunities.org/id/unitary-authority/peterborough,Peterborough City Council,Adult Services & Communities - Adults,Independent Sector Placements,Services,07/06/2017 00:00,8000091052,652.08,Revenue,Redacted Personal Data,Adult Social Care Direct Payment
Peterborough,http://opendatacommunities.org/id/unitary-authority/peterborough,Peterborough City Council,Adult Services & Communities - Adults,Independent Sector Placements,Services,07/06/2017 00:00,8000091056,1199.44,Revenue,Redacted Personal Data,Adult Social Care Direct Payment
Peterborough,http://opendatacommunities.org/id/unitary-authority/peterborough,Peterborough City Council,Adult Services & Communities - Adults,Independent Sector Placements,Services,07/06/2017 00:00,8000091057,2273.72,Revenue,Redacted Personal Data,Adult Social Care Direct Payment
Peterborough,http://opendatacommunities.org/id/unitary-authority/peterborough,Peterborough City Council,Adult Services & Communities - Adults,Independent Sector Placements,Services,07/06/2017 00:00,8000091058,648,Revenue,Redacted Personal Data,Adult Social Care Direct Payment
Peterborough,http://opendatacommunities.org/id/unitary-authority/peterborough,Peterborough City Council,Adult Services & Communities - Adults,Independent Sector Placements,Services,07/06/2017 00:00,8000091059,2370.48,Revenue,Redacted Personal Data,Adult Social Care Direct Payment
Peterborough,http://opendatacommunities.org/id/unitary-authority/peterborough,Peterborough City Council,Adult Services & Communities - Adults,Independent Sector Placements,Services,07/06/2017 00:00,8000091063,3750.68,Revenue,Redacted Personal Data,Adult Social Care Direct Payment
Peterborough,http://opendatacommunities.org/id/unitary-authority/peterborough,Peterborough City Council,Adult Services & Communities - Adults,Independent Sector Placements,Services,07/06/2017 00:00,8000091064,733.36,Revenue,Redacted Personal Data,Adult Social Care Direct Payment
Peterborough,http://opendatacommunities.org/id/unitary-authority/peterborough,Peterborough City Council,Adult Services & Communities - Adults,Independent Sector Placements,Services,07/06/2017 00:00,8000091065,1321.92,Revenue,Redacted Personal Data,Adult Social Care Direct Payment
Peterborough,http://opendatacommunities.org/id/unitary-authority/peterborough,Peterborough City Council,Adult Services & Communities - Adults,Independent Sector Placements,Services,07/06/2017 00:00,8000091066,3326.48,Revenue,Redacted Personal Data,Adult Social Care Direct Payment
Peterborough,http://opendatacommunities.org/id/unitary-authority/peterborough,Peterborough City Council,Adult Services & Communities - Adults,Independent Sector Placements,Services,07/06/2017 00:00,8000091067,1794.32,Revenue,Redacted Personal Data,Adult Social Care Direct Payment
Peterborough,http://opendatacommunities.org/id/unitary-authority/peterborough,Peterborough City Council,Adult Services & Communities - Adults,Independent Sector Placements,Services,07/06/2017 00:00,8000091068,574.4,Revenue,Redacted Personal Data,Adult Social Care Direct Payment
Peterborough,http://opendatacommunities.org/id/unitary-authority/peterborough,Peterborough City Council,Adult Services & Communities - Adults,Independent Sector Placements,Services,07/06/2017 00:00,8000091069,1300.48,Revenue,Redacted Personal Data,Adult Social Care Direct Payment
Peterborough,http://opendatacommunities.org/id/unitary-authority/peterborough,Peterborough City Council,Adult Services & Communities - Adults,Independent Sector Placements,Services,07/06/2017 00:00,8000091070,5569.12,Revenue,Redacted Personal Data,Adult Social Care Direct Payment
Peterborough,http://opendatacommunities.org/id/unitary-authority/peterborough,Peterborough City Council,Adult Services & Communities - Adults,Independent Sector Placements,Services,07/06/2017 00:00,8000091071,956.76,Revenue,Redacted Personal Data,Adult Social Care Direct Payment
Peterborough,http://opendatacommunities.org/id/unitary-authority/peterborough,Peterborough City Council,Adult Services & Communities - Adults,Independent Sector Placements,Services,07/06/2017 00:00,8000091072,2529.24,Revenue,Redacted Personal Data,Adult Social Care Direct Payment
Peterborough,http://opendatacommunities.org/id/unitary-authority/peterborough,Peterborough City Council,Adult Services & Communities - Adults,Independent Sector Placements,Services,07/06/2017 00:00,8000091073,1818.4,Revenue,Redacted Personal Data,Adult Social Care Direct Payment
Peterborough,http://opendatacommunities.org/id/unitary-authority/peterborough,Peterborough City Council,Adult Services & Communities - Adults,Independent Sector Placements,Services,07/06/2017 00:00,8000091074,530.32,Revenue,Redacted Personal Data,Adult Social Care Direct Payment
Peterborough,http://opendatacommunities.org/id/unitary-authority/peterborough,Peterborough City Council,Adult Services & Communities - Adults,Independent Sector Placements,Services,07/06/2017 00:00,8000091076,1002.48,Revenue,Redacted Personal Data,Adult Social Care Direct Payment
Peterborough,http://opendatacommunities.org/id/unitary-authority/peterborough,Peterborough City Council,Adult Services & Communities - Adults,Independent Sector Placements,Services,07/06/2017 00:00,8000091078,777.96,Revenue,Redacted Personal Data,Adult Social Care Direct Payment
Peterborough,http://opendatacommunities.org/id/unitary-authority/peterborough,Peterborough City Council,Adult Services & Communities - Adults,Independent Sector Placements,Services,07/06/2017 00:00,8000091079,672.16,Revenue,Redacted Personal Data,Adult Social Care Direct Payment
Peterborough,http://opendatacommunities.org/id/unitary-authority/peterborough,Peterborough City Council,Adult Services & Communities - Adults,Independent Sector Placements,Services,07/06/2017 00:00,8000091080,5810.92,Revenue,Redacted Personal Data,Adult Social Care Direct Payment
Peterborough,http://opendatacommunities.org/id/unitary-authority/peterborough,Peterborough City Council,Adult Services & Communities - Adults,Independent Sector Placements,Services,07/06/2017 00:00,8000091081,851,Revenue,Redacted Personal Data,Adult Social Care Direct Payment
Peterborough,http://opendatacommunities.org/id/unitary-authority/peterborough,Peterborough City Council,Adult Services & Communities - Adults,Independent Sector Placements,Services,07/06/2017 00:00,8000091082,5949.37,Revenue,Redacted Personal Data,Adult Social Care Direct Payment
Peterborough,http://opendatacommunities.org/id/unitary-authority/peterborough,Peterborough City Council,Adult Services & Communities - Adults,Independent Sector Placements,Services,07/06/2017 00:00,8000091084,1811.75,Revenue,Redacted Personal Data,Adult Social Care Direct Payment
Peterborough,http://opendatacommunities.org/id/unitary-authority/peterborough,Peterborough City Council,Adult Services & Communities - Adults,Independent Sector Placements,Services,07/06/2017 00:00,8000091085,1526.48,Revenue,Redacted Personal Data,Adult Social Care Direct Payment
Peterborough,http://opendatacommunities.org/id/unitary-authority/peterborough,Peterborough City Council,Adult Services & Communities - Adults,Independent Sector Placements,Services,07/06/2017 00:00,8000091086,8634,Revenue,Redacted Personal Data,Adult Social Care Direct Payment
Peterborough,http://opendatacommunities.org/id/unitary-authority/peterborough,Peterborough City Council,Adult Services & Communities - Adults,Independent Sector Placements,Services,07/06/2017 00:00,8000091087,5896.76,Revenue,Redacted Personal Data,Adult Social Care Direct Payment
Peterborough,http://opendatacommunities.org/id/unitary-authority/peterborough,Peterborough City Council,Adult Services & Communities - Adults,Independent Sector Placements,Services,07/06/2017 00:00,8000091088,739.56,Revenue,Redacted Personal Data,Adult Social Care Direct Payment
Peterborough,http://opendatacommunities.org/id/unitary-authority/peterborough,Peterborough City Council,Adult Services & Communities - Adults,Independent Sector Placements,Services,07/06/2017 00:00,8000091090,1383.4,Revenue,Redacted Personal Data,Adult Social Care Direct Payment
Peterborough,http://opendatacommunities.org/id/unitary-authority/peterborough,Peterborough City Council,Adult Services & Communities - Adults,Independent Sector Placements,Services,07/06/2017 00:00,8000091092,1082.4,Revenue,Redacted Personal Data,Adult Social Care Direct Payment
Peterborough,http://opendatacommunities.org/id/unitary-authority/peterborough,Peterborough City Council,Adult Services & Communities - Adults,Independent Sector Placements,Services,07/06/2017 00:00,8000091093,1326.48,Revenue,Redacted Personal Data,Adult Social Care Direct Payment
Peterborough,http://opendatacommunities.org/id/unitary-authority/peterborough,Peterborough City Council,Adult Services & Communities - Adults,Independent Sector Placements,Services,07/06/2017 00:00,8000091094,2319.93,Revenue,Redacted Personal Data,Adult Social Care Direct Payment
Peterborough,http://opendatacommunities.org/id/unitary-authority/peterborough,Peterborough City Council,Adult Services & Communities - Adults,Independent Sector Placements,Services,07/06/2017 00:00,8000091097,1128.4,Revenue,Redacted Personal Data,Adult Social Care Direct Payment
Peterborough,http://opendatacommunities.org/id/unitary-authority/peterborough,Peterborough City Council,Adult Services & Communities - Adults,Independent Sector Placements,Services,07/06/2017 00:00,8000091099,1516.96,Revenue,Redacted Personal Data,Adult Social Care Direct Payment
Peterborough,http://opendatacommunities.org/id/unitary-authority/peterborough,Peterborough City Council,Adult Services & Communities - Adults,Independent Sector Placements,Services,07/06/2017 00:00,8000091100,1716.96,Revenue,Redacted Personal Data,Adult Social Care Direct Payment
Peterborough,http://opendatacommunities.org/id/unitary-authority/peterborough,Peterborough City Council,Adult Services & Communities - Adults,Independent Sector Placements,Services,07/06/2017 00:00,8000091101,1283.84,Revenue,Redacted Personal Data,Adult Social Care Direct Payment
Peterborough,http://opendatacommunities.org/id/unitary-authority/peterborough,Peterborough City Council,Adult Services & Communities - Adults,Independent Sector Placements,Services,07/06/2017 00:00,8000091102,3307.84,Revenue,Redacted Personal Data,Adult Social Care Direct Payment
Peterborough,http://opendatacommunities.org/id/unitary-authority/peterborough,Peterborough City Council,Adult Services & Communities - Adults,Independent Sector Placements,Services,07/06/2017 00:00,8000091103,882,Revenue,Redacted Personal Data,Adult Social Care Direct Payment
Peterborough,http://opendatacommunities.org/id/unitary-authority/peterborough,Peterborough City Council,Adult Services & Communities - Adults,Independent Sector Placements,Services,07/06/2017 00:00,8000091104,3092.76,Revenue,Redacted Personal Data,Adult Social Care Direct Payment
Peterborough,http://opendatacommunities.org/id/unitary-authority/peterborough,Peterborough City Council,Adult Services & Communities - Adults,Independent Sector Placements,Services,07/06/2017 00:00,8000091106,807.88,Revenue,Redacted Personal Data,Adult Social Care Direct Payment
Peterborough,http://opendatacommunities.org/id/unitary-authority/peterborough,Peterborough City Council,Adult Services & Communities - Adults,Independent Sector Placements,Services,07/06/2017 00:00,8000091108,540,Revenue,Redacted Personal Data,Adult Social Care Direct Payment
Peterborough,http://opendatacommunities.org/id/unitary-authority/peterborough,Peterborough City Council,Adult Services & Communities - Adults,Independent Sector Placements,Services,07/06/2017 00:00,8000091112,940.88,Revenue,Redacted Personal Data,Adult Social Care Direct Payment
Peterborough,http://opendatacommunities.org/id/unitary-authority/peterborough,Peterborough City Council,Adult Services & Communities - Adults,Independent Sector Placements,Services,07/06/2017 00:00,8000091113,2847.36,Revenue,Redacted Personal Data,Adult Social Care Direct Payment
Peterborough,http://opendatacommunities.org/id/unitary-authority/peterborough,Peterborough City Council,Adult Services & Communities - Adults,Independent Sector Placements,Services,07/06/2017 00:00,8000091115,582.24,Revenue,Redacted Personal Data,Adult Social Care Direct Payment
Peterborough,http://opendatacommunities.org/id/unitary-authority/peterborough,Peterborough City Council,Adult Services & Communities - Adults,Independent Sector Placements,Services,07/06/2017 00:00,8000091116,4223.28,Revenue,Redacted Personal Data,Adult Social Care Direct Payment
Peterborough,http://opendatacommunities.org/id/unitary-authority/peterborough,Peterborough City Council,Adult Services & Communities - Adults,Independent Sector Placements,Services,07/06/2017 00:00,8000091119,7590.08,Revenue,Redacted Personal Data,Adult Social Care Direct Payment
Peterborough,http://opendatacommunities.org/id/unitary-authority/peterborough,Peterborough City Council,Adult Services & Communities - Adults,Independent Sector Placements,Services,07/06/2017 00:00,8000091120,1495.44,Revenue,Redacted Personal Data,Adult Social Care Direct Payment
Peterborough,http://opendatacommunities.org/id/unitary-authority/peterborough,Peterborough City Council,Adult Services & Communities - Adults,Independent Sector Placements,Services,07/06/2017 00:00,8000091124,667.92,Revenue,Redacted Personal Data,Adult Social Care Direct Payment
Peterborough,http://opendatacommunities.org/id/unitary-authority/peterborough,Peterborough City Council,Adult Services & Communities - Adults,Independent Sector Placements,Services,07/06/2017 00:00,8000091126,1078.92,Revenue,Redacted Personal Data,Adult Social Care Direct Payment
Peterborough,http://opendatacommunities.org/id/unitary-authority/peterborough,Peterborough City Council,Adult Services & Communities - Adults,Independent Sector Placements,Services,07/06/2017 00:00,8000091129,14876.37,Revenue,Redacted Personal Data,Adult Social Care Direct Payment
Peterborough,http://opendatacommunities.org/id/unitary-authority/peterborough,Peterborough City Council,Adult Services & Communities - Adults,Independent Sector Placements,Services,07/06/2017 00:00,8000091130,1244.4,Revenue,Redacted Personal Data,Adult Social Care Direct Payment
Peterborough,http://opendatacommunities.org/id/unitary-authority/peterborough,Peterborough City Council,Adult Services & Communities - Adults,Independent Sector Placements,Services,07/06/2017 00:00,8000091132,864.28,Revenue,Redacted Personal Data,Adult Social Care Direct Payment
Peterborough,http://opendatacommunities.org/id/unitary-authority/peterborough,Peterborough City Council,Adult Services & Communities - Adults,Independent Sector Placements,Services,07/06/2017 00:00,8000091134,1281.48,Revenue,Redacted Personal Data,Adult Social Care Direct Payment
Peterborough,http://opendatacommunities.org/id/unitary-authority/peterborough,Peterborough City Council,Adult Services & Communities - Adults,Independent Sector Placements,Services,07/06/2017 00:00,8000091135,1295.16,Revenue,Redacted Personal Data,Adult Social Care Direct Payment
Peterborough,http://opendatacommunities.org/id/unitary-authority/peterborough,Peterborough City Council,Adult Services & Communities - Adults,Independent Sector Placements,Services,07/06/2017 00:00,8000091137,506.88,Revenue,Redacted Personal Data,Adult Social Care Direct Payment
Peterborough,http://opendatacommunities.org/id/unitary-authority/peterborough,Peterborough City Council,Adult Services & Communities - Adults,Independent Sector Placements,Services,07/06/2017 00:00,8000091138,2235.6,Revenue,Redacted Personal Data,Adult Social Care Direct Payment
Peterborough,http://opendatacommunities.org/id/unitary-authority/peterborough,Peterborough City Council,Adult Services & Communities - Adults,Independent Sector Placements,Services,07/06/2017 00:00,8000091139,7694.28,Revenue,Redacted Personal Data,Adult Social Care Direct Payment
Peterborough,http://opendatacommunities.org/id/unitary-authority/peterborough,Peterborough City Council,Adult Services & Communities - Adults,Independent Sector Placements,Services,07/06/2017 00:00,8000091140,1521.84,Revenue,Redacted Personal Data,Adult Social Care Direct Payment
Peterborough,http://opendatacommunities.org/id/unitary-authority/peterborough,Peterborough City Council,Adult Services & Communities - Adults,Independent Sector Placements,Services,07/06/2017 00:00,8000091143,888.4,Revenue,Redacted Personal Data,Adult Social Care Direct Payment
Peterborough,http://opendatacommunities.org/id/unitary-authority/peterborough,Peterborough City Council,Adult Services & Communities - Adults,Independent Sector Placements,Services,07/06/2017 00:00,8000091144,607.47,Revenue,Redacted Personal Data,Adult Social Care Direct Payment
Peterborough,http://opendatacommunities.org/id/unitary-authority/peterborough,Peterborough City Council,Adult Services & Communities - Adults,Independent Sector Placements,Services,07/06/2017 00:00,8000091145,2567.26,Revenue,Redacted Personal Data,Adult Social Care Direct Payment
Peterborough,http://opendatacommunities.org/id/unitary-authority/peterborough,Peterborough City Council,Adult Services & Communities - Adults,Independent Sector Placements,Services,07/06/2017 00:00,8000091146,2710.7,Revenue,Redacted Personal Data,Adult Social Care Direct Payment
Peterborough,http://opendatacommunities.org/id/unitary-authority/peterborough,Peterborough City Council,Adult Services & Communities - Adults,Independent Sector Placements,Services,07/06/2017 00:00,8000091147,1726.2,Revenue,Redacted Personal Data,Adult Social Care Direct Payment
Peterborough,http://opendatacommunities.org/id/unitary-authority/peterborough,Peterborough City Council,Adult Services & Communities - Adults,Independent Sector Placements,Services,07/06/2017 00:00,8000091149,1390.12,Revenue,Redacted Personal Data,Adult Social Care Direct Payment
Peterborough,http://opendatacommunities.org/id/unitary-authority/peterborough,Peterborough City Council,Adult Services & Communities - Adults,Independent Sector Placements,Services,07/06/2017 00:00,8000091153,2912,Revenue,Redacted Personal Data,Adult Social Care Direct Payment
Peterborough,http://opendatacommunities.org/id/unitary-authority/peterborough,Peterborough City Council,Adult Services & Communities - Adults,Independent Sector Placements,Services,07/06/2017 00:00,8000091154,2388.2,Revenue,Redacted Personal Data,Adult Social Care Direct Payment
Peterborough,http://opendatacommunities.org/id/unitary-authority/peterborough,Peterborough City Council,Adult Services & Communities - Adults,Independent Sector Placements,Services,07/06/2017 00:00,8000091156,1037.84,Revenue,Redacted Personal Data,Adult Social Care Direct Payment
Peterborough,http://opendatacommunities.org/id/unitary-authority/peterborough,Peterborough City Council,Adult Services & Communities - Adults,Independent Sector Placements,Services,07/06/2017 00:00,8000091157,1080.4,Revenue,Redacted Personal Data,Adult Social Care Direct Payment
Peterborough,http://opendatacommunities.org/id/unitary-authority/peterborough,Peterborough City Council,Adult Services & Communities - Adults,Independent Sector Placements,Services,07/06/2017 00:00,8000091158,1608.36,Revenue,Redacted Personal Data,Adult Social Care Direct Payment
Peterborough,http://opendatacommunities.org/id/unitary-authority/peterborough,Peterborough City Council,Adult Services & Communities - Adults,Independent Sector Placements,Services,07/06/2017 00:00,8000091160,644,Revenue,Redacted Personal Data,Adult Social Care Direct Payment
Peterborough,http://opendatacommunities.org/id/unitary-authority/peterborough,Peterborough City Council,Adult Services & Communities - Adults,Independent Sector Placements,Services,07/06/2017 00:00,8000091161,949.84,Revenue,Redacted Personal Data,Adult Social Care Direct Payment
Peterborough,http://opendatacommunities.org/id/unitary-authority/peterborough,Peterborough City Council,Adult Services & Communities - Adults,Independent Sector Placements,Services,07/06/2017 00:00,8000091162,1564.44,Revenue,Redacted Personal Data,Adult Social Care Direct Payment
Peterborough,http://opendatacommunities.org/id/unitary-authority/peterborough,Peterborough City Council,Adult Services & Communities - Adults,Independent Sector Placements,Services,07/06/2017 00:00,8000091163,606.6,Revenue,Redacted Personal Data,Adult Social Care Direct Payment
Peterborough,http://opendatacommunities.org/id/unitary-authority/peterborough,Peterborough City Council,Adult Services & Communities - Adults,Independent Sector Placements,Services,07/06/2017 00:00,8000091164,1090.92,Revenue,Redacted Personal Data,Adult Social Care Direct Payment
Peterborough,http://opendatacommunities.org/id/unitary-authority/peterborough,Peterborough City Council,Adult Services & Communities - Adults,Independent Sector Placements,Services,07/06/2017 00:00,8000091165,1676.85,Revenue,Redacted Personal Data,Adult Social Care Direct Payment
Peterborough,http://opendatacommunities.org/id/unitary-authority/peterborough,Peterborough City Council,Adult Services & Communities - Adults,Independent Sector Placements,Services,07/06/2017 00:00,8000091166,806.48,Revenue,Redacted Personal Data,Adult Social Care Direct Payment
Peterborough,http://opendatacommunities.org/id/unitary-authority/peterborough,Peterborough City Council,Adult Services & Communities - Adults,Independent Sector Placements,Services,07/06/2017 00:00,8000091168,689.19,Revenue,Redacted Personal Data,Adult Social Care Direct Payment
Peterborough,http://opendatacommunities.org/id/unitary-authority/peterborough,Peterborough City Council,Adult Services & Communities - Adults,Independent Sector Placements,Services,07/06/2017 00:00,8000091170,544.8,Revenue,Redacted Personal Data,Adult Social Care Direct Payment
Peterborough,http://opendatacommunities.org/id/unitary-authority/peterborough,Peterborough City Council,Adult Services & Communities - Adults,Independent Sector Placements,Services,07/06/2017 00:00,8000091172,748.04,Revenue,Redacted Personal Data,Adult Social Care Direct Payment
Peterborough,http://opendatacommunities.org/id/unitary-authority/peterborough,Peterborough City Council,Adult Services & Communities - Adults,Independent Sector Placements,Services,07/06/2017 00:00,8000091174,1407.4,Revenue,Redacted Personal Data,Adult Social Care Direct Payment
Peterborough,http://opendatacommunities.org/id/unitary-authority/peterborough,Peterborough City Council,Adult Services & Communities - Adults,Independent Sector Placements,Services,07/06/2017 00:00,8000091175,644,Revenue,Redacted Personal Data,Adult Social Care Direct Payment
Peterborough,http://opendatacommunities.org/id/unitary-authority/peterborough,Peterborough City Council,Adult Services & Communities - Adults,Independent Sector Placements,Services,07/06/2017 00:00,8000091176,1629.88,Revenue,Redacted Personal Data,Adult Social Care Direct Payment
Peterborough,http://opendatacommunities.org/id/unitary-authority/peterborough,Peterborough City Council,Adult Services & Communities - Adults,Independent Sector Placements,Services,07/06/2017 00:00,8000091181,6124.16,Revenue,Redacted Personal Data,Adult Social Care Direct Payment
Peterborough,http://opendatacommunities.org/id/unitary-authority/peterborough,Peterborough City Council,Adult Services & Communities - Adults,Independent Sector Placements,Services,07/06/2017 00:00,8000091182,826.88,Revenue,Redacted Personal Data,Adult Social Care Direct Payment
Peterborough,http://opendatacommunities.org/id/unitary-authority/peterborough,Peterborough City Council,Adult Services & Communities - Adults,Independent Sector Placements,Services,07/06/2017 00:00,8000091183,2525.4,Revenue,Redacted Personal Data,Adult Social Care Direct Payment
Peterborough,http://opendatacommunities.org/id/unitary-authority/peterborough,Peterborough City Council,Adult Services & Communities - Adults,Independent Sector Placements,Services,07/06/2017 00:00,8000091184,820.36,Revenue,Redacted Personal Data,Adult Social Care Direct Payment
Peterborough,http://opendatacommunities.org/id/unitary-authority/peterborough,Peterborough City Council,Adult Services & Communities - Adults,Independent Sector Placements,Services,07/06/2017 00:00,8000091185,650.24,Revenue,Redacted Personal Data,Adult Social Care Direct Payment
Peterborough,http://opendatacommunities.org/id/unitary-authority/peterborough,Peterborough City Council,Adult Services & Communities - Adults,Independent Sector Placements,Services,07/06/2017 00:00,8000091186,1664.4,Revenue,Redacted Personal Data,Adult Social Care Direct Payment
Peterborough,http://opendatacommunities.org/id/unitary-authority/peterborough,Peterborough City Council,Adult Services & Communities - Adults,Independent Sector Placements,Services,07/06/2017 00:00,8000091188,1380,Revenue,Redacted Personal Data,Adult Social Care Direct Payment
Peterborough,http://opendatacommunities.org/id/unitary-authority/peterborough,Peterborough City Council,Adult Services & Communities - Adults,Independent Sector Placements,Services,07/06/2017 00:00,8000091190,1584.66,Revenue,Redacted Personal Data,Adult Social Care Direct Payment
Peterborough,http://opendatacommunities.org/id/unitary-authority/peterborough,Peterborough City Council,Adult Services & Communities - Adults,Independent Sector Placements,Services,07/06/2017 00:00,8000091191,1251.04,Revenue,Redacted Personal Data,Adult Social Care Direct Payment
Peterborough,http://opendatacommunities.org/id/unitary-authority/peterborough,Peterborough City Council,Adult Services & Communities - Adults,Independent Sector Placements,Services,07/06/2017 00:00,8000091193,648.72,Revenue,Redacted Personal Data,Adult Social Care Direct Payment
Peterborough,http://opendatacommunities.org/id/unitary-authority/peterborough,Peterborough City Council,Adult Services & Communities - Adults,Independent Sector Placements,Services,07/06/2017 00:00,8000091194,4003.56,Revenue,Redacted Personal Data,Adult Social Care Direct Payment
Peterborough,http://opendatacommunities.org/id/unitary-authority/peterborough,Peterborough City Council,Adult Services & Communities - Adults,Independent Sector Placements,Services,07/06/2017 00:00,8000091195,554.44,Revenue,Redacted Personal Data,Adult Social Care Direct Payment
Peterborough,http://opendatacommunities.org/id/unitary-authority/peterborough,Peterborough City Council,Adult Services & Communities - Adults,Independent Sector Placements,Services,07/06/2017 00:00,8000091196,5761.76,Revenue,Redacted Personal Data,Adult Social Care Direct Payment
Peterborough,http://opendatacommunities.org/id/unitary-authority/peterborough,Peterborough City Council,Adult Services & Communities - Adults,Independent Sector Placements,Services,07/06/2017 00:00,8000091198,1329.44,Revenue,Redacted Personal Data,Adult Social Care Direct Payment
Peterborough,http://opendatacommunities.org/id/unitary-authority/peterborough,Peterborough City Council,Adult Services & Communities - Adults,Independent Sector Placements,Services,07/06/2017 00:00,8000091199,2661.2,Revenue,Redacted Personal Data,Adult Social Care Direct Payment
Peterborough,http://opendatacommunities.org/id/unitary-authority/peterborough,Peterborough City Council,Adult Services & Communities - Adults,Independent Sector Placements,Services,07/06/2017 00:00,8000091200,758.08,Revenue,Redacted Personal Data,Adult Social Care Direct Payment
Peterborough,http://opendatacommunities.org/id/unitary-authority/peterborough,Peterborough City Council,Adult Services & Communities - Adults,Independent Sector Placements,Services,07/06/2017 00:00,8000091201,524.88,Revenue,Redacted Personal Data,Adult Social Care Direct Payment
Peterborough,http://opendatacommunities.org/id/unitary-authority/peterborough,Peterborough City Council,Adult Services & Communities - Adults,Independent Sector Placements,Services,07/06/2017 00:00,8000091204,724,Revenue,Redacted Personal Data,Adult Social Care Direct Payment
Peterborough,http://opendatacommunities.org/id/unitary-authority/peterborough,Peterborough City Council,Adult Services & Communities - Adults,Independent Sector Placements,Services,07/06/2017 00:00,8000091205,980.88,Revenue,Redacted Personal Data,Adult Social Care Direct Payment
Peterborough,http://opendatacommunities.org/id/unitary-authority/peterborough,Peterborough City Council,Adult Services & Communities - Adults,Independent Sector Placements,Services,07/06/2017 00:00,8000091207,637.6,Revenue,Redacted Personal Data,Adult Social Care Direct Payment
Peterborough,http://opendatacommunities.org/id/unitary-authority/peterborough,Peterborough City Council,Adult Services & Communities - Adults,Independent Sector Placements,Services,07/06/2017 00:00,8000091208,792.8,Revenue,Redacted Personal Data,Adult Social Care Direct Payment
Peterborough,http://opendatacommunities.org/id/unitary-authority/peterborough,Peterborough City Council,Adult Services & Communities - Adults,Independent Sector Placements,Services,07/06/2017 00:00,8000091209,1085.36,Revenue,Redacted Personal Data,Adult Social Care Direct Payment
Peterborough,http://opendatacommunities.org/id/unitary-authority/peterborough,Peterborough City Council,Adult Services & Communities - Adults,Independent Sector Placements,Services,07/06/2017 00:00,8000091211,510.08,Revenue,Redacted Personal Data,Adult Social Care Direct Payment
Peterborough,http://opendatacommunities.org/id/unitary-authority/peterborough,Peterborough City Council,Adult Services & Communities - Adults,Independent Sector Placements,Services,07/06/2017 00:00,8000091212,728.08,Revenue,Redacted Personal Data,Adult Social Care Direct Payment
Peterborough,http://opendatacommunities.org/id/unitary-authority/peterborough,Peterborough City Council,Adult Services & Communities - Adults,Independent Sector Placements,Services,07/06/2017 00:00,8000091213,2275.12,Revenue,Redacted Personal Data,Adult Social Care Direct Payment
Peterborough,http://opendatacommunities.org/id/unitary-authority/peterborough,Peterborough City Council,Adult Services & Communities - Adults,Independent Sector Placements,Services,07/06/2017 00:00,8000091215,893.6,Revenue,Redacted Personal Data,Adult Social Care Direct Payment
Peterborough,http://opendatacommunities.org/id/unitary-authority/peterborough,Peterborough City Council,Adult Services & Communities - Adults,Independent Sector Placements,Services,07/06/2017 00:00,8000091216,5811.4,Revenue,Redacted Personal Data,Adult Social Care Direct Payment
Peterborough,http://opendatacommunities.org/id/unitary-authority/peterborough,Peterborough City Council,Adult Services & Communities - Adults,Independent Sector Placements,Services,07/06/2017 00:00,8000091217,6757.6,Revenue,Redacted Personal Data,Adult Social Care Direct Payment
Peterborough,http://opendatacommunities.org/id/unitary-authority/peterborough,Peterborough City Council,Adult Services & Communities - Adults,Independent Sector Placements,Services,07/06/2017 00:00,8000091218,666.08,Revenue,Redacted Personal Data,Adult Social Care Direct Payment
Peterborough,http://opendatacommunities.org/id/unitary-authority/peterborough,Peterborough City Council,Adult Services & Communities - Adults,Independent Sector Placements,Services,07/06/2017 00:00,8000091219,1113.28,Revenue,Redacted Personal Data,Adult Social Care Direct Payment
Peterborough,http://opendatacommunities.org/id/unitary-authority/peterborough,Peterborough City Council,Adult Services & Communities - Adults,Independent Sector Placements,Services,07/06/2017 00:00,8000091221,678.88,Revenue,Redacted Personal Data,Adult Social Care Direct Payment
Peterborough,http://opendatacommunities.org/id/unitary-authority/peterborough,Peterborough City Council,Adult Services & Communities - Adults,Independent Sector Placements,Services,07/06/2017 00:00,8000091222,3753.12,Revenue,Redacted Personal Data,Adult Social Care Direct Payment
Peterborough,http://opendatacommunities.org/id/unitary-authority/peterborough,Peterborough City Council,Adult Services & Communities - Adults,Independent Sector Placements,Services,07/06/2017 00:00,8000091223,681.08,Revenue,Redacted Personal Data,Adult Social Care Direct Payment
Peterborough,http://opendatacommunities.org/id/unitary-authority/peterborough,Peterborough City Council,Adult Services & Communities - Adults,Independent Sector Placements,Services,07/06/2017 00:00,8000091224,1279.96,Revenue,Redacted Personal Data,Adult Social Care Direct Payment
Peterborough,http://opendatacommunities.org/id/unitary-authority/peterborough,Peterborough City Council,Adult Services & Communities - Adults,Independent Sector Placements,Services,07/06/2017 00:00,8000091225,592.48,Revenue,Redacted Personal Data,Adult Social Care Direct Payment
Peterborough,http://opendatacommunities.org/id/unitary-authority/peterborough,Peterborough City Council,Adult Services & Communities - Adults,Independent Sector Placements,Services,07/06/2017 00:00,8000091226,563,Revenue,Redacted Personal Data,Adult Social Care Direct Payment
Peterborough,http://opendatacommunities.org/id/unitary-authority/peterborough,Peterborough City Council,Adult Services & Communities - Adults,Independent Sector Placements,Services,07/06/2017 00:00,8000091227,579.08,Revenue,Redacted Personal Data,Adult Social Care Direct Payment
Peterborough,http://opendatacommunities.org/id/unitary-authority/peterborough,Peterborough City Council,Adult Services & Communities - Adults,Independent Sector Placements,Services,07/06/2017 00:00,8000091228,2168.08,Revenue,Redacted Personal Data,Adult Social Care Direct Payment
Peterborough,http://opendatacommunities.org/id/unitary-authority/peterborough,Peterborough City Council,Adult Services & Communities - Adults,Independent Sector Placements,Services,07/06/2017 00:00,8000091229,988.68,Revenue,Redacted Personal Data,Adult Social Care Direct Payment
Peterborough,http://opendatacommunities.org/id/unitary-authority/peterborough,Peterborough City Council,Adult Services & Communities - Adults,Independent Sector Placements,Services,07/06/2017 00:00,8000091230,705.36,Revenue,Redacted Personal Data,Adult Social Care Direct Payment
Peterborough,http://opendatacommunities.org/id/unitary-authority/peterborough,Peterborough City Council,Adult Services & Communities - Adults,Independent Sector Placements,Services,07/06/2017 00:00,8000091232,3602.52,Revenue,Redacted Personal Data,Adult Social Care Direct Payment
Peterborough,http://opendatacommunities.org/id/unitary-authority/peterborough,Peterborough City Council,Adult Services & Communities - Adults,Independent Sector Placements,Services,07/06/2017 00:00,8000091233,1034.88,Revenue,Redacted Personal Data,Adult Social Care Direct Payment
Peterborough,http://opendatacommunities.org/id/unitary-authority/peterborough,Peterborough City Council,Adult Services & Communities - Adults,Independent Sector Placements,Services,07/06/2017 00:00,8000091235,587.04,Revenue,Redacted Personal Data,Adult Social Care Direct Payment
Peterborough,http://opendatacommunities.org/id/unitary-authority/peterborough,Peterborough City Council,Adult Services & Communities - Adults,Independent Sector Placements,Services,07/06/2017 00:00,8000091236,711.72,Revenue,Redacted Personal Data,Adult Social Care Direct Payment
Peterborough,http://opendatacommunities.org/id/unitary-authority/peterborough,Peterborough City Council,Adult Services & Communities - Adults,Independent Sector Placements,Services,07/06/2017 00:00,8000091237,3556,Revenue,Redacted Personal Data,Adult Social Care Direct Payment
